Date Incurred,Directorate,Beneficiary,Purpose,Amount,Non Recoverable VAT,Supplier Type
02/04/2018,Strategic Commissioning Community and Environment,Centre Stage,"PURCHASE - EQUIPMENT, FURNITURE AND MATERIALS",455.00,0,Commercial Supplier
02/04/2018,Strategic Commissioning Community and Environment,Sayers (Car Hire),DIRECT TRANSPORT,"1,498.50",0,Supplier
03/04/2018,Dedicated Schools Budget Dedicated Schools Budget,Ambitious about Autism,PROFESSIONAL SERVICES - GENERAL,"19,498.29",0,Commercial Supplier
03/04/2018,oneSource - Non Shared Asset Management,Aquatronic Group Management PLC,"MAINTENANCE - EQUIPMENT, FURNITURE AND MATERIALS",951.60,0,Commercial Supplier
03/04/2018,oneSource - Non Shared Asset Management,Archway Tcs Limited,CLEANING SERVICES,732.60,0,Supplier
03/04/2018,Dedicated Schools Budget Dedicated Schools Budget,Astrum Multi Academy Trust T/A Newbridge School.,MEMBERSHIP AND SUBSCRIPTIONS,"13,161.00",0,Commercial Supplier
03/04/2018,Strategic Commissioning Adults,Atlantic Lodge (London) Ltd,RENTS PAYABLE,923.00,0,Foster Carers
03/04/2018,Strategic Commissioning Adults,Atlantic Lodge (London) Ltd,RENTS PAYABLE,"1,083.33",0,Foster Carers
03/04/2018,Strategic Commissioning Adults,Atlantic Lodge (London) Ltd,RENTS PAYABLE,"1,297.00",0,Foster Carers
03/04/2018,Strategic Commissioning Adults,Atlantic Lodge (London) Ltd,RENTS PAYABLE,996.67,0,Foster Carers
03/04/2018,Strategic Commissioning Adults,Atlantic Lodge (London) Ltd,RENTS PAYABLE,996.67,0,Foster Carers
03/04/2018,Dedicated Schools Budget Dedicated Schools Budget,Axcis Education Recruitment,PROFESSIONAL SERVICES - GENERAL,405.00,0,Commercial Supplier
03/04/2018,oneSource oS ICT Services,Black Cat Couriers Ltd,POSTAGE AND COURIER SERVICES,741.90,0,Commercial Supplier
03/04/2018,oneSource oS ICT Services,Black Cat Couriers Ltd,POSTAGE AND COURIER SERVICES,741.90,0,Commercial Supplier
03/04/2018,Financial Sustainability Financial Sustainability,Bloom Procurement Services Ltd,CONSULTANCY FEES,"2,655.00",0,Commercial Supplier
03/04/2018,Financial Sustainability Financial Sustainability,Bloom Procurement Services Ltd,CONSULTANCY FEES,"2,655.00",0,Commercial Supplier
03/04/2018,Strategic Commissioning Adults,Bloom Procurement Services Ltd,CONSULTANCY FEES,"8,947.37",0,Commercial Supplier
03/04/2018,Strategic Commissioning Enforcement and Safety,Blue Diamond STL,"PURCHASE - EQUIPMENT, FURNITURE AND MATERIALS",300.00,0,Commercial Supplier
03/04/2018,Strategic Commissioning Community and Environment,British Gas Trading Ltd,COUNCIL TAX,594.59,0,Commercial Supplier
03/04/2018,oneSource - Non Shared Asset Management,Building A Future (Newham Schools) Limited,"MAINTENANCE - EQUIPMENT, FURNITURE AND MATERIALS","67,988.73",0,Supplier
03/04/2018,oneSource - Non Shared Asset Management,Building A Future (Newham Schools) Limited,"MAINTENANCE - EQUIPMENT, FURNITURE AND MATERIALS","67,092.31",0,Supplier
03/04/2018,oneSource - Non Shared Asset Management,Building A Future (Newham Schools) Limited,"MAINTENANCE - EQUIPMENT, FURNITURE AND MATERIALS","259,986.52",0,Supplier
03/04/2018,Customer & Strategic Services Customer Engagement,Castle Water Ltd,WATER AND SEWERAGE,478.72,0,Commercial Supplier
03/04/2018,Customer & Strategic Services Customer Engagement,Castle Water Ltd,WATER AND SEWERAGE,388.92,0,Commercial Supplier
03/04/2018,Customer & Strategic Services Customer Engagement,Castle Water Ltd,WATER AND SEWERAGE,"1,221.51",0,Commercial Supplier
03/04/2018,Strategic Commissioning CYPS,Castle Water Ltd,SOLID FUEL,"5,025.52",0,Commercial Supplier
03/04/2018,Strategic Commissioning CYPS,Castle Water Ltd,SOLID FUEL,384.00,0,Commercial Supplier
03/04/2018,Strategic Commissioning CYPS,Castle Water Ltd,SOLID FUEL,379.82,0,Commercial Supplier
03/04/2018,Strategic Commissioning CYPS,Castle Water Ltd,SOLID FUEL,"4,380.52",0,Commercial Supplier
03/04/2018,Strategic Commissioning CYPS,Castle Water Ltd,SOLID FUEL,307.28,0,Commercial Supplier
03/04/2018,Strategic Commissioning Adults,Chosen Care Group Ltd,PRIVATE CONTRACTORS PAYMENT - OTHER,"8,250.00",0,Supplier
03/04/2018,Strategic Commissioning Adults,Chosen Care Group Ltd,PRIVATE CONTRACTORS PAYMENT - OTHER,"8,250.00",0,Supplier
03/04/2018,oneSource oS Exchequer & Transactional Services,Civica UK Ltd,ICT SOFTWARE,"1,050.00",0,Commercial Supplier
03/04/2018,Strategic Commissioning Community and Environment,Clayhall Executive Cars Ltd,DIRECT TRANSPORT,"2,262.50",0,Commercial Supplier
03/04/2018,Strategic Commissioning Community and Environment,Create London,"PURCHASE - EQUIPMENT, FURNITURE AND MATERIALS","68,625.85",0,Commercial Supplier
03/04/2018,Strategic Commissioning CYPS,Finefair Consultancy Ltd,CONSULTANCY FEES,"22,998.36",0,Supplier
03/04/2018,Strategic Commissioning CYPS,Finefair Consultancy Ltd,CONSULTANCY FEES,"28,243.60",0,Supplier
03/04/2018,Strategic Commissioning CYPS,Finefair Consultancy Ltd,CONSULTANCY FEES,"22,998.36",0,Commercial Supplier
03/04/2018,Strategic Commissioning CYPS,Finefair Consultancy Ltd,CONSULTANCY FEES,"28,243.60",0,Commercial Supplier
03/04/2018,Customer & Strategic Services Customer Engagement,Food Academy,CATERING AND VENDING SUPPLIES,"2,700.00",0,Commercial Supplier
03/04/2018,Customer & Strategic Services Customer Engagement,Food Academy,CATERING AND VENDING SUPPLIES,"1,350.00",0,Commercial Supplier
03/04/2018,oneSource oS ICT Services,Hound Envelopes Ltd,PRINTING,410.00,0,Commercial Supplier
03/04/2018,Strategic Commissioning Adults,Redacted - Personal Data,RENTS PAYABLE,"1,076.20",0,Foster Carers
03/04/2018,Strategic Commissioning Externalised Business Units,Iman Logic Ltd,CONSULTANCY FEES,"6,660.00",0,Supplier
03/04/2018,Strategic Commissioning Adults,Industrial Property Investment Fund,FACILITIES MANAGEMENT,"3,538.33",0,Commercial Supplier
03/04/2018,oneSource - Non Shared Asset Management,Integral Uk Ltd,"MAINTENANCE - EQUIPMENT, FURNITURE AND MATERIALS",936.10,0,Commercial Supplier
03/04/2018,oneSource - Non Shared Asset Management,Integral Uk Ltd,"MAINTENANCE - EQUIPMENT, FURNITURE AND MATERIALS",953.17,0,Commercial Supplier
03/04/2018,oneSource oS ICT Services,Investec Asset Finance Plc,PROFESSIONAL SERVICES - GENERAL,"7,986.00",0,Commercial Supplier
03/04/2018,Strategic Commissioning Adults,J J Moss & Sons Ltd,BUILDING ALTERATIONS AND MATERIALS,665.40,0,Supplier
03/04/2018,Strategic Commissioning CYPS,Kent County Council (Kcs),GAS,412.05,0,Local Authority Services
03/04/2018,Strategic Commissioning CYPS,Kent County Council (Kcs),GAS,607.27,0,Local Authority Services
03/04/2018,Customer & Strategic Services Customer Transactions,Kent County Council (Kcs),GAS,375.53,0,Local Authority Services
03/04/2018,Housing Revenue Account HRA,Kent County Council (Kcs),GAS,839.23,0,Local Authority Services
03/04/2018,oneSource - Non Shared Asset Management,Kent County Council (Kcs),GAS,"3,224.10",0,Local Authority Services
03/04/2018,Chief Operating Officer Chief Operating Officer,Korn Ferry Hay Group Ltd,CONSULTANCY FEES,"4,694.25",0,Commercial Supplier
03/04/2018,Chief Operating Officer Chief Operating Officer,Korn Ferry Hay Group Ltd,CONSULTANCY FEES,"5,850.00",0,Commercial Supplier
03/04/2018,Strategic Commissioning Community and Environment,L & F Plant Hire Co Ltd T/A Ti,GROUNDS MAINTENANCE,638.00,0,Supplier
03/04/2018,Strategic Commissioning Community and Environment,L & F Plant Hire Co Ltd T/A Ti,GROUNDS MAINTENANCE,594.00,0,Supplier
03/04/2018,Strategic Commissioning Community and Environment,L & F Plant Hire Co Ltd T/A Ti,GROUNDS MAINTENANCE,528.00,0,Supplier
03/04/2018,Strategic Commissioning Community and Environment,L & F Plant Hire Co Ltd T/A Ti,GROUNDS MAINTENANCE,528.00,0,Supplier
03/04/2018,Strategic Commissioning Community and Environment,L & F Plant Hire Co Ltd T/A Ti,GROUNDS MAINTENANCE,528.00,0,Supplier
03/04/2018,Strategic Commissioning Community and Environment,L & F Plant Hire Co Ltd T/A Ti,GROUNDS MAINTENANCE,572.00,0,Supplier
03/04/2018,Strategic Commissioning CYPS,Learning & Skills Event Consultancy & Training,PROFESSIONAL SERVICES - GENERAL,590.00,0,Supplier
03/04/2018,Strategic Commissioning Adults,Redacted - Personal Data,RENTS PAYABLE,"1,060.02",0,Foster Carers
03/04/2018,Strategic Commissioning Adults,Redacted - Personal Data,RENTS PAYABLE,920.01,0,Foster Carers
03/04/2018,Housing Revenue Account HRA,M & E Solutions Ltd,BUILDING ALTERATIONS AND MATERIALS,723.00,0,CIS
03/04/2018,Strategic Commissioning Adults,Mears Housing Management.,RENTS PAYABLE,953.34,0,Commercial Supplier
03/04/2018,Strategic Commissioning Adults,Mears Housing Management.,RENTS PAYABLE,953.34,0,Commercial Supplier
03/04/2018,Strategic Commissioning Adults,Micks Furniture Discount,"PURCHASE - EQUIPMENT, FURNITURE AND MATERIALS",290.00,0,CIS
03/04/2018,oneSource oS Finance,Morgan Law Partners LLP,AGENCY STAFF,"1,581.25",0,Commercial Supplier
03/04/2018,oneSource oS Finance,Morgan Law Partners LLP,AGENCY STAFF,"2,242.50",0,Commercial Supplier
03/04/2018,oneSource oS Finance,Morgan Law Partners LLP,AGENCY STAFF,"2,242.50",0,Commercial Supplier
03/04/2018,oneSource oS Finance,Morgan Law Partners LLP,AGENCY STAFF,"1,581.25",0,Commercial Supplier
03/04/2018,oneSource oS Finance,Morgan Law Partners LLP,AGENCY STAFF,300.14,0,Commercial Supplier
03/04/2018,oneSource oS Finance,Morgan Law Partners LLP,AGENCY STAFF,"1,500.70",0,Commercial Supplier
03/04/2018,Customer & Strategic Services Public Policy and Research,NCER CIC,MEMBERSHIP AND SUBSCRIPTIONS,"10,587.65",0,Commercial Supplier
03/04/2018,Strategic Commissioning Enforcement and Safety,New Choices for Youth(NCY Trust),STAFF DEVELOPMENT AND TRAINING,"3,000.00",0,Commercial Supplier
03/04/2018,Strategic Commissioning Enforcement and Safety,New Choices for Youth(NCY Trust),STAFF DEVELOPMENT AND TRAINING,"45,000.00",0,Commercial Supplier
03/04/2018,Strategic Commissioning Adults,Nhs Newham Ccg,CONSULTANCY FEES,"18,450.00",0,Supplier
03/04/2018,Strategic Commissioning CYPS,Panoramic Associates Ltd,CONSULTANCY FEES,"2,250.00",0,Commercial Supplier
03/04/2018,Strategic Commissioning CYPS,Redspot Healthcare Services Ltd,AGENCY STAFF,"1,359.00",0,Commercial Supplier
03/04/2018,Strategic Commissioning CYPS,Redspot Healthcare Services Ltd,AGENCY STAFF,"1,359.00",0,Commercial Supplier
03/04/2018,Strategic Commissioning CYPS,Redspot Healthcare Services Ltd,AGENCY STAFF,815.40,0,Commercial Supplier
03/04/2018,Strategic Commissioning CYPS,Redspot Healthcare Services Ltd,AGENCY STAFF,815.40,0,Commercial Supplier
03/04/2018,Strategic Commissioning CYPS,Redspot Healthcare Services Ltd,AGENCY STAFF,"1,087.20",0,Commercial Supplier
03/04/2018,Strategic Commissioning CYPS,Redspot Healthcare Services Ltd,AGENCY STAFF,"1,087.20",0,Commercial Supplier
03/04/2018,Strategic Commissioning CYPS,Redspot Healthcare Services Ltd,AGENCY STAFF,271.80,0,Commercial Supplier
03/04/2018,Strategic Commissioning CYPS,Redspot Healthcare Services Ltd,AGENCY STAFF,"1,087.20",0,Commercial Supplier
03/04/2018,Strategic Commissioning CYPS,Redspot Healthcare Services Ltd,AGENCY STAFF,"1,359.00",0,Commercial Supplier
03/04/2018,Strategic Commissioning CYPS,Redspot Healthcare Services Ltd,AGENCY STAFF,525.48,0,Commercial Supplier
03/04/2018,Strategic Commissioning CYPS,Redspot Healthcare Services Ltd,AGENCY STAFF,761.04,0,Commercial Supplier
03/04/2018,Strategic Commissioning CYPS,Redspot Healthcare Services Ltd,AGENCY STAFF,543.60,0,Commercial Supplier
03/04/2018,Strategic Commissioning CYPS,Redspot Healthcare Services Ltd,AGENCY STAFF,271.80,0,Commercial Supplier
03/04/2018,Dedicated Schools Budget Dedicated Schools Budget,Reeson Education,AGENCY STAFF,"1,250.00",0,Commercial Supplier
03/04/2018,Strategic Commissioning CYPS,Royal Borough of Greenwich,CONSULTANCY FEES,"1,375.10",0,Local Authority Services
03/04/2018,oneSource oS ICT Services,Royal Mail Group Plc,POSTAGE AND COURIER SERVICES,"14,954.63",0,Commercial Supplier
03/04/2018,Regeneration and Planning Planning,Sage Green Safety Ltd,FACILITIES MANAGEMENT,"3,456.00",0,Supplier
03/04/2018,Strategic Commissioning Adults,Sandra Davidson Estate Agents,RENTS PAYABLE,"1,953.00",0,Individuals
03/04/2018,Strategic Commissioning Adults,Smart Hotels Ltd,RENTS PAYABLE,"1,129.00",0,Commercial Supplier
03/04/2018,Strategic Commissioning Adults,Smart Hotels Ltd,RENTS PAYABLE,"1,127.00",0,Commercial Supplier
03/04/2018,Strategic Commissioning Adults,Smart Hotels Ltd,RENTS PAYABLE,"1,129.00",0,Commercial Supplier
03/04/2018,Strategic Commissioning Adults,Smart Hotels Ltd,RENTS PAYABLE,"1,127.00",0,Commercial Supplier
03/04/2018,Regeneration and Planning Economic Regeneration,Stratford Utilities Ltd,ELECTRICITY,"1,120.06",0,Commercial Supplier
03/04/2018,Regeneration and Planning Economic Regeneration,Stratford Utilities Ltd,ELECTRICITY,"1,267.39",0,Commercial Supplier
03/04/2018,Regeneration and Planning Economic Regeneration,Stratford Utilities Ltd,ELECTRICITY,"1,099.09",0,Commercial Supplier
03/04/2018,Dedicated Schools Budget Dedicated Schools Budget,Wandsworth Borough Council,PROFESSIONAL SERVICES - GENERAL,"6,328.73",0,Local Authority Services
03/04/2018,Strategic Commissioning Adults,West Ham Medical Practice Ltd,PAYMENT TO HEALTH AUTHORITIES,936.00,0,Supplier
03/04/2018,Strategic Commissioning CYPS,adam HTT LTd T/A Adam,ADDITIONAL PLACEMENTS - THIRD PARTY,"53,742.61",0,Supplier
03/04/2018,oneSource - Non Shared Asset Management,hsl Compliance Ltd,"MAINTENANCE - EQUIPMENT, FURNITURE AND MATERIALS",325.00,0,CIS
03/04/2018,oneSource - Non Shared Asset Management,hsl Compliance Ltd,"MAINTENANCE - EQUIPMENT, FURNITURE AND MATERIALS",325.00,0,CIS
03/04/2018,oneSource - Non Shared Asset Management,hsl Compliance Ltd,"MAINTENANCE - EQUIPMENT, FURNITURE AND MATERIALS",325.00,0,CIS
04/04/2018,Strategic Commissioning Adults,APL Inclusion Limited,DAYCARE - PRIVATE CONTRACTORS PAYMENT,"3,060.00",0,Commercial Supplier
04/04/2018,Dedicated Schools Budget Dedicated Schools Budget,Altmore Infants School,PAYMENTS TO VOLUNTARY SECTOR,"2,001.00",0,Supplier
04/04/2018,oneSource oS Legal & Governance,Redacted - Personal Data,MISCELLANEOUS EXPENSES,300.00,0,Supplier
04/04/2018,Housing Revenue Account HRA,Angela Piears,LEGAL FEES,375.00,0,Legal Services
04/04/2018,oneSource - Non Shared Asset Management,Aquatronic Group Management PLC,"MAINTENANCE - EQUIPMENT, FURNITURE AND MATERIALS","1,490.00",0,Commercial Supplier
04/04/2018,oneSource - Non Shared Asset Management,Aquatronic Group Management PLC,"MAINTENANCE - EQUIPMENT, FURNITURE AND MATERIALS",716.00,0,Commercial Supplier
04/04/2018,oneSource - Non Shared Asset Management,Aquatronic Group Management PLC,"MAINTENANCE - EQUIPMENT, FURNITURE AND MATERIALS",447.00,0,Commercial Supplier
04/04/2018,oneSource - Non Shared Asset Management,Aquatronic Group Management PLC,"MAINTENANCE - EQUIPMENT, FURNITURE AND MATERIALS",865.00,0,Commercial Supplier
04/04/2018,oneSource - Non Shared Asset Management,Aquatronic Group Management PLC,"MAINTENANCE - EQUIPMENT, FURNITURE AND MATERIALS",507.00,0,Commercial Supplier
04/04/2018,Strategic Commissioning CYPS,Aston Heating Ltd,BUILDING ALTERATIONS AND MATERIALS,378.00,0,CIS
04/04/2018,Strategic Commissioning Adults,Benson Benjamin,PAYMENT TO HEALTH AUTHORITIES,302.30,0,Commercial Supplier
04/04/2018,Strategic Commissioning Adults,Blakeberry Ltd,PAYMENT TO HEALTH AUTHORITIES,"4,689.20",0,Supplier
04/04/2018,Dedicated Schools Budget Dedicated Schools Budget,Blossoms Nursery Ltd,PAYMENTS TO VOLUNTARY SECTOR,"4,437.00",0,Supplier
04/04/2018,Dedicated Schools Budget Dedicated Schools Budget,Busy Angels Day Nursery,PAYMENT TO OTHER ESTABLISHMENTS - GENERAL,660.00,0,Supplier
04/04/2018,Dedicated Schools Budget Dedicated Schools Budget,Busy Bees Day Nursery,PAYMENT TO OTHER ESTABLISHMENTS - GENERAL,"1,099.27",0,Supplier
04/04/2018,Strategic Commissioning CYPS,CACI Ltd,PAYMENT TO HEALTH AUTHORITIES,"2,850.00",0,Commercial Supplier
04/04/2018,Strategic Commissioning CYPS,CACI Ltd,PAYMENT TO HEALTH AUTHORITIES,"1,500.00",0,Commercial Supplier
04/04/2018,Strategic Commissioning Adults,Castle Water Ltd,WATER AND SEWERAGE,"1,107.49",0,Commercial Supplier
04/04/2018,oneSource - Non Shared Asset Management,Castle Water Ltd,OTHER CHARGES TO TENANTS (INCOME),"1,132.49",0,Commercial Supplier
04/04/2018,oneSource - Non Shared Asset Management,Castle Water Ltd,OTHER CHARGES TO TENANTS (INCOME),377.89,0,Commercial Supplier
04/04/2018,oneSource - Non Shared Asset Management,Castle Water Ltd,OTHER CHARGES TO TENANTS (INCOME),455.59,0,Commercial Supplier
04/04/2018,oneSource - Non Shared Asset Management,Castle Water Ltd,OTHER CHARGES TO TENANTS (INCOME),370.74,0,Commercial Supplier
04/04/2018,oneSource - Non Shared Asset Management,Cavendish Media Ltd,"ADVERTISING, PUBLICITY AND MARKETING",725.76,0,Supplier
04/04/2018,Dedicated Schools Budget Dedicated Schools Budget,Chestnut Nursery School Ltd,PAYMENT TO OTHER ESTABLISHMENTS - GENERAL,"14,218.76",0,Commercial Supplier
04/04/2018,Dedicated Schools Budget Dedicated Schools Budget,Chestnut Nursery School Ltd,PAYMENTS TO VOLUNTARY SECTOR,945.40,0,Commercial Supplier
04/04/2018,Dedicated Schools Budget Dedicated Schools Budget,Chestnut Nursery School@Woodgrange,PAYMENTS TO VOLUNTARY SECTOR,"1,902.40",0,Commercial Supplier
04/04/2018,Dedicated Schools Budget Dedicated Schools Budget,Chestnut Nursery School@Woodgrange,PAYMENT TO OTHER ESTABLISHMENTS - GENERAL,267.84,0,Commercial Supplier
04/04/2018,Housing Revenue Account HRA,Civica UK Ltd,ICT SOFTWARE,"25,161.76",0,Commercial Supplier
04/04/2018,Housing Revenue Account HRA,Civica UK Ltd,ICT SOFTWARE,"1,624.48",0,Commercial Supplier
04/04/2018,oneSource - Non Shared Asset Management,Claremore Mechanical Services Limited,BUILDING ALTERATIONS AND MATERIALS,418.52,0,CIS
04/04/2018,oneSource - Non Shared Asset Management,Claremore Mechanical Services Limited,BUILDING ALTERATIONS AND MATERIALS,"1,185.28",0,CIS
04/04/2018,oneSource - Non Shared Asset Management,Claremore Mechanical Services Limited,BUILDING ALTERATIONS AND MATERIALS,315.00,0,CIS
04/04/2018,Housing Revenue Account HRA,Claremore Mechanical Services Limited,RESPONSIVE REPAIRS - MECHANICAL AND ELECTRICAL,305.83,0,CIS
04/04/2018,Dedicated Schools Budget Dedicated Schools Budget,Clever Cloggs Day Nursery Ltd,PAYMENTS TO VOLUNTARY SECTOR,"5,289.60",0,Supplier
04/04/2018,Dedicated Schools Budget Dedicated Schools Budget,Clever Cloggs Day Nursery Ltd,PAYMENT TO OTHER ESTABLISHMENTS - GENERAL,"1,771.20",0,Supplier
04/04/2018,Strategic Commissioning Community and Environment,Community Links Trading Ltd,EVENTS,654.50,0,Commercial Supplier
04/04/2018,Strategic Commissioning Community and Environment,Compactor Rentals Ltd,PROFESSIONAL SERVICES - GENERAL,520.00,0,Commercial Supplier
04/04/2018,Strategic Commissioning Community and Environment,Compactor Rentals Ltd,PROFESSIONAL SERVICES - GENERAL,520.00,0,Commercial Supplier
04/04/2018,Strategic Commissioning Community and Environment,Compactor Rentals Ltd,PROFESSIONAL SERVICES - GENERAL,520.00,0,Commercial Supplier
04/04/2018,Strategic Commissioning Community and Environment,Compactor Rentals Ltd,PROFESSIONAL SERVICES - GENERAL,520.00,0,Commercial Supplier
04/04/2018,Strategic Commissioning Community and Environment,Compactor Rentals Ltd,PROFESSIONAL SERVICES - GENERAL,520.00,0,Commercial Supplier
04/04/2018,Strategic Commissioning Community and Environment,Compactor Rentals Ltd,PROFESSIONAL SERVICES - GENERAL,520.00,0,Commercial Supplier
04/04/2018,Strategic Commissioning Community and Environment,Compactor Rentals Ltd,PROFESSIONAL SERVICES - GENERAL,520.00,0,Commercial Supplier
04/04/2018,Strategic Commissioning Community and Environment,Compactor Rentals Ltd,PROFESSIONAL SERVICES - GENERAL,520.00,0,Commercial Supplier
04/04/2018,Strategic Commissioning Community and Environment,Compactor Rentals Ltd,PROFESSIONAL SERVICES - GENERAL,520.00,0,Commercial Supplier
04/04/2018,Strategic Commissioning Community and Environment,Compactor Rentals Ltd,PROFESSIONAL SERVICES - GENERAL,520.00,0,Commercial Supplier
04/04/2018,Strategic Commissioning Community and Environment,Redacted - Personal Data,SUBSISTENCE,"2,702.34",0,Non Commercial Supplier
04/04/2018,Strategic Commissioning Enforcement and Safety,Concept Solutions People Ltd,ICT MAINTENANCE AND SUPPORT,"37,477.00",0,Commercial Supplier
04/04/2018,Dedicated Schools Budget Dedicated Schools Budget,Cribs Day Nursery,PAYMENTS TO VOLUNTARY SECTOR,"3,132.00",0,Supplier
04/04/2018,Strategic Commissioning Adults,Day Lewis Chemists Ltd,PAYMENT TO HEALTH AUTHORITIES,"1,004.59",0,NHS Bodies
04/04/2018,Strategic Commissioning Adults,Dillon-White Consultancy Ltd,STAFF DEVELOPMENT AND TRAINING,"6,660.00",0,Commercial Supplier
04/04/2018,Strategic Commissioning CYPS,Dormwell Ltd T/A Street Support,ADDITIONAL PLACEMENTS - THIRD PARTY,273.71,0,Foster Carers
04/04/2018,Dedicated Schools Budget Dedicated Schools Budget,Dragonfly Day Nursery Ltd,PAYMENTS TO VOLUNTARY SECTOR,"1,421.00",0,Supplier
04/04/2018,Strategic Commissioning Adults,Duncans Pharmacy,PAYMENT TO HEALTH AUTHORITIES,"1,820.27",0,Supplier
04/04/2018,Strategic Commissioning Community and Environment,E H Roberts-Penet Group Ltd,DIRECT TRANSPORT,624.00,0,Supplier
04/04/2018,Strategic Commissioning Community and Environment,E H Roberts-Penet Group Ltd,DIRECT TRANSPORT,677.36,0,Supplier
04/04/2018,Strategic Commissioning CYPS,Early Start Group Ltd,PRIVATE CONTRACTORS PAYMENT - OTHER,"49,115.00",0,Commercial Supplier
04/04/2018,Dedicated Schools Budget Dedicated Schools Budget,Edith Kerrison Nursery School,GRANTS AND CONTRIBUTIONS,"1,335.50",0,Supplier
04/04/2018,Dedicated Schools Budget Dedicated Schools Budget,Ellen Wilkinson School (Little Ellies),PAYMENT TO OTHER ESTABLISHMENTS - GENERAL,"8,569.95",0,Supplier
04/04/2018,Dedicated Schools Budget Dedicated Schools Budget,Ellen Wilkinson School (Little Ellies),PAYMENTS TO VOLUNTARY SECTOR,"2,175.00",0,Supplier
04/04/2018,Dedicated Schools Budget Dedicated Schools Budget,Elm Court School,PROFESSIONAL SERVICES - GENERAL,"3,302.56",0,Local Authority Services
04/04/2018,Dedicated Schools Budget Dedicated Schools Budget,Elzbieta Jankowsko-Dunaj,PAYMENT TO OTHER ESTABLISHMENTS - GENERAL,381.60,0,Supplier
04/04/2018,Dedicated Schools Budget Dedicated Schools Budget,Fellowship House Childrens Centre,PAYMENTS TO VOLUNTARY SECTOR,"2,575.20",0,Supplier
04/04/2018,Dedicated Schools Budget Dedicated Schools Budget,Foundation For Learning,PAYMENTS TO VOLUNTARY SECTOR,"1,305.00",0,Supplier
04/04/2018,RMS RMS,Golden Plant Hire Ltd,MISCELLANEOUS EXPENSES,"8,977.32",0,CIS
04/04/2018,Dedicated Schools Budget Dedicated Schools Budget,Henritta S O Amoo,PAYMENT TO OTHER ESTABLISHMENTS - GENERAL,"2,692.80",0,Supplier
04/04/2018,Strategic Commissioning CYPS,High Time Tech Consultants Ltd,"PURCHASE - EQUIPMENT, FURNITURE AND MATERIALS",393.65,0,Supplier
04/04/2018,oneSource - Non Shared Asset Management,Horizon Specialist Contracting,BUILDING ALTERATIONS AND MATERIALS,531.82,0,Commercial Supplier
04/04/2018,Dedicated Schools Budget Dedicated Schools Budget,Imaan Pre-School,PAYMENTS TO VOLUNTARY SECTOR,783.00,0,Commercial Supplier
04/04/2018,Strategic Commissioning Enforcement and Safety,J Norman,LEGAL FEES,350.00,0,Supplier
04/04/2018,Strategic Commissioning Enforcement and Safety,J Norman,LEGAL FEES,445.00,0,Supplier
04/04/2018,Strategic Commissioning Enforcement and Safety,J Norman,LEGAL FEES,350.00,0,Supplier
04/04/2018,Housing Revenue Account HRA,J.A. Steel & Son Ltd,COMPENSATION,580.00,0,Commercial Supplier
04/04/2018,Housing Revenue Account HRA,J.A. Steel & Son Ltd,COMPENSATION,860.00,0,Commercial Supplier
04/04/2018,Housing Revenue Account HRA,J.A. Steel & Son Ltd,COMPENSATION,380.00,0,Commercial Supplier
04/04/2018,Housing Revenue Account HRA,J.A. Steel & Son Ltd,COMPENSATION,560.00,0,Commercial Supplier
04/04/2018,Housing Revenue Account HRA,J.A. Steel & Son Ltd,COMPENSATION,640.00,0,Commercial Supplier
04/04/2018,Housing Revenue Account HRA,J.A. Steel & Son Ltd,COMPENSATION,580.00,0,Commercial Supplier
04/04/2018,Housing Revenue Account HRA,J.A. Steel & Son Ltd,COMPENSATION,600.00,0,Commercial Supplier
04/04/2018,Housing Revenue Account HRA,J.A. Steel & Son Ltd,COMPENSATION,350.00,0,Commercial Supplier
04/04/2018,Housing Revenue Account HRA,J.A. Steel & Son Ltd,COMPENSATION,380.00,0,Commercial Supplier
04/04/2018,Housing Revenue Account HRA,J.A. Steel & Son Ltd,COMPENSATION,580.00,0,Commercial Supplier
04/04/2018,Housing Revenue Account HRA,J.A. Steel & Son Ltd,COMPENSATION,580.00,0,Commercial Supplier
04/04/2018,Dedicated Schools Budget Dedicated Schools Budget,Jannatun Nursery Ltd,PAYMENTS TO VOLUNTARY SECTOR,783.00,0,Supplier
04/04/2018,Strategic Commissioning Adults,Jetsol Pharmacy,PAYMENT TO HEALTH AUTHORITIES,279.02,0,Supplier
04/04/2018,Strategic Commissioning Adults,Jetsol Pharmacy,PAYMENT TO HEALTH AUTHORITIES,424.56,0,Supplier
04/04/2018,Customer & Strategic Services Customer Engagement,Just Hire Catering Equip Ltd,CATERING AND VENDING SUPPLIES,"1,284.40",0,Commercial Supplier
04/04/2018,Customer & Strategic Services Customer Engagement,Just Hire Catering Equip Ltd,CATERING AND VENDING SUPPLIES,265.14,0,Commercial Supplier
04/04/2018,Dedicated Schools Budget Dedicated Schools Budget,Kay Rowe Nursery School,GRANTS AND CONTRIBUTIONS,"1,144.80",0,Supplier
04/04/2018,Dedicated Schools Budget Dedicated Schools Budget,Redacted - Personal Data,SCHOOLS - TRANSFER PAYMENT,600.90,0,Supplier
04/04/2018,Strategic Commissioning CYPS,Redacted - Personal Data,SPECIAL GUARDIANSHIP,345.00,0,Foster Carers
04/04/2018,Dedicated Schools Budget Dedicated Schools Budget,Little Bear's 3 Ltd,PAYMENT TO OTHER ESTABLISHMENTS - GENERAL,"1,404.26",0,Supplier
04/04/2018,Dedicated Schools Budget Dedicated Schools Budget,Little Butterflies Day Nursery,PAYMENTS TO VOLUNTARY SECTOR,"2,793.00",0,Supplier
04/04/2018,Dedicated Schools Budget Dedicated Schools Budget,Little Diamonds Ltd,PAYMENTS TO VOLUNTARY SECTOR,609.00,0,Supplier
04/04/2018,Dedicated Schools Budget Dedicated Schools Budget,Little Rainbow Nursery,PAYMENTS TO VOLUNTARY SECTOR,"1,044.00",0,Supplier
04/04/2018,Dedicated Schools Budget Dedicated Schools Budget,Little Rainbow Nursery Limited,PAYMENTS TO VOLUNTARY SECTOR,435.00,0,Supplier
04/04/2018,Dedicated Schools Budget Dedicated Schools Budget,Little Rainbow Nursery Limited,PAYMENT TO OTHER ESTABLISHMENTS - GENERAL,828.50,0,Supplier
04/04/2018,Strategic Commissioning CYPS,MP Training and Consultancy Ltd,STAFF DEVELOPMENT AND TRAINING,"1,277.75",0,Commercial Supplier
04/04/2018,Dedicated Schools Budget Dedicated Schools Budget,Manor Preschool,PAYMENTS TO VOLUNTARY SECTOR,"1,392.00",0,Supplier
04/04/2018,Dedicated Schools Budget Dedicated Schools Budget,Redacted - Personal Data,SCHOOLS - TRANSFER PAYMENT,"1,268.70",0,Supplier
04/04/2018,Strategic Commissioning Enforcement and Safety,Matthew Pardoe,LEGAL FEES,300.00,0,Individuals
04/04/2018,Strategic Commissioning Enforcement and Safety,Matthew Pardoe,LEGAL FEES,300.00,0,Individuals
04/04/2018,Strategic Commissioning Enforcement and Safety,Matthew Pardoe,LEGAL FEES,300.00,0,Individuals
04/04/2018,Strategic Commissioning Enforcement and Safety,Matthew Pardoe,LEGAL FEES,300.00,0,Individuals
04/04/2018,Dedicated Schools Budget Dedicated Schools Budget,Moksliukas Childcare,PAYMENTS TO VOLUNTARY SECTOR,"1,044.00",0,Supplier
04/04/2018,Strategic Commissioning Enforcement and Safety,Mr Damian Powell,LEGAL FEES,325.00,0,Commercial Supplier
04/04/2018,Strategic Commissioning Enforcement and Safety,Mr Damian Powell,LEGAL FEES,325.00,0,Commercial Supplier
04/04/2018,Strategic Commissioning Enforcement and Safety,Mr Damian Powell,LEGAL FEES,325.00,0,Commercial Supplier
04/04/2018,Dedicated Schools Budget Dedicated Schools Budget,Mumma's Day Care,PAYMENT TO OTHER ESTABLISHMENTS - GENERAL,896.40,0,Individuals
04/04/2018,Strategic Commissioning Enforcement and Safety,NPower,ELECTRICITY,"1,940.97",0,Commercial Supplier
04/04/2018,Dedicated Schools Budget Dedicated Schools Budget,Newham Sixth Form College,PROFESSIONAL SERVICES - GENERAL,"75,125.00",0,Non Commercial Supplier
04/04/2018,Dedicated Schools Budget Dedicated Schools Budget,Newham Sixth Form College,PROFESSIONAL SERVICES - GENERAL,"157,667.00",0,Non Commercial Supplier
04/04/2018,Dedicated Schools Budget Dedicated Schools Budget,Newtec,PAYMENTS TO VOLUNTARY SECTOR,"1,044.00",0,Supplier
04/04/2018,Dedicated Schools Budget Dedicated Schools Budget,Newtec,PAYMENT TO OTHER ESTABLISHMENTS - GENERAL,"2,536.80",0,Supplier
04/04/2018,Dedicated Schools Budget Dedicated Schools Budget,Redacted - Personal Data,SCHOOLS - TRANSFER PAYMENT,"1,121.25",0,Supplier
04/04/2018,Dedicated Schools Budget Dedicated Schools Budget,Redacted - Personal Data,SCHOOLS - TRANSFER PAYMENT,387.45,0,Supplier
04/04/2018,Dedicated Schools Budget Dedicated Schools Budget,Newtec,PAYMENT TO OTHER ESTABLISHMENTS - GENERAL,"1,778.40",0,Supplier
04/04/2018,Dedicated Schools Budget Dedicated Schools Budget,Newtec,PAYMENT TO OTHER ESTABLISHMENTS - GENERAL,898.20,0,Supplier
04/04/2018,Dedicated Schools Budget Dedicated Schools Budget,Newtec,PAYMENTS TO VOLUNTARY SECTOR,435.00,0,Supplier
04/04/2018,Dedicated Schools Budget Dedicated Schools Budget,Redacted - Personal Data,SCHOOLS - TRANSFER PAYMENT,949.14,0,Supplier
04/04/2018,Strategic Commissioning CYPS,Redacted - Personal Data,SPECIAL GUARDIANSHIP,346.00,0,Foster Carers
04/04/2018,Strategic Commissioning CYPS,Redacted - Personal Data,SPECIAL GUARDIANSHIP,346.00,0,Foster Carers
04/04/2018,Strategic Commissioning Adults,Northgate Public Services (UK) Limited,CONSULTANCY FEES,"1,182.20",0,Commercial Supplier
04/04/2018,oneSource oS Finance,Northgate Public Services (UK) Limited,CONSULTANCY FEES,"1,000.00",0,Commercial Supplier
04/04/2018,Dedicated Schools Budget Dedicated Schools Budget,Nurtureville Nursery,PAYMENT TO OTHER ESTABLISHMENTS - GENERAL,"3,190.00",0,Supplier
04/04/2018,Dedicated Schools Budget Dedicated Schools Budget,Redacted - Personal Data,SCHOOLS - TRANSFER PAYMENT,449.10,0,Supplier
04/04/2018,Dedicated Schools Budget Dedicated Schools Budget,Ololade Jinadu,PAYMENT TO OTHER ESTABLISHMENTS - GENERAL,896.40,0,Individuals
04/04/2018,Strategic Commissioning CYPS,Panoramic Associates Ltd,CONSULTANCY FEES,"1,800.00",0,Commercial Supplier
04/04/2018,Strategic Commissioning CYPS,Redacted - Personal Data,ADOPTION ALLOWANCE - PRIVATE CONTRACTORS PAYMENT,307.71,0,Foster Carers
04/04/2018,Dedicated Schools Budget Dedicated Schools Budget,Positive Eye Ltd,STAFF DEVELOPMENT AND TRAINING,997.10,0,Non Commercial Supplier
04/04/2018,Dedicated Schools Budget Dedicated Schools Budget,Pre-School Learning Alliance@St Mary's Church,SCHOOLS - TRANSFER PAYMENT,516.45,0,Commercial Supplier
04/04/2018,Dedicated Schools Budget Dedicated Schools Budget,Pre-school Learning Alliance,PAYMENT TO OTHER ESTABLISHMENTS - GENERAL,896.40,0,Non Commercial Supplier
04/04/2018,Dedicated Schools Budget Dedicated Schools Budget,Pre-school Learning Alliance,SCHOOLS - TRANSFER PAYMENT,821.70,0,Non Commercial Supplier
04/04/2018,Strategic Commissioning CYPS,Redacted - Personal Data,ADOPTION ALLOWANCE - PRIVATE CONTRACTORS PAYMENT,334.00,0,Foster Carers
04/04/2018,Customer & Strategic Services Digital Services,Rainmaker Solutions Ltd,ICT SOFTWARE,"184,510.47",0,Commercial Supplier
04/04/2018,Dedicated Schools Budget Dedicated Schools Budget,Rashi Arora,PAYMENT TO OTHER ESTABLISHMENTS - GENERAL,"1,258.44",0,Individuals
04/04/2018,Dedicated Schools Budget Dedicated Schools Budget,Rebecca Cheetham Nursery,GRANTS AND CONTRIBUTIONS,286.20,0,Supplier
04/04/2018,Housing Revenue Account HRA,Reliance High Tech,ICT SOFTWARE,261.36,0,Supplier
04/04/2018,Dedicated Schools Budget Dedicated Schools Budget,Redacted - Personal Data,SCHOOLS - TRANSFER PAYMENT,"3,580.20",0,Supplier
04/04/2018,Dedicated Schools Budget Dedicated Schools Budget,Ronald Openshaw Nursery,PAYMENTS TO VOLUNTARY SECTOR,522.00,0,Supplier
04/04/2018,Strategic Commissioning CYPS,Redacted - Personal Data,ADOPTION ALLOWANCE - PRIVATE CONTRACTORS PAYMENT,288.18,0,Foster Carers
04/04/2018,Dedicated Schools Budget Dedicated Schools Budget,Redacted - Personal Data,SCHOOLS - TRANSFER PAYMENT,"1,113.80",0,Supplier
04/04/2018,Strategic Commissioning Community and Environment,Sanchez Consulting Ltd,CONSULTANCY FEES,"4,256.93",0,Supplier
04/04/2018,Dedicated Schools Budget Dedicated Schools Budget,Sandringham Primary School,PAYMENTS TO VOLUNTARY SECTOR,"4,176.00",0,Supplier
04/04/2018,Dedicated Schools Budget Dedicated Schools Budget,Sandringham Primary School,PAYMENTS TO VOLUNTARY SECTOR,"4,176.00",0,Supplier
04/04/2018,Strategic Commissioning Adults,Scope,RESIDENTIAL PLACEMENTS - PRIVATE CONTRACTORS PAYMENT,"9,847.00",0,Voluntary Organisation
04/04/2018,Dedicated Schools Budget Dedicated Schools Budget,Sheringham Nursery School,PAYMENTS TO VOLUNTARY SECTOR,"2,610.00",0,Supplier
04/04/2018,Strategic Commissioning CYPS,Siemens Financial Services Ltd,PROFESSIONAL SERVICES - GENERAL,287.94,0,Commercial Supplier
04/04/2018,Dedicated Schools Budget Dedicated Schools Budget,Sparrows Trading Company Ltd,PAYMENT TO OTHER ESTABLISHMENTS - GENERAL,523.35,0,Supplier
04/04/2018,Strategic Commissioning CYPS,Sqc Consultancy,CONSULTANCY FEES,600.00,0,Supplier
04/04/2018,Dedicated Schools Budget Dedicated Schools Budget,Redacted - Personal Data,SCHOOLS - TRANSFER PAYMENT,"1,943.10",0,Supplier
04/04/2018,Dedicated Schools Budget Dedicated Schools Budget,St Stephens Nursery School,GRANTS AND CONTRIBUTIONS,667.80,0,Supplier
04/04/2018,oneSource - Non Shared Asset Management,Syntegra Consulting Limited,CONSULTANCY FEES,645.00,0,Commercial Supplier
04/04/2018,Dedicated Schools Budget Dedicated Schools Budget,Redacted - Personal Data,SCHOOLS - TRANSFER PAYMENT,"1,121.55",0,Non Commercial Supplier
04/04/2018,Dedicated Schools Budget Dedicated Schools Budget,The Alphabet Hse Nursery School,PAYMENT TO OTHER ESTABLISHMENTS - GENERAL,"1,277.74",0,Supplier
04/04/2018,Dedicated Schools Budget Dedicated Schools Budget,The Alphabet Hse Nursery School,PAYMENT TO OTHER ESTABLISHMENTS - GENERAL,"4,895.70",0,Supplier
04/04/2018,Dedicated Schools Budget Dedicated Schools Budget,The Alphabet Hse Nursery School,PAYMENT TO OTHER ESTABLISHMENTS - GENERAL,477.00,0,Supplier
04/04/2018,Dedicated Schools Budget Dedicated Schools Budget,Redacted - Personal Data,SCHOOLS - TRANSFER PAYMENT,"1,045.80",0,Supplier
04/04/2018,Dedicated Schools Budget Dedicated Schools Budget,Redacted - Personal Data,SCHOOLS - TRANSFER PAYMENT,369.00,0,Supplier
04/04/2018,Dedicated Schools Budget Dedicated Schools Budget,Redacted - Personal Data,SCHOOLS - TRANSFER PAYMENT,"3,658.50",0,Supplier
04/04/2018,Dedicated Schools Budget Dedicated Schools Budget,Redacted - Personal Data,SCHOOLS - TRANSFER PAYMENT,885.60,0,Supplier
04/04/2018,Dedicated Schools Budget Dedicated Schools Budget,The Alphabet Hse Nursery School,PAYMENT TO OTHER ESTABLISHMENTS - GENERAL,823.35,0,Supplier
04/04/2018,Dedicated Schools Budget Dedicated Schools Budget,Redacted - Personal Data,SCHOOLS - TRANSFER PAYMENT,"1,570.80",0,Supplier
04/04/2018,Dedicated Schools Budget Dedicated Schools Budget,The Learning Circle Pre-School,PAYMENT TO OTHER ESTABLISHMENTS - GENERAL,381.60,0,Supplier
04/04/2018,Dedicated Schools Budget Dedicated Schools Budget,Redacted - Personal Data,SCHOOLS - TRANSFER PAYMENT,"2,263.65",0,Supplier
04/04/2018,Dedicated Schools Budget Dedicated Schools Budget,The Learning Circle Pre-School,PAYMENT TO OTHER ESTABLISHMENTS - GENERAL,"1,195.20",0,Supplier
04/04/2018,Dedicated Schools Budget Dedicated Schools Budget,Redacted - Personal Data,SCHOOLS - TRANSFER PAYMENT,"3,782.70",0,Supplier
04/04/2018,Dedicated Schools Budget Dedicated Schools Budget,Redacted - Personal Data,SCHOOLS - TRANSFER PAYMENT,658.20,0,Supplier
04/04/2018,Dedicated Schools Budget Dedicated Schools Budget,Trinity Centre,PAYMENT TO OTHER ESTABLISHMENTS - GENERAL,"1,785.60",0,Supplier
04/04/2018,Financial Sustainability Financial Sustainability,Trowers & Hamlins LLP,CONSULTANCY FEES,"2,500.00",0,Legal Services
04/04/2018,Customer & Strategic Services Customer Engagement,Uzmaa Butt,ARTS AND LEISURE COSTS,330.00,0,Commercial Supplier
04/04/2018,Strategic Commissioning CYPS,Redacted - Personal Data,ADOPTION ALLOWANCE - PRIVATE CONTRACTORS PAYMENT,420.00,0,Commercial Supplier
04/04/2018,oneSource - Non Shared Asset Management,W Hardy Ltd,BUILDING ALTERATIONS AND MATERIALS,"1,286.00",0,CIS
04/04/2018,Strategic Commissioning CYPS,We/come C.I.C,AGENCY STAFF,"5,600.00",0,Commercial Supplier
04/04/2018,Dedicated Schools Budget Dedicated Schools Budget,Redacted - Personal Data,SCHOOLS - TRANSFER PAYMENT,"3,211.35",0,Supplier
05/04/2018,Strategic Commissioning Adults,Abba Day Care Centre,DAYCARE - PRIVATE CONTRACTORS PAYMENT,"3,920.00",0,Supplier
05/04/2018,RMS RMS,Advanced Building & Maintenance Services Limited,MISCELLANEOUS EXPENSES,"4,874.00",0,CIS
05/04/2018,Strategic Commissioning CYPS,Redacted - Personal Data,IN HOUSE FOSTER CARE PLACEMENTS - PRIVATE CONTRACTORS PAYMENT,725.00,0,Direct Payments
05/04/2018,Strategic Commissioning CYPS,Redacted - Personal Data,IN HOUSE FOSTER CARE PLACEMENTS - PRIVATE CONTRACTORS PAYMENT,725.00,0,Direct Payments
05/04/2018,Strategic Commissioning CYPS,Alpha Care Services Ltd,KINSHIP PLACEMENT - PRIVATE CONTRACTORS PAYMENT,"3,599.99",0,Supplier
05/04/2018,Strategic Commissioning CYPS,Alpha Care Services Ltd,KINSHIP PLACEMENT - PRIVATE CONTRACTORS PAYMENT,"3,199.99",0,Supplier
05/04/2018,Strategic Commissioning CYPS,Alpha Care Services Ltd,KINSHIP PLACEMENT - PRIVATE CONTRACTORS PAYMENT,"3,199.99",0,Supplier
05/04/2018,Strategic Commissioning CYPS,Alpha Care Services Ltd,KINSHIP PLACEMENT - PRIVATE CONTRACTORS PAYMENT,"3,599.99",0,Supplier
05/04/2018,Strategic Commissioning CYPS,Alpha Care Services Ltd,SUPPORTED OTHER ACCOMMODATION - PRIVATE CONTRACTORS PAYMENT,"2,142.86",0,Supplier
05/04/2018,Strategic Commissioning CYPS,Alpha Care Services Ltd,SUPPORTED OTHER ACCOMMODATION - PRIVATE CONTRACTORS PAYMENT,"2,399.99",0,Supplier
05/04/2018,Strategic Commissioning CYPS,Alpha Care Services Ltd,SUPPORTED OTHER ACCOMMODATION - PRIVATE CONTRACTORS PAYMENT,"2,399.99",0,Supplier
05/04/2018,Strategic Commissioning CYPS,Redacted - Personal Data,SPECIAL GUARDIANSHIP,475.00,0,Foster Carers
05/04/2018,Strategic Commissioning CYPS,Redacted - Personal Data,SPECIAL GUARDIANSHIP,475.00,0,Foster Carers
05/04/2018,Strategic Commissioning CYPS,Redacted - Personal Data,SPECIAL GUARDIANSHIP,475.00,0,Foster Carers
05/04/2018,Strategic Commissioning CYPS,Redacted - Personal Data,SPECIAL GUARDIANSHIP,475.00,0,Foster Carers
05/04/2018,Strategic Commissioning CYPS,Redacted - Personal Data,SPECIAL GUARDIANSHIP,475.00,0,Foster Carers
05/04/2018,Strategic Commissioning CYPS,Redacted - Personal Data,SPECIAL GUARDIANSHIP,475.00,0,Foster Carers
05/04/2018,Strategic Commissioning Adults,Apasen.,DAYCARE - PRIVATE CONTRACTORS PAYMENT,550.00,0,Commercial Supplier
05/04/2018,Strategic Commissioning Adults,Apasen.,DAYCARE - PRIVATE CONTRACTORS PAYMENT,"1,133.00",0,Commercial Supplier
05/04/2018,Customer & Strategic Services Customer Engagement,Askews and Holts Library Services Ltd,"BOOKS, PUBLICATIONS AND RESOURCES",684.94,0,Commercial Supplier
05/04/2018,RMS RMS,Avenue Property Construction Limited,MISCELLANEOUS EXPENSES,"5,691.22",0,CIS
05/04/2018,Strategic Commissioning CYPS,Redacted - Personal Data,ADOPTION ALLOWANCE - PRIVATE CONTRACTORS PAYMENT,286.80,0,Foster Carers
05/04/2018,Strategic Commissioning CYPS,Redacted - Personal Data,IN HOUSE FOSTER CARE PLACEMENTS - PRIVATE CONTRACTORS PAYMENT,420.00,0,Foster Carers
05/04/2018,Strategic Commissioning CYPS,Redacted - Personal Data,IN HOUSE FOSTER CARE PLACEMENTS - PRIVATE CONTRACTORS PAYMENT,420.00,0,Foster Carers
05/04/2018,Strategic Commissioning CYPS,Redacted - Personal Data,IN HOUSE FOSTER CARE PLACEMENTS - PRIVATE CONTRACTORS PAYMENT,"3,258.36",0,Commercial Supplier
05/04/2018,Strategic Commissioning CYPS,Redacted - Personal Data,IN HOUSE FOSTER CARE PLACEMENTS - PRIVATE CONTRACTORS PAYMENT,"3,258.36",0,Commercial Supplier
05/04/2018,Strategic Commissioning CYPS,Barnardo's,RESIDENTIAL PLACEMENTS - PRIVATE CONTRACTORS PAYMENT,"2,675.96",0,Commercial Supplier
05/04/2018,Strategic Commissioning CYPS,Redacted - Personal Data,IN HOUSE FOSTER CARE PLACEMENTS - PRIVATE CONTRACTORS PAYMENT,"2,675.96",0,Commercial Supplier
05/04/2018,Strategic Commissioning CYPS,Redacted - Personal Data,IN HOUSE FOSTER CARE PLACEMENTS - PRIVATE CONTRACTORS PAYMENT,"2,675.96",0,Commercial Supplier
05/04/2018,Strategic Commissioning CYPS,Bettertogether Limited,RESIDENTIAL PLACEMENTS - PRIVATE CONTRACTORS PAYMENT,"3,444.00",0,Non Commercial Supplier
05/04/2018,Strategic Commissioning CYPS,Bettertogether Limited,EQUIPMENT & ADAPTATION - PRIVATE CONTRACTORS PAYMENT,"1,832.00",0,Non Commercial Supplier
05/04/2018,Strategic Commissioning Adults,Bio Luminuex Health Care Ltd,DAYCARE - PRIVATE CONTRACTORS PAYMENT,"8,596.88",0,Supplier
05/04/2018,Strategic Commissioning Adults,Bio Luminuex Health Care Ltd,HOME CARE - PRIVATE CONTRACTORS PAYMENT,"77,012.51",0,Supplier
05/04/2018,Strategic Commissioning Adults,Bio Luminuex Health Care Ltd,RESPITE CARE - PRIVATE CONTRACTORS PAYMENT,"2,156.25",0,Supplier
05/04/2018,Strategic Commissioning Adults,British Gas Business,ELECTRICITY,"4,411.62",0,Commercial Supplier
05/04/2018,Strategic Commissioning Adults,British Gas Business,ELECTRICITY,"4,348.20",0,Commercial Supplier
05/04/2018,Strategic Commissioning Adults,British Gas Business,ELECTRICITY,"4,411.62",0,Commercial Supplier
05/04/2018,Strategic Commissioning Adults,British Gas Business,ELECTRICITY,"4,348.20",0,Commercial Supplier
05/04/2018,oneSource oS ICT Services,Bytes Software Services Ltd,ICT SOFTWARE,"24,990.00",0,Non Commercial Supplier
05/04/2018,oneSource oS ICT Services,Bytes Software Services Ltd,ICT SOFTWARE,"418,453.89",0,Non Commercial Supplier
05/04/2018,oneSource oS ICT Services,Bytes Software Services Ltd,ICT SOFTWARE,"93,174.12",0,Non Commercial Supplier
05/04/2018,oneSource oS ICT Services,Bytes Software Services Ltd,ICT SOFTWARE,990.00,0,Non Commercial Supplier
05/04/2018,oneSource oS ICT Services,Bytes Software Services Ltd,ICT SOFTWARE,"3,960.00",0,Non Commercial Supplier
05/04/2018,Strategic Commissioning CYPS,Redacted - Personal Data,ADOPTION ALLOWANCE - PRIVATE CONTRACTORS PAYMENT,465.88,0,Foster Carers
05/04/2018,RMS RMS,CDH Building Services Ltd,MISCELLANEOUS EXPENSES,465.00,0,CIS
05/04/2018,RMS RMS,CDH Building Services Ltd,MISCELLANEOUS EXPENSES,521.05,0,CIS
05/04/2018,RMS RMS,CDH Building Services Ltd,MISCELLANEOUS EXPENSES,405.95,0,CIS
05/04/2018,RMS RMS,CDH Building Services Ltd,MISCELLANEOUS EXPENSES,269.10,0,CIS
05/04/2018,Strategic Commissioning Adults,Care Support,HOME CARE - PRIVATE CONTRACTORS PAYMENT,"71,677.59",0,Commercial Supplier
05/04/2018,Strategic Commissioning CYPS,Redacted - Personal Data,SPECIAL GUARDIANSHIP,383.00,0,Foster Carers
05/04/2018,Strategic Commissioning Community and Environment,Castle Water Ltd,WATER AND SEWERAGE,717.55,0,Commercial Supplier
05/04/2018,Strategic Commissioning CYPS,Redacted - Personal Data,SPECIAL GUARDIANSHIP,553.84,0,Foster Carers
05/04/2018,Strategic Commissioning CYPS,Redacted - Personal Data,ADOPTION ALLOWANCE - PRIVATE CONTRACTORS PAYMENT,323.50,0,Foster Carers
05/04/2018,oneSource - Non Shared LBN Transactional Services,Choicelet,GRANTS AND CONTRIBUTIONS,"1,115.00",0,Commercial Supplier
05/04/2018,Strategic Commissioning CYPS,Redacted - Personal Data,SPECIAL GUARDIANSHIP,377.55,0,Foster Carers
05/04/2018,Strategic Commissioning CYPS,Redacted - Personal Data,SPECIAL GUARDIANSHIP,291.11,0,Foster Carers
05/04/2018,Strategic Commissioning CYPS,DMR Services Ltd,RESIDENTIAL PLACEMENTS - PRIVATE CONTRACTORS PAYMENT,"13,600.00",0,Commercial Supplier
05/04/2018,Strategic Commissioning CYPS,Redacted - Personal Data,SPECIAL GUARDIANSHIP,"1,042.77",0,Foster Carers
05/04/2018,Strategic Commissioning CYPS,Redacted - Personal Data,ADOPTION ALLOWANCE - PRIVATE CONTRACTORS PAYMENT,321.22,0,Foster Carers
05/04/2018,Strategic Commissioning CYPS,Redacted - Personal Data,ADOPTION ALLOWANCE - PRIVATE CONTRACTORS PAYMENT,321.22,0,Foster Carers
05/04/2018,RMS RMS,Door-Stop International Ltd,BUILDING ALTERATIONS AND MATERIALS,443.18,0,Supplier
05/04/2018,Strategic Commissioning CYPS,Redacted - Personal Data,IN HOUSE FOSTER CARE PLACEMENTS - PRIVATE CONTRACTORS PAYMENT,350.00,0,Foster Carers
05/04/2018,Strategic Commissioning CYPS,Redacted - Personal Data,ADOPTION ALLOWANCE - PRIVATE CONTRACTORS PAYMENT,284.62,0,Foster Carers
05/04/2018,Strategic Commissioning CYPS,Redacted - Personal Data,ADOPTION ALLOWANCE - PRIVATE CONTRACTORS PAYMENT,284.62,0,Foster Carers
05/04/2018,Strategic Commissioning CYPS,Redacted - Personal Data,ADOPTION ALLOWANCE - PRIVATE CONTRACTORS PAYMENT,284.62,0,Foster Carers
05/04/2018,Strategic Commissioning CYPS,Ecass - Evolve Care And Support Service,SUPPORTED OTHER ACCOMMODATION - PRIVATE CONTRACTORS PAYMENT,"3,800.00",0,Commercial Supplier
05/04/2018,Strategic Commissioning CYPS,Ecass - Evolve Care And Support Service,SUPPORTED OTHER ACCOMMODATION - PRIVATE CONTRACTORS PAYMENT,"1,400.00",0,Commercial Supplier
05/04/2018,Strategic Commissioning CYPS,Ethical Transitions Ltd,KINSHIP PLACEMENT - PRIVATE CONTRACTORS PAYMENT,"2,879.80",0,Non Commercial Supplier
05/04/2018,Strategic Commissioning CYPS,Ethical Transitions Ltd,SUPPORTED OTHER ACCOMMODATION - PRIVATE CONTRACTORS PAYMENT,"2,000.00",0,Non Commercial Supplier
05/04/2018,Strategic Commissioning CYPS,Redacted - Personal Data,SPECIAL GUARDIANSHIP,321.11,0,Foster Carers
05/04/2018,Regeneration and Planning Economic Regeneration,Family Fund Trading Ltd,CONSULTANCY FEES,"3,608.33",0,Commercial Supplier
05/04/2018,Strategic Commissioning Community and Environment,Fiveways Municipal Vehicle Hire Ltd,DIRECT TRANSPORT,850.00,0,Commercial Supplier
05/04/2018,Strategic Commissioning Community and Environment,Fiveways Municipal Vehicle Hire Ltd,DIRECT TRANSPORT,850.00,0,Commercial Supplier
05/04/2018,Strategic Commissioning Community and Environment,Fiveways Municipal Vehicle Hire Ltd,DIRECT TRANSPORT,850.00,0,Commercial Supplier
05/04/2018,Strategic Commissioning Community and Environment,Fiveways Municipal Vehicle Hire Ltd,DIRECT TRANSPORT,850.00,0,Commercial Supplier
05/04/2018,Strategic Commissioning Community and Environment,Fiveways Municipal Vehicle Hire Ltd,DIRECT TRANSPORT,340.00,0,Commercial Supplier
05/04/2018,Strategic Commissioning CYPS,Footsteps Care Homes Ltd,RESIDENTIAL PLACEMENTS - PRIVATE CONTRACTORS PAYMENT,"13,127.80",0,Commercial Supplier
05/04/2018,Strategic Commissioning CYPS,Footsteps Care Homes Ltd,RESIDENTIAL PLACEMENTS - PRIVATE CONTRACTORS PAYMENT,"10,783.55",0,Commercial Supplier
05/04/2018,Strategic Commissioning CYPS,Footsteps Care Homes Ltd,RESIDENTIAL PLACEMENTS - PRIVATE CONTRACTORS PAYMENT,"13,127.80",0,Commercial Supplier
05/04/2018,Strategic Commissioning CYPS,Footsteps Care Homes Ltd,RESIDENTIAL PLACEMENTS - PRIVATE CONTRACTORS PAYMENT,"13,127.80",0,Commercial Supplier
05/04/2018,Strategic Commissioning CYPS,Footsteps Care Homes Ltd,RESIDENTIAL PLACEMENTS - PRIVATE CONTRACTORS PAYMENT,"13,127.80",0,Commercial Supplier
05/04/2018,RMS RMS,Forest Joinery Essex Ltd,BUILDING ALTERATIONS AND MATERIALS,845.00,0,Supplier
05/04/2018,Strategic Commissioning Adults,Fresenius Kabi Ltd,SPECIALIST EQUIPMENT FOR SERVICE PROVISION,313.93,0,Supplier
05/04/2018,RMS RMS,GB Macks Skips,REFUSE COLLECTION,"2,169.60",0,Commercial Supplier
05/04/2018,RMS RMS,GB Macks Skips,REFUSE COLLECTION,"3,842.40",0,Commercial Supplier
05/04/2018,RMS RMS,GB Macks Skips,REFUSE COLLECTION,"10,575.00",0,Commercial Supplier
05/04/2018,RMS RMS,GB Macks Skips,REFUSE COLLECTION,"10,800.00",0,Commercial Supplier
05/04/2018,Regeneration and Planning Regeneration & Planning,GatenbySanderson Ltd,PROFESSIONAL SERVICES - GENERAL,"4,487.50",0,Commercial Supplier
05/04/2018,Customer & Strategic Services Customer Engagement,Global News,MEMBERSHIP AND SUBSCRIPTIONS,270.30,0,Supplier
05/04/2018,Customer & Strategic Services Customer Engagement,Global News,MEMBERSHIP AND SUBSCRIPTIONS,265.70,0,Supplier
05/04/2018,Customer & Strategic Services Customer Engagement,Global News,MEMBERSHIP AND SUBSCRIPTIONS,281.35,0,Supplier
05/04/2018,Customer & Strategic Services Customer Engagement,Global News,MEMBERSHIP AND SUBSCRIPTIONS,274.95,0,Supplier
05/04/2018,Customer & Strategic Services Customer Engagement,Global News,MEMBERSHIP AND SUBSCRIPTIONS,278.20,0,Supplier
05/04/2018,Customer & Strategic Services Customer Engagement,Global News,MEMBERSHIP AND SUBSCRIPTIONS,268.85,0,Supplier
05/04/2018,Customer & Strategic Services Customer Engagement,Global News,MEMBERSHIP AND SUBSCRIPTIONS,267.40,0,Supplier
05/04/2018,Customer & Strategic Services Customer Engagement,Global News,MEMBERSHIP AND SUBSCRIPTIONS,256.40,0,Supplier
05/04/2018,Strategic Commissioning Adults,Golden Key Support Ltd,HOME CARE - PRIVATE CONTRACTORS PAYMENT,477.00,0,Commercial Supplier
05/04/2018,Strategic Commissioning Adults,Golden Key Support Ltd,HOME CARE - PRIVATE CONTRACTORS PAYMENT,"1,192.50",0,Commercial Supplier
05/04/2018,Strategic Commissioning Adults,Golden Key Support Ltd,HOME CARE - PRIVATE CONTRACTORS PAYMENT,"1,590.00",0,Commercial Supplier
05/04/2018,Strategic Commissioning CYPS,Redacted - Personal Data,ADOPTION ALLOWANCE - PRIVATE CONTRACTORS PAYMENT,291.11,0,Foster Carers
05/04/2018,Strategic Commissioning Adults,Inclusive Care Support Ltd,HOME CARE - PRIVATE CONTRACTORS PAYMENT,840.00,0,Commercial Supplier
05/04/2018,Strategic Commissioning Adults,Inclusive Care Support Ltd,DAYCARE - PRIVATE CONTRACTORS PAYMENT,280.00,0,Commercial Supplier
05/04/2018,Strategic Commissioning CYPS,Inclusive Care Support Ltd,CLIENT SUPPORT - THIRD PARTY,"3,007.00",0,Commercial Supplier
05/04/2018,Strategic Commissioning CYPS,Integrated Fostering Services,RESIDENTIAL PLACEMENTS - PRIVATE CONTRACTORS PAYMENT,468.56,0,Commercial Supplier
05/04/2018,Strategic Commissioning CYPS,International Association Of Book-Keepers,PROFESSIONAL SERVICES - GENERAL,675.00,0,Supplier
05/04/2018,RMS RMS,Investec Asset Finance Plc,RESPONSIVE REPAIRS - MECHANICAL AND ELECTRICAL,460.54,0,Commercial Supplier
05/04/2018,Strategic Commissioning CYPS,Redacted - Personal Data,SPECIAL GUARDIANSHIP,386.85,0,Foster Carers
05/04/2018,Strategic Commissioning Adults,Julia Acott,PRIVATE CONTRACTORS PAYMENT - OTHER,400.00,0,Individuals
05/04/2018,Strategic Commissioning Adults,Julia Acott,PRIVATE CONTRACTORS PAYMENT - OTHER,"3,000.00",0,Individuals
05/04/2018,Housing Revenue Account HRA,Kent County Council (Kcs),ELECTRICITY,"3,855.97",0,Local Authority Services
05/04/2018,Housing Revenue Account HRA,Kent County Council (Kcs),ELECTRICITY,"1,285.99",0,Local Authority Services
05/04/2018,Strategic Commissioning Community and Environment,Kent County Council (Kcs),ELECTRICITY,286.89,0,Local Authority Services
05/04/2018,Strategic Commissioning CYPS,Redacted - Personal Data,IN HOUSE FOSTER CARE PLACEMENTS - PRIVATE CONTRACTORS PAYMENT,"1,195.40",0,Foster Carers
05/04/2018,Strategic Commissioning CYPS,Redacted - Personal Data,IN HOUSE FOSTER CARE PLACEMENTS - PRIVATE CONTRACTORS PAYMENT,275.00,0,Foster Carers
05/04/2018,Strategic Commissioning CYPS,Redacted - Personal Data,IN HOUSE FOSTER CARE PLACEMENTS - PRIVATE CONTRACTORS PAYMENT,275.00,0,Foster Carers
05/04/2018,RMS RMS,Kingsway Stairs Ltd,MISCELLANEOUS EXPENSES,780.00,0,CIS
05/04/2018,Strategic Commissioning Adults,Kisimul Group Ltd,RESIDENTIAL PLACEMENTS - PRIVATE CONTRACTORS PAYMENT,"12,204.52",0,Commercial Supplier
05/04/2018,oneSource - Non Shared Asset Management,L M Installations Ltd,BUILDING ALTERATIONS AND MATERIALS,809.37,0,CIS
05/04/2018,oneSource - Non Shared Asset Management,L M Installations Ltd,BUILDING ALTERATIONS AND MATERIALS,256.30,0,CIS
05/04/2018,oneSource - Non Shared Asset Management,L M Installations Ltd,BUILDING ALTERATIONS AND MATERIALS,811.00,0,CIS
05/04/2018,oneSource - Non Shared Asset Management,L M Installations Ltd,BUILDING ALTERATIONS AND MATERIALS,286.20,0,CIS
05/04/2018,oneSource - Non Shared Asset Management,L M Installations Ltd,BUILDING ALTERATIONS AND MATERIALS,287.86,0,CIS
05/04/2018,oneSource - Non Shared Asset Management,L M Installations Ltd,BUILDING ALTERATIONS AND MATERIALS,345.00,0,CIS
05/04/2018,oneSource - Non Shared Asset Management,L M Installations Ltd,BUILDING ALTERATIONS AND MATERIALS,787.42,0,CIS
05/04/2018,oneSource - Non Shared Asset Management,L M Installations Ltd,BUILDING ALTERATIONS AND MATERIALS,275.94,0,CIS
05/04/2018,oneSource - Non Shared Asset Management,L M Installations Ltd,BUILDING ALTERATIONS AND MATERIALS,569.33,0,CIS
05/04/2018,oneSource - Non Shared Asset Management,L M Installations Ltd,BUILDING ALTERATIONS AND MATERIALS,329.16,0,CIS
05/04/2018,Strategic Commissioning Community and Environment,LB of Tower Hamlets Idea Store,AGENCY STAFF,"45,460.00",0,Commercial Supplier
05/04/2018,RMS RMS,London Network for Pest Solutions Ltd,MISCELLANEOUS EXPENSES,252.00,0,Commercial Supplier
05/04/2018,Strategic Commissioning Adults,Look Ahead Housing and Care Ltd,SUPPORTED OTHER ACCOMMODATION - PRIVATE CONTRACTORS PAYMENT,"3,047.12",0,Commercial Supplier
05/04/2018,Strategic Commissioning Adults,Look Ahead Housing and Care Ltd,SUPPORTED OTHER ACCOMMODATION - PRIVATE CONTRACTORS PAYMENT,"3,047.12",0,Commercial Supplier
05/04/2018,Strategic Commissioning Adults,Look Ahead Housing and Care Ltd,SUPPORTED OTHER ACCOMMODATION - PRIVATE CONTRACTORS PAYMENT,"3,047.12",0,Commercial Supplier
05/04/2018,Strategic Commissioning Adults,Look Ahead Housing and Care Ltd,SUPPORTED OTHER ACCOMMODATION - PRIVATE CONTRACTORS PAYMENT,"3,047.12",0,Commercial Supplier
05/04/2018,Strategic Commissioning Adults,Look Ahead Housing and Care Ltd,SUPPORTED OTHER ACCOMMODATION - PRIVATE CONTRACTORS PAYMENT,"3,047.12",0,Commercial Supplier
05/04/2018,Strategic Commissioning Adults,Look Ahead Housing and Care Ltd,SUPPORTED OTHER ACCOMMODATION - PRIVATE CONTRACTORS PAYMENT,"2,557.64",0,Commercial Supplier
05/04/2018,Strategic Commissioning CYPS,Look Ahead Housing and Care Ltd,CLIENT SUPPORT - THIRD PARTY,577.60,0,Commercial Supplier
05/04/2018,Strategic Commissioning Adults,Look Ahead Housing and Care Ltd,SUPPORTED OTHER ACCOMMODATION - PRIVATE CONTRACTORS PAYMENT,"2,557.64",0,Commercial Supplier
05/04/2018,Strategic Commissioning Adults,Look Ahead Housing and Care Ltd,DAYCARE - PRIVATE CONTRACTORS PAYMENT,501.44,0,Commercial Supplier
05/04/2018,Strategic Commissioning Adults,Look Ahead Housing and Care Ltd,DAYCARE - PRIVATE CONTRACTORS PAYMENT,462.08,0,Commercial Supplier
05/04/2018,Strategic Commissioning Adults,Look Ahead Housing and Care Ltd,SUPPORTED OTHER ACCOMMODATION - PRIVATE CONTRACTORS PAYMENT,"3,047.12",0,Commercial Supplier
05/04/2018,Strategic Commissioning Adults,Look Ahead Housing and Care Ltd,SUPPORTED OTHER ACCOMMODATION - PRIVATE CONTRACTORS PAYMENT,292.56,0,Commercial Supplier
05/04/2018,Strategic Commissioning Adults,Look Ahead Housing and Care Ltd,SUPPORTED OTHER ACCOMMODATION - PRIVATE CONTRACTORS PAYMENT,487.60,0,Commercial Supplier
05/04/2018,Strategic Commissioning Adults,Look Ahead Housing and Care Ltd,SUPPORTED OTHER ACCOMMODATION - PRIVATE CONTRACTORS PAYMENT,"2,557.64",0,Commercial Supplier
05/04/2018,Strategic Commissioning Adults,Look Ahead Housing and Care Ltd,SUPPORTED OTHER ACCOMMODATION - PRIVATE CONTRACTORS PAYMENT,414.46,0,Commercial Supplier
05/04/2018,Strategic Commissioning Adults,Look Ahead Housing and Care Ltd,SUPPORTED OTHER ACCOMMODATION - PRIVATE CONTRACTORS PAYMENT,"2,179.04",0,Commercial Supplier
05/04/2018,Strategic Commissioning Adults,Look Ahead Housing and Care Ltd,SUPPORTED OTHER ACCOMMODATION - PRIVATE CONTRACTORS PAYMENT,"5,272.48",0,Commercial Supplier
05/04/2018,Strategic Commissioning Adults,Look Ahead Housing and Care Ltd,SUPPORTED OTHER ACCOMMODATION - PRIVATE CONTRACTORS PAYMENT,857.08,0,Commercial Supplier
05/04/2018,Strategic Commissioning Adults,Look Ahead Housing and Care Ltd,SUPPORTED OTHER ACCOMMODATION - PRIVATE CONTRACTORS PAYMENT,577.60,0,Commercial Supplier
05/04/2018,Strategic Commissioning Adults,Look Ahead Housing and Care Ltd,SUPPORTED OTHER ACCOMMODATION - PRIVATE CONTRACTORS PAYMENT,"3,212.00",0,Commercial Supplier
05/04/2018,Strategic Commissioning Adults,Look Ahead Housing and Care Ltd,SUPPORTED OTHER ACCOMMODATION - PRIVATE CONTRACTORS PAYMENT,"1,479.52",0,Commercial Supplier
05/04/2018,Strategic Commissioning Adults,Look Ahead Housing and Care Ltd,SUPPORTED OTHER ACCOMMODATION - PRIVATE CONTRACTORS PAYMENT,"8,204.00",0,Commercial Supplier
05/04/2018,Customer & Strategic Services Customer Transactions,Redacted - Personal Data,COMPENSATION,310.00,0,
05/04/2018,RMS RMS,Market Lock & Safe Ltd,BUILDING ALTERATIONS AND MATERIALS,391.88,0,Commercial Supplier
05/04/2018,RMS RMS,Market Lock & Safe Ltd,BUILDING ALTERATIONS AND MATERIALS,287.07,0,Commercial Supplier
05/04/2018,RMS RMS,Market Lock & Safe Ltd,BUILDING ALTERATIONS AND MATERIALS,310.30,0,Commercial Supplier
05/04/2018,Strategic Commissioning CYPS,Redacted - Personal Data,ADOPTION ALLOWANCE - PRIVATE CONTRACTORS PAYMENT,301.11,0,Foster Carers
05/04/2018,oneSource - Non Shared Asset Management,Maybrick Property Maintenance,"MAINTENANCE - EQUIPMENT, FURNITURE AND MATERIALS",849.09,0,Non Commercial Supplier
05/04/2018,oneSource - Non Shared Asset Management,Maybrick Property Maintenance,"MAINTENANCE - EQUIPMENT, FURNITURE AND MATERIALS",413.20,0,Non Commercial Supplier
05/04/2018,oneSource - Non Shared Asset Management,Maybrick Property Maintenance,"MAINTENANCE - EQUIPMENT, FURNITURE AND MATERIALS","2,813.40",0,Non Commercial Supplier
05/04/2018,Strategic Commissioning CYPS,Mr Spencer Keen,LEGAL FEES,"5,000.00",0,Commercial Supplier
05/04/2018,Dedicated Schools Budget Dedicated Schools Budget,Newham Sixth Form College,PROFESSIONAL SERVICES - GENERAL,"157,667.00",0,Non Commercial Supplier
05/04/2018,Strategic Commissioning CYPS,Redacted - Personal Data,IN HOUSE FOSTER CARE PLACEMENTS - PRIVATE CONTRACTORS PAYMENT,300.00,0,Individuals
05/04/2018,Strategic Commissioning CYPS,Redacted - Personal Data,IN HOUSE FOSTER CARE PLACEMENTS - PRIVATE CONTRACTORS PAYMENT,300.00,0,Individuals
05/04/2018,Strategic Commissioning CYPS,Oak House Childrens Home Ltd (Oak Hse),RESIDENTIAL PLACEMENTS - PRIVATE CONTRACTORS PAYMENT,"14,400.00",0,Commercial Supplier
05/04/2018,Strategic Commissioning Adults,P C Knight,PAYMENT TO HEALTH AUTHORITIES,"2,268.00",0,Supplier
05/04/2018,Strategic Commissioning CYPS,Redacted - Personal Data,ADOPTION ALLOWANCE - PRIVATE CONTRACTORS PAYMENT,307.71,0,Foster Carers
05/04/2018,Strategic Commissioning CYPS,Redacted - Personal Data,ADOPTION ALLOWANCE - PRIVATE CONTRACTORS PAYMENT,307.71,0,Foster Carers
05/04/2018,Strategic Commissioning Adults,RSM Top Jobs Ltd,HOME CARE - PRIVATE CONTRACTORS PAYMENT,"1,575.00",0,Commercial Supplier
05/04/2018,Corporate Budgets Central Budgets,Ravenscroft Primary School t/a Boleyn Academy,INSURANCE (EXCL PREMISES AND TRANSPORT),"2,885.00",0,Commercial Supplier
05/04/2018,Strategic Commissioning CYPS,Real Life,RESIDENTIAL PLACEMENTS - PRIVATE CONTRACTORS PAYMENT,"5,000.00",0,Commercial Supplier
05/04/2018,Strategic Commissioning CYPS,Real Life,RESIDENTIAL PLACEMENTS - PRIVATE CONTRACTORS PAYMENT,"2,000.00",0,Commercial Supplier
05/04/2018,Strategic Commissioning Adults,Reed Employment Plc,DAYCARE - PRIVATE CONTRACTORS PAYMENT,365.00,0,Commercial Supplier
05/04/2018,RMS RMS,Rehau Ltd,BUILDING ALTERATIONS AND MATERIALS,426.00,0,Supplier
05/04/2018,RMS RMS,Rehau Ltd,BUILDING ALTERATIONS AND MATERIALS,"1,135.99",0,Supplier
05/04/2018,Strategic Commissioning Adults,Rhythmic Care Uk Ltd,HOME CARE - PRIVATE CONTRACTORS PAYMENT,402.50,0,Commercial Supplier
05/04/2018,Strategic Commissioning CYPS,Right Choice Services Ltd,SUPPORTED OTHER ACCOMMODATION - PRIVATE CONTRACTORS PAYMENT,"2,600.00",0,Foster Carers
05/04/2018,Strategic Commissioning CYPS,Right Choice Services Ltd,SUPPORTED OTHER ACCOMMODATION - PRIVATE CONTRACTORS PAYMENT,"2,600.00",0,Foster Carers
05/04/2018,Strategic Commissioning CYPS,Right Choice Services Ltd,SUPPORTED OTHER ACCOMMODATION - PRIVATE CONTRACTORS PAYMENT,"2,600.00",0,Foster Carers
05/04/2018,Strategic Commissioning CYPS,Right Choice Services Ltd,SUPPORTED OTHER ACCOMMODATION - PRIVATE CONTRACTORS PAYMENT,"2,600.00",0,Foster Carers
05/04/2018,Strategic Commissioning CYPS,Redacted - Personal Data,SPECIAL GUARDIANSHIP,316.30,0,Foster Carers
05/04/2018,oneSource oS ICT Services,Royal Mail Group Plc,POSTAGE AND COURIER SERVICES,"27,246.33",0,Commercial Supplier
05/04/2018,Strategic Commissioning Enforcement and Safety,Ryan Thompson,LEGAL FEES,300.00,0,Supplier
05/04/2018,Strategic Commissioning Enforcement and Safety,Ryan Thompson,LEGAL FEES,300.00,0,Supplier
05/04/2018,Strategic Commissioning Enforcement and Safety,Ryan Thompson,LEGAL FEES,300.00,0,Supplier
05/04/2018,Strategic Commissioning Enforcement and Safety,Ryan Thompson,LEGAL FEES,300.00,0,Supplier
05/04/2018,Strategic Commissioning Enforcement and Safety,Ryan Thompson,LEGAL FEES,475.00,0,Supplier
05/04/2018,Strategic Commissioning Adults,Sahana Jayakumar,LEGAL FEES,840.00,0,Commercial Supplier
05/04/2018,Strategic Commissioning CYPS,Redacted - Personal Data,SPECIAL GUARDIANSHIP,479.70,0,Foster Carers
05/04/2018,Strategic Commissioning CYPS,Redacted - Personal Data,SPECIAL GUARDIANSHIP,479.70,0,Foster Carers
05/04/2018,Strategic Commissioning CYPS,Redacted - Personal Data,ADOPTION ALLOWANCE - PRIVATE CONTRACTORS PAYMENT,350.00,0,Supplier
05/04/2018,Strategic Commissioning CYPS,Redacted - Personal Data,ADOPTION ALLOWANCE - PRIVATE CONTRACTORS PAYMENT,350.00,0,Supplier
05/04/2018,Strategic Commissioning CYPS,Redacted - Personal Data,ADOPTION ALLOWANCE - PRIVATE CONTRACTORS PAYMENT,"1,000.00",0,Supplier
05/04/2018,Strategic Commissioning Adults,Satash Community Care Projects Limited,DAYCARE - PRIVATE CONTRACTORS PAYMENT,558.00,0,Supplier
05/04/2018,Strategic Commissioning Adults,Satash Community Care Projects Limited,DAYCARE - PRIVATE CONTRACTORS PAYMENT,725.40,0,Supplier
05/04/2018,Strategic Commissioning Adults,Satash Community Care Projects Limited,HOME CARE - PRIVATE CONTRACTORS PAYMENT,390.60,0,Supplier
05/04/2018,Strategic Commissioning Adults,Satash Community Care Projects Limited,DAYCARE - PRIVATE CONTRACTORS PAYMENT,"1,116.00",0,Supplier
05/04/2018,Strategic Commissioning CYPS,Redacted - Personal Data,SPECIAL GUARDIANSHIP,800.00,0,Foster Carers
05/04/2018,Strategic Commissioning CYPS,Redacted - Personal Data,SPECIAL GUARDIANSHIP,255.15,0,Foster Carers
05/04/2018,Strategic Commissioning CYPS,Shebahl Support Services Ltd,SUPPORTED OTHER ACCOMMODATION - PRIVATE CONTRACTORS PAYMENT,"2,600.00",0,Supplier
05/04/2018,Strategic Commissioning CYPS,Smartgate Solutions Ltd,ICT SOFTWARE,833.33,0,Commercial Supplier
05/04/2018,RMS RMS,South East Resin Drives Ltd,MISCELLANEOUS EXPENSES,"1,680.00",0,CIS
05/04/2018,Strategic Commissioning Adults,St Mark's Day Service,DAYCARE - PRIVATE CONTRACTORS PAYMENT,"4,480.00",0,Supplier
05/04/2018,Strategic Commissioning CYPS,Supporting Young Futures Ltd,IN HOUSE FOSTER CARE PLACEMENTS - PRIVATE CONTRACTORS PAYMENT,"1,180.00",0,Commercial Supplier
05/04/2018,Strategic Commissioning CYPS,Supporting Young Futures Ltd,SUPPORTED OTHER ACCOMMODATION - PRIVATE CONTRACTORS PAYMENT,"2,200.00",0,Commercial Supplier
05/04/2018,Strategic Commissioning CYPS,Supporting Young Futures Ltd,IN HOUSE FOSTER CARE PLACEMENTS - PRIVATE CONTRACTORS PAYMENT,"1,120.00",0,Commercial Supplier
05/04/2018,Strategic Commissioning CYPS,Supporting Young Futures Ltd,IN HOUSE FOSTER CARE PLACEMENTS - PRIVATE CONTRACTORS PAYMENT,"1,080.00",0,Commercial Supplier
05/04/2018,Strategic Commissioning CYPS,Supporting Young Futures Ltd,KINSHIP PLACEMENT - PRIVATE CONTRACTORS PAYMENT,"1,600.00",0,Commercial Supplier
05/04/2018,Strategic Commissioning CYPS,Supporting Young Futures Ltd,IN HOUSE FOSTER CARE PLACEMENTS - PRIVATE CONTRACTORS PAYMENT,"1,020.00",0,Commercial Supplier
05/04/2018,Strategic Commissioning CYPS,Supporting Young Futures Ltd,SUPPORTED OTHER ACCOMMODATION - PRIVATE CONTRACTORS PAYMENT,"1,020.00",0,Commercial Supplier
05/04/2018,Strategic Commissioning CYPS,Supporting Young Futures Ltd,SUPPORTED OTHER ACCOMMODATION - PRIVATE CONTRACTORS PAYMENT,"1,020.00",0,Commercial Supplier
05/04/2018,Strategic Commissioning CYPS,Supporting Young Futures Ltd,SUPPORTED OTHER ACCOMMODATION - PRIVATE CONTRACTORS PAYMENT,"3,200.00",0,Commercial Supplier
05/04/2018,Strategic Commissioning CYPS,Supporting Young Futures Ltd,SUPPORTED OTHER ACCOMMODATION - PRIVATE CONTRACTORS PAYMENT,"1,120.00",0,Commercial Supplier
05/04/2018,Strategic Commissioning CYPS,Supporting Young Futures Ltd,SUPPORTED OTHER ACCOMMODATION - PRIVATE CONTRACTORS PAYMENT,"1,040.00",0,Commercial Supplier
05/04/2018,Strategic Commissioning CYPS,Supporting Young Futures Ltd,SUPPORTED OTHER ACCOMMODATION - PRIVATE CONTRACTORS PAYMENT,"1,020.00",0,Commercial Supplier
05/04/2018,Strategic Commissioning CYPS,Supporting Young Futures Ltd,SUPPORTED OTHER ACCOMMODATION - PRIVATE CONTRACTORS PAYMENT,"1,040.00",0,Commercial Supplier
05/04/2018,Strategic Commissioning CYPS,Supporting Young Futures Ltd,IN HOUSE FOSTER CARE PLACEMENTS - PRIVATE CONTRACTORS PAYMENT,"1,180.00",0,Commercial Supplier
05/04/2018,Strategic Commissioning CYPS,Redacted - Personal Data,ADOPTION ALLOWANCE - PRIVATE CONTRACTORS PAYMENT,268.44,0,Foster Carers
05/04/2018,Strategic Commissioning CYPS,Redacted - Personal Data,ADOPTION ALLOWANCE - PRIVATE CONTRACTORS PAYMENT,288.18,0,Foster Carers
05/04/2018,Strategic Commissioning CYPS,The Fostering Foundation (Bristol) Limited,IN HOUSE FOSTER CARE PLACEMENTS - PRIVATE CONTRACTORS PAYMENT,"3,000.00",0,Supplier
05/04/2018,Strategic Commissioning CYPS,The Fostering Foundation (Bristol) Limited,IN HOUSE FOSTER CARE PLACEMENTS - PRIVATE CONTRACTORS PAYMENT,"3,000.00",0,Supplier
05/04/2018,Customer & Strategic Services Customer Engagement,Titan Containers A/S,FACILITIES MANAGEMENT,277.50,0,Supplier
05/04/2018,RMS RMS,Totalmobile Ltd,"PURCHASE - EQUIPMENT, FURNITURE AND MATERIALS","94,999.37",0,Supplier
05/04/2018,RMS RMS,Travis Perkins Trading Company Ltd,BUILDING ALTERATIONS AND MATERIALS,"10,179.60",0,Commercial Supplier
05/04/2018,RMS RMS,Travis Perkins Trading Company Ltd,"PURCHASE - EQUIPMENT, FURNITURE AND MATERIALS","251,032.19",0,Commercial Supplier
05/04/2018,Strategic Commissioning CYPS,Redacted - Personal Data,IN HOUSE FOSTER CARE PLACEMENTS - PRIVATE CONTRACTORS PAYMENT,"1,650.98",0,Commercial Supplier
05/04/2018,oneSource - Non Shared Asset Management,W Hardy Ltd,BUILDING ALTERATIONS AND MATERIALS,600.00,0,CIS
05/04/2018,oneSource - Non Shared Asset Management,W Hardy Ltd,BUILDING ALTERATIONS AND MATERIALS,438.00,0,CIS
05/04/2018,RMS RMS,Winkhaus Ltd,BUILDING ALTERATIONS AND MATERIALS,388.16,0,Commercial Supplier
05/04/2018,Strategic Commissioning CYPS,Woodhouse Aftercare,SUPPORTED OTHER ACCOMMODATION - PRIVATE CONTRACTORS PAYMENT,"2,459.80",0,Supplier
05/04/2018,Strategic Commissioning CYPS,Woodhouse Aftercare,CLIENT SUPPORT - THIRD PARTY,"1,500.00",0,Supplier
05/04/2018,Strategic Commissioning CYPS,Redacted - Personal Data,IN HOUSE FOSTER CARE PLACEMENTS - PRIVATE CONTRACTORS PAYMENT,"1,459.88",0,Supplier
05/04/2018,Strategic Commissioning CYPS,Woodhouse Support Services,KINSHIP PLACEMENT - PRIVATE CONTRACTORS PAYMENT,"3,700.00",0,Supplier
05/04/2018,Strategic Commissioning CYPS,Woodhouse Support Services,SUPPORTED OTHER ACCOMMODATION - PRIVATE CONTRACTORS PAYMENT,"1,460.00",0,Supplier
05/04/2018,Strategic Commissioning CYPS,Woodhouse Support Services,SUPPORTED OTHER ACCOMMODATION - PRIVATE CONTRACTORS PAYMENT,"2,600.00",0,Supplier
05/04/2018,Strategic Commissioning CYPS,Young People at Heart Ltd,RESIDENTIAL PLACEMENTS - PRIVATE CONTRACTORS PAYMENT,"2,772.00",0,Commercial Supplier
05/04/2018,Strategic Commissioning Externalised Business Units,Zurich Municipal,INSURANCE (EXCL PREMISES AND TRANSPORT),"8,983.93",0,Commercial Supplier
06/04/2018,Strategic Commissioning CYPS,Redacted - Personal Data,ADOPTION ALLOWANCE - PRIVATE CONTRACTORS PAYMENT,348.60,0,Foster Carers
06/04/2018,Strategic Commissioning CYPS,Redacted - Personal Data,ADOPTION ALLOWANCE - PRIVATE CONTRACTORS PAYMENT,348.60,0,Foster Carers
06/04/2018,Dedicated Schools Budget Dedicated Schools Budget,Altmore Infants School,GRANTS AND CONTRIBUTIONS,572.40,0,Supplier
06/04/2018,oneSource - Non Shared Asset Management,Ashfords LLP,LEGAL FEES,"15,115.08",0,Legal Services
06/04/2018,oneSource - Non Shared Asset Management,Ashfords LLP,LEGAL FEES,"7,591.52",0,Legal Services
06/04/2018,oneSource - Non Shared Asset Management,Ashfords LLP,LEGAL FEES,"2,500.00",0,Legal Services
06/04/2018,oneSource - Non Shared Asset Management,Bloom Procurement Services Ltd,CONSULTANCY FEES,"3,694.74",0,Commercial Supplier
06/04/2018,oneSource oS Business Services,Bloom Procurement Services Ltd,CONSULTANCY FEES,"32,260.00",0,Commercial Supplier
06/04/2018,Strategic Commissioning CYPS,Bloom Procurement Services Ltd,CONSULTANCY FEES,"3,360.00",0,Commercial Supplier
06/04/2018,Dedicated Schools Budget Dedicated Schools Budget,Brampton Primary School,GAS,"2,200.00",0,Local Authority Services
06/04/2018,Dedicated Schools Budget Dedicated Schools Budget,Brampton Primary School,ELECTRICITY,"2,200.00",0,Local Authority Services
06/04/2018,Strategic Commissioning Adults,British Gas Business,ELECTRICITY,"4,114.96",0,Commercial Supplier
06/04/2018,Strategic Commissioning Adults,British Gas Business,ELECTRICITY,"4,114.96",0,Commercial Supplier
06/04/2018,oneSource - Non Shared Asset Management,Building A Future (Newham Schools) Limited,"MAINTENANCE - EQUIPMENT, FURNITURE AND MATERIALS","4,151.63",0,Supplier
06/04/2018,oneSource - Non Shared Asset Management,Building A Future (Newham Schools) Limited,"MAINTENANCE - EQUIPMENT, FURNITURE AND MATERIALS","10,182.46",0,Supplier
06/04/2018,Strategic Commissioning CYPS,Redacted - Personal Data,ADOPTION ALLOWANCE - PRIVATE CONTRACTORS PAYMENT,459.76,0,Foster Carers
06/04/2018,Strategic Commissioning CYPS,Redacted - Personal Data,ADOPTION ALLOWANCE - PRIVATE CONTRACTORS PAYMENT,465.88,0,Foster Carers
06/04/2018,Strategic Commissioning CYPS,Redacted - Personal Data,ADOPTION ALLOWANCE - PRIVATE CONTRACTORS PAYMENT,459.76,0,Foster Carers
06/04/2018,Strategic Commissioning CYPS,Redacted - Personal Data,ADOPTION ALLOWANCE - PRIVATE CONTRACTORS PAYMENT,465.88,0,Foster Carers
06/04/2018,Dedicated Schools Budget Dedicated Schools Budget,Calverton Primary School,PAYMENT TO OTHER ESTABLISHMENTS - GENERAL,"1,771.20",0,Supplier
06/04/2018,Strategic Commissioning CYPS,Cambian Childcare Ltd,RESIDENTIAL PLACEMENTS - PRIVATE CONTRACTORS PAYMENT,"18,458.33",0,Commercial Supplier
06/04/2018,Strategic Commissioning CYPS,Redacted - Personal Data,SPECIAL GUARDIANSHIP,383.00,0,Foster Carers
06/04/2018,Strategic Commissioning CYPS,Redacted - Personal Data,SPECIAL GUARDIANSHIP,383.00,0,Foster Carers
06/04/2018,Strategic Commissioning Adults,Cedar Housing Solutions Ltd,PRIVATE CONTRACTORS PAYMENT - OTHER,"2,000.00",0,Commercial Supplier
06/04/2018,Strategic Commissioning CYPS,Redacted - Personal Data,SPECIAL GUARDIANSHIP,553.84,0,Foster Carers
06/04/2018,Strategic Commissioning CYPS,Redacted - Personal Data,SPECIAL GUARDIANSHIP,553.84,0,Foster Carers
06/04/2018,Dedicated Schools Budget Dedicated Schools Budget,Chadwell Primary School,PROFESSIONAL SERVICES - GENERAL,"2,554.25",0,Commercial Supplier
06/04/2018,Strategic Commissioning Enforcement and Safety,Charter Security Ltd,SECURITY OF PREMISES,"1,834.56",0,Supplier
06/04/2018,Strategic Commissioning Enforcement and Safety,Charter Security Ltd,SECURITY OF PREMISES,"4,374.72",0,Supplier
06/04/2018,Strategic Commissioning Enforcement and Safety,Charter Security Ltd,SECURITY OF PREMISES,"30,474.24",0,Supplier
06/04/2018,Strategic Commissioning Enforcement and Safety,Charter Security Ltd,SECURITY OF PREMISES,"6,616.64",0,Supplier
06/04/2018,Strategic Commissioning Enforcement and Safety,Charter Security Ltd,SECURITY OF PREMISES,"18,912.48",0,Supplier
06/04/2018,Strategic Commissioning Enforcement and Safety,Charter Security Ltd,SECURITY OF PREMISES,"4,999.68",0,Supplier
06/04/2018,Strategic Commissioning CYPS,Redacted - Personal Data,ADOPTION ALLOWANCE - PRIVATE CONTRACTORS PAYMENT,323.50,0,Foster Carers
06/04/2018,Strategic Commissioning CYPS,Redacted - Personal Data,ADOPTION ALLOWANCE - PRIVATE CONTRACTORS PAYMENT,323.50,0,Foster Carers
06/04/2018,oneSource oS ICT Services,Cisilion Ltd,ICT MAINTENANCE AND SUPPORT,"49,950.00",0,Commercial Supplier
06/04/2018,Customer & Strategic Services Customer Engagement,Citysprint (UK) Ltd,POSTAGE AND COURIER SERVICES,558.00,0,Commercial Supplier
06/04/2018,Strategic Commissioning CYPS,Redacted - Personal Data,SPECIAL GUARDIANSHIP,377.55,0,Foster Carers
06/04/2018,Strategic Commissioning CYPS,Redacted - Personal Data,SPECIAL GUARDIANSHIP,377.55,0,Foster Carers
06/04/2018,Strategic Commissioning CYPS,Redacted - Personal Data,SPECIAL GUARDIANSHIP,291.11,0,Foster Carers
06/04/2018,Strategic Commissioning CYPS,Redacted - Personal Data,SPECIAL GUARDIANSHIP,291.11,0,Foster Carers
06/04/2018,oneSource - Non Shared Asset Management,Compass Contract Services (Uk) Ltd,CATERING AND VENDING SUPPLIES,"1,162.85",0,Supplier
06/04/2018,oneSource - Non Shared LBN Transactional Services,Computershare Voucher Services,PROFESSIONAL SERVICES - GENERAL,741.75,0,Commercial Supplier
06/04/2018,Dedicated Schools Budget Dedicated Schools Budget,Connevans Ltd,SPECIALIST EQUIPMENT FOR SERVICE PROVISION,"9,185.00",0,Commercial Supplier
06/04/2018,Strategic Commissioning CYPS,Redacted - Personal Data,SPECIAL GUARDIANSHIP,"1,042.77",0,Foster Carers
06/04/2018,Strategic Commissioning CYPS,Redacted - Personal Data,SPECIAL GUARDIANSHIP,"1,042.77",0,Foster Carers
06/04/2018,Strategic Commissioning CYPS,Redacted - Personal Data,ADOPTION ALLOWANCE - PRIVATE CONTRACTORS PAYMENT,284.62,0,Foster Carers
06/04/2018,Strategic Commissioning CYPS,Redacted - Personal Data,ADOPTION ALLOWANCE - PRIVATE CONTRACTORS PAYMENT,284.62,0,Foster Carers
06/04/2018,Strategic Commissioning CYPS,Redacted - Personal Data,ADOPTION ALLOWANCE - PRIVATE CONTRACTORS PAYMENT,284.62,0,Foster Carers
06/04/2018,Strategic Commissioning CYPS,Redacted - Personal Data,ADOPTION ALLOWANCE - PRIVATE CONTRACTORS PAYMENT,284.62,0,Foster Carers
06/04/2018,Strategic Commissioning CYPS,Redacted - Personal Data,ADOPTION ALLOWANCE - PRIVATE CONTRACTORS PAYMENT,284.62,0,Foster Carers
06/04/2018,Strategic Commissioning CYPS,Redacted - Personal Data,ADOPTION ALLOWANCE - PRIVATE CONTRACTORS PAYMENT,284.62,0,Foster Carers
06/04/2018,Strategic Commissioning Adults,Edwards Duthie Solicitors,LEGAL FEES,"3,990.51",0,Legal Services
06/04/2018,Strategic Commissioning Adults,Edwards Duthie Solicitors,LEGAL FEES,"3,990.51",0,Legal Services
06/04/2018,Strategic Commissioning CYPS,Redacted - Personal Data,SPECIAL GUARDIANSHIP,600.00,0,Individuals
06/04/2018,Strategic Commissioning CYPS,Redacted - Personal Data,SPECIAL GUARDIANSHIP,600.00,0,Individuals
06/04/2018,Dedicated Schools Budget Dedicated Schools Budget,Elzbieta Jankowsko-Dunaj,PAYMENT TO OTHER ESTABLISHMENTS - GENERAL,892.80,0,Supplier
06/04/2018,Strategic Commissioning CYPS,Redacted - Personal Data,SPECIAL GUARDIANSHIP,321.11,0,Foster Carers
06/04/2018,Strategic Commissioning CYPS,Redacted - Personal Data,SPECIAL GUARDIANSHIP,321.11,0,Foster Carers
06/04/2018,Strategic Commissioning CYPS,Family Action Enterprises Ltd,HEALTH AND SAFETY WORKS,"10,000.00",0,Commercial Supplier
06/04/2018,Strategic Commissioning CYPS,Family Action Enterprises Ltd,HEALTH AND SAFETY WORKS,"10,000.00",0,Commercial Supplier
06/04/2018,Strategic Commissioning CYPS,Family Action Enterprises Ltd,HEALTH AND SAFETY WORKS,"10,000.00",0,Commercial Supplier
06/04/2018,Strategic Commissioning CYPS,Family Action Enterprises Ltd,HEALTH AND SAFETY WORKS,"10,000.00",0,Commercial Supplier
06/04/2018,Strategic Commissioning Community and Environment,Fiveways Municipal Vehicle Hire Ltd,DIRECT TRANSPORT,850.00,0,Commercial Supplier
06/04/2018,Strategic Commissioning CYPS,Focus On Fostering Ltd,RESIDENTIAL PLACEMENTS - PRIVATE CONTRACTORS PAYMENT,"1,757.60",0,Supplier
06/04/2018,Strategic Commissioning CYPS,Green Light Supported Ltd,RENTS PAYABLE,"1,243.00",0,Commercial Supplier
06/04/2018,Strategic Commissioning CYPS,Redacted - Personal Data,ADOPTION ALLOWANCE - PRIVATE CONTRACTORS PAYMENT,291.11,0,Foster Carers
06/04/2018,Strategic Commissioning CYPS,Redacted - Personal Data,ADOPTION ALLOWANCE - PRIVATE CONTRACTORS PAYMENT,291.11,0,Foster Carers
06/04/2018,Strategic Commissioning CYPS,Inclusive Care Support Ltd,SUPPORTED OTHER ACCOMMODATION - PRIVATE CONTRACTORS PAYMENT,"3,007.00",0,Commercial Supplier
06/04/2018,Strategic Commissioning CYPS,Inclusive Care Support Ltd,SUPPORTED OTHER ACCOMMODATION - PRIVATE CONTRACTORS PAYMENT,"3,312.57",0,Commercial Supplier
06/04/2018,Strategic Commissioning CYPS,Inclusive Care Support Ltd,SUPPORTED OTHER ACCOMMODATION - PRIVATE CONTRACTORS PAYMENT,"3,007.00",0,Commercial Supplier
06/04/2018,Strategic Commissioning CYPS,Redacted - Personal Data,SPECIAL GUARDIANSHIP,257.27,0,Foster Carers
06/04/2018,Strategic Commissioning CYPS,Redacted - Personal Data,SPECIAL GUARDIANSHIP,257.27,0,Foster Carers
06/04/2018,Strategic Commissioning CYPS,Redacted - Personal Data,SPECIAL GUARDIANSHIP,386.85,0,Foster Carers
06/04/2018,Strategic Commissioning CYPS,Redacted - Personal Data,SPECIAL GUARDIANSHIP,386.85,0,Foster Carers
06/04/2018,Strategic Commissioning CYPS,Jon Stroud Ltd,PAYMENTS TO VOLUNTARY SECTOR,"4,718.22",0,Supplier
06/04/2018,Strategic Commissioning CYPS,Jon Stroud Ltd,PAYMENTS TO VOLUNTARY SECTOR,"3,629.97",0,Supplier
06/04/2018,Dedicated Schools Budget Dedicated Schools Budget,Kaizen Primary School t/a EKO Trust,PAYMENT TO OTHER ESTABLISHMENTS - GENERAL,"1,108.05",0,Commercial Supplier
06/04/2018,oneSource - Non Shared Asset Management,L M Installations Ltd,BUILDING ALTERATIONS AND MATERIALS,986.60,0,CIS
06/04/2018,oneSource - Non Shared Asset Management,L M Installations Ltd,BUILDING ALTERATIONS AND MATERIALS,406.08,0,CIS
06/04/2018,oneSource - Non Shared Asset Management,L M Installations Ltd,BUILDING ALTERATIONS AND MATERIALS,251.60,0,CIS
06/04/2018,oneSource - Non Shared Asset Management,L M Installations Ltd,BUILDING ALTERATIONS AND MATERIALS,339.17,0,CIS
06/04/2018,oneSource - Non Shared Asset Management,L M Installations Ltd,BUILDING ALTERATIONS AND MATERIALS,358.15,0,CIS
06/04/2018,oneSource - Non Shared Asset Management,L M Installations Ltd,BUILDING ALTERATIONS AND MATERIALS,257.00,0,CIS
06/04/2018,oneSource - Non Shared Asset Management,L M Installations Ltd,BUILDING ALTERATIONS AND MATERIALS,387.70,0,CIS
06/04/2018,oneSource - Non Shared Asset Management,L M Installations Ltd,BUILDING ALTERATIONS AND MATERIALS,357.72,0,CIS
06/04/2018,oneSource - Non Shared Asset Management,L M Installations Ltd,BUILDING ALTERATIONS AND MATERIALS,491.28,0,CIS
06/04/2018,oneSource - Non Shared Asset Management,L M Installations Ltd,BUILDING ALTERATIONS AND MATERIALS,287.87,0,CIS
06/04/2018,Dedicated Schools Budget Dedicated Schools Budget,LBN Oliver Thomas School,PAYMENT TO OTHER ESTABLISHMENTS - GENERAL,885.60,0,Supplier
06/04/2018,Dedicated Schools Budget Dedicated Schools Budget,Lathom Primary,PRINTING,"2,950.54",0,Supplier
06/04/2018,Strategic Commissioning CYPS,Redacted - Personal Data,SPECIAL GUARDIANSHIP,345.00,0,Foster Carers
06/04/2018,Strategic Commissioning CYPS,Redacted - Personal Data,SPECIAL GUARDIANSHIP,345.00,0,Foster Carers
06/04/2018,Strategic Commissioning CYPS,Redacted - Personal Data,ADOPTION ALLOWANCE - PRIVATE CONTRACTORS PAYMENT,257.27,0,Foster Carers
06/04/2018,Strategic Commissioning CYPS,Redacted - Personal Data,ADOPTION ALLOWANCE - PRIVATE CONTRACTORS PAYMENT,257.27,0,Foster Carers
06/04/2018,Strategic Commissioning CYPS,Redacted - Personal Data,ADOPTION ALLOWANCE - PRIVATE CONTRACTORS PAYMENT,301.11,0,Foster Carers
06/04/2018,Strategic Commissioning CYPS,Redacted - Personal Data,ADOPTION ALLOWANCE - PRIVATE CONTRACTORS PAYMENT,301.11,0,Foster Carers
06/04/2018,Strategic Commissioning Adults,Minster Care Group,NURSING HOMES - PRIVATE CONTRACTORS PAYMENT,"10,528.80",0,Commercial Supplier
06/04/2018,RMS RMS,Navman Wireless Uk Ltd,DIRECT TRANSPORT,"6,109.96",0,Commercial Supplier
06/04/2018,Strategic Commissioning Community and Environment,Navman Wireless Uk Ltd,DIRECT TRANSPORT,563.00,0,Commercial Supplier
06/04/2018,RMS RMS,Navman Wireless Uk Ltd,DIRECT TRANSPORT,563.00,0,Commercial Supplier
06/04/2018,oneSource - Non Shared Asset Management,Newham Learning Partnership (Project Co) Limited,"MAINTENANCE - EQUIPMENT, FURNITURE AND MATERIALS","17,059.50",0,Supplier
06/04/2018,oneSource - Non Shared Asset Management,Newham Learning Partnership (Project Co) Limited,"MAINTENANCE - EQUIPMENT, FURNITURE AND MATERIALS","25,543.59",0,Supplier
06/04/2018,Customer & Strategic Services Customer Transactions,Newlyn Plc,DEBT COLLECTION AND RECOVERY COSTS,820.87,0,Commercial Supplier
06/04/2018,Customer & Strategic Services Customer Transactions,Newlyn Plc,DEBT COLLECTION AND RECOVERY COSTS,820.87,0,Commercial Supplier
06/04/2018,Strategic Commissioning CYPS,Redacted - Personal Data,SPECIAL GUARDIANSHIP,346.00,0,Foster Carers
06/04/2018,Strategic Commissioning CYPS,Redacted - Personal Data,SPECIAL GUARDIANSHIP,346.00,0,Foster Carers
06/04/2018,Strategic Commissioning CYPS,Redacted - Personal Data,SPECIAL GUARDIANSHIP,346.00,0,Foster Carers
06/04/2018,Strategic Commissioning CYPS,Redacted - Personal Data,SPECIAL GUARDIANSHIP,346.00,0,Foster Carers
06/04/2018,Strategic Commissioning Adults,North Middlesex University Hospital NHS Trust,PAYMENTS TO VOLUNTARY SECTOR,381.00,0,NHS Bodies
06/04/2018,Strategic Commissioning Community and Environment,Northgate Vehicle Hire Ltd,VEHICLE HIRE,273.21,0,Non Commercial Supplier
06/04/2018,Strategic Commissioning Community and Environment,Northgate Vehicle Hire Ltd,VEHICLE HIRE,615.55,0,Non Commercial Supplier
06/04/2018,Strategic Commissioning Community and Environment,Northgate Vehicle Hire Ltd,VEHICLE HIRE,345.02,0,Non Commercial Supplier
06/04/2018,Strategic Commissioning Community and Environment,Northgate Vehicle Hire Ltd,VEHICLE HIRE,273.21,0,Non Commercial Supplier
06/04/2018,Strategic Commissioning Community and Environment,Northgate Vehicle Hire Ltd,VEHICLE HIRE,273.21,0,Non Commercial Supplier
06/04/2018,Strategic Commissioning Community and Environment,Northgate Vehicle Hire Ltd,VEHICLE HIRE,499.34,0,Non Commercial Supplier
06/04/2018,Strategic Commissioning Community and Environment,Northgate Vehicle Hire Ltd,VEHICLE HIRE,273.21,0,Non Commercial Supplier
06/04/2018,Strategic Commissioning Community and Environment,Northgate Vehicle Hire Ltd,VEHICLE HIRE,273.21,0,Non Commercial Supplier
06/04/2018,Strategic Commissioning Community and Environment,Northgate Vehicle Hire Ltd,VEHICLE HIRE,273.21,0,Non Commercial Supplier
06/04/2018,Strategic Commissioning Community and Environment,Northgate Vehicle Hire Ltd,VEHICLE HIRE,273.21,0,Non Commercial Supplier
06/04/2018,Strategic Commissioning Community and Environment,Northgate Vehicle Hire Ltd,VEHICLE HIRE,744.00,0,Non Commercial Supplier
06/04/2018,Strategic Commissioning Community and Environment,Northgate Vehicle Hire Ltd,VEHICLE HIRE,345.02,0,Non Commercial Supplier
06/04/2018,Strategic Commissioning Community and Environment,Northgate Vehicle Hire Ltd,VEHICLE HIRE,506.78,0,Non Commercial Supplier
06/04/2018,Strategic Commissioning Community and Environment,Northgate Vehicle Hire Ltd,VEHICLE HIRE,273.21,0,Non Commercial Supplier
06/04/2018,Strategic Commissioning Community and Environment,Northgate Vehicle Hire Ltd,VEHICLE HIRE,499.34,0,Non Commercial Supplier
06/04/2018,Strategic Commissioning Community and Environment,Northgate Vehicle Hire Ltd,VEHICLE HIRE,506.78,0,Non Commercial Supplier
06/04/2018,Strategic Commissioning Community and Environment,Northgate Vehicle Hire Ltd,VEHICLE HIRE,615.55,0,Non Commercial Supplier
06/04/2018,Strategic Commissioning Community and Environment,Northgate Vehicle Hire Ltd,VEHICLE HIRE,615.55,0,Non Commercial Supplier
06/04/2018,Strategic Commissioning Community and Environment,Northgate Vehicle Hire Ltd,VEHICLE HIRE,397.80,0,Non Commercial Supplier
06/04/2018,Strategic Commissioning Community and Environment,Northgate Vehicle Hire Ltd,VEHICLE HIRE,345.02,0,Non Commercial Supplier
06/04/2018,Strategic Commissioning Community and Environment,Northgate Vehicle Hire Ltd,VEHICLE HIRE,345.02,0,Non Commercial Supplier
06/04/2018,Strategic Commissioning Community and Environment,Northgate Vehicle Hire Ltd,VEHICLE HIRE,345.02,0,Non Commercial Supplier
06/04/2018,Strategic Commissioning Community and Environment,Northgate Vehicle Hire Ltd,VEHICLE HIRE,506.78,0,Non Commercial Supplier
06/04/2018,Strategic Commissioning Enforcement and Safety,Openview Security Solutions Ltd,SECURITY SERVICES (EXCLUDING PREMISES),"6,180.00",0,Commercial Supplier
06/04/2018,Strategic Commissioning Enforcement and Safety,Openview Security Solutions Ltd,SECURITY SERVICES (EXCLUDING PREMISES),"18,206.44",0,Commercial Supplier
06/04/2018,Strategic Commissioning Enforcement and Safety,Openview Security Solutions Ltd,SECURITY SERVICES (EXCLUDING PREMISES),"13,226.44",0,Commercial Supplier
06/04/2018,oneSource oS Asset Management Services,Penna Plc.,"ADVERTISING, PUBLICITY AND MARKETING","17,100.00",0,Supplier
06/04/2018,Strategic Commissioning CYPS,Redacted - Personal Data,RENTS PAYABLE,"1,243.00",0,Individuals
06/04/2018,Strategic Commissioning Adults,Practicus Ltd,CONSULTANCY FEES,"12,700.00",0,Commercial Supplier
06/04/2018,Strategic Commissioning Adults,Preventx Integrated Diagnostics Ltd,PAYMENT TO HEALTH AUTHORITIES,798.00,0,Commercial Supplier
06/04/2018,Strategic Commissioning Community and Environment,Project Centre Ltd,PROFESSIONAL SERVICES - GENERAL,"6,623.75",0,Commercial Supplier
06/04/2018,Strategic Commissioning Community and Environment,Project Centre Ltd,PROFESSIONAL SERVICES - GENERAL,"6,353.64",0,Commercial Supplier
06/04/2018,Strategic Commissioning CYPS,Redacted - Personal Data,ADOPTION ALLOWANCE - PRIVATE CONTRACTORS PAYMENT,334.00,0,Foster Carers
06/04/2018,Strategic Commissioning CYPS,Redacted - Personal Data,ADOPTION ALLOWANCE - PRIVATE CONTRACTORS PAYMENT,334.00,0,Foster Carers
06/04/2018,Dedicated Schools Budget Dedicated Schools Budget,Rebecca Cheetham Nursery,PAYMENT TO OTHER ESTABLISHMENTS - GENERAL,"1,771.20",0,Supplier
06/04/2018,Strategic Commissioning CYPS,Rebecca Cheetham Nursery,PROFESSIONAL SERVICES - GENERAL,"4,800.00",0,Supplier
06/04/2018,Strategic Commissioning CYPS,Redspot Healthcare Services Ltd,AGENCY STAFF,"1,218.75",0,Commercial Supplier
06/04/2018,Strategic Commissioning CYPS,Redspot Healthcare Services Ltd,AGENCY STAFF,"1,087.20",0,Commercial Supplier
06/04/2018,Strategic Commissioning CYPS,Redspot Healthcare Services Ltd,AGENCY STAFF,"1,087.20",0,Commercial Supplier
06/04/2018,Strategic Commissioning CYPS,Redspot Healthcare Services Ltd,AGENCY STAFF,731.25,0,Commercial Supplier
06/04/2018,Strategic Commissioning CYPS,Redacted - Personal Data,SPECIAL GUARDIANSHIP,316.30,0,Foster Carers
06/04/2018,Strategic Commissioning CYPS,Redacted - Personal Data,SPECIAL GUARDIANSHIP,316.30,0,Foster Carers
06/04/2018,Dedicated Schools Budget Dedicated Schools Budget,Ronald Openshaw Nursery,PAYMENT TO OTHER ESTABLISHMENTS - GENERAL,"2,509.20",0,Supplier
06/04/2018,Dedicated Schools Budget Dedicated Schools Budget,Ronald Openshaw Nursery,PROFESSIONAL SERVICES - GENERAL,"2,910.00",0,Supplier
06/04/2018,Strategic Commissioning CYPS,Redacted - Personal Data,RENTS PAYABLE,"1,243.58",0,Non Commercial Supplier
06/04/2018,Strategic Commissioning CYPS,Redacted - Personal Data,SPECIAL GUARDIANSHIP,800.00,0,Foster Carers
06/04/2018,Strategic Commissioning CYPS,Redacted - Personal Data,SPECIAL GUARDIANSHIP,800.00,0,Foster Carers
06/04/2018,Dedicated Schools Budget Dedicated Schools Budget,Selwyn Primary School t/a Leading Learning Trust,PAYMENT TO OTHER ESTABLISHMENTS - GENERAL,442.80,0,Commercial Supplier
06/04/2018,Strategic Commissioning CYPS,Redacted - Personal Data,SPECIAL GUARDIANSHIP,255.15,0,Foster Carers
06/04/2018,Strategic Commissioning CYPS,Redacted - Personal Data,SPECIAL GUARDIANSHIP,255.15,0,Foster Carers
06/04/2018,Strategic Commissioning CYPS,Redacted - Personal Data,SPECIAL GUARDIANSHIP,255.15,0,Foster Carers
06/04/2018,Strategic Commissioning CYPS,Sheringham Nursery School,PROFESSIONAL SERVICES - GENERAL,"1,600.00",0,Supplier
06/04/2018,Dedicated Schools Budget Dedicated Schools Budget,Sheringham Nursery School,PAYMENTS TO VOLUNTARY SECTOR,"8,707.00",0,Supplier
06/04/2018,Regeneration and Planning Planning,Squibb & (Demolition) Ltd,"MAINTENANCE - EQUIPMENT, FURNITURE AND MATERIALS","2,676.84",0,CIS
06/04/2018,Dedicated Schools Budget Dedicated Schools Budget,St Francis RC Primary School,PAYMENT TO PRIVATE SECTOR LANDLORDS (PSL),435.00,0,Supplier
06/04/2018,Dedicated Schools Budget Dedicated Schools Budget,St Francis RC Primary School,PAYMENT TO OTHER ESTABLISHMENTS - GENERAL,"6,715.50",0,Supplier
06/04/2018,Dedicated Schools Budget Dedicated Schools Budget,St Stephens Nursery School,PAYMENT TO OTHER ESTABLISHMENTS - GENERAL,"3,542.40",0,Supplier
06/04/2018,Housing Revenue Account HRA,Stannah Lift Services Ltd,RESPONSIVE REPAIRS - MECHANICAL AND ELECTRICAL,368.68,0,Non Commercial Supplier
06/04/2018,Housing Revenue Account HRA,Stannah Lift Services Ltd,RESPONSIVE REPAIRS - MECHANICAL AND ELECTRICAL,525.65,0,Non Commercial Supplier
06/04/2018,oneSource - Non Shared Asset Management,Strutt & Parker.,LEGAL FEES,"3,600.00",0,Commercial Supplier
06/04/2018,Strategic Commissioning CYPS,Redacted - Personal Data,ADOPTION ALLOWANCE - PRIVATE CONTRACTORS PAYMENT,268.44,0,Foster Carers
06/04/2018,Strategic Commissioning CYPS,Redacted - Personal Data,ADOPTION ALLOWANCE - PRIVATE CONTRACTORS PAYMENT,268.44,0,Foster Carers
06/04/2018,Strategic Commissioning CYPS,Redacted - Personal Data,ADOPTION ALLOWANCE - PRIVATE CONTRACTORS PAYMENT,288.18,0,Foster Carers
06/04/2018,Strategic Commissioning CYPS,Redacted - Personal Data,ADOPTION ALLOWANCE - PRIVATE CONTRACTORS PAYMENT,288.18,0,Foster Carers
06/04/2018,Strategic Commissioning Community and Environment,The World Larder Ltd T/A The Larder,CATERING SERVICES,"2,166.66",0,Commercial Supplier
06/04/2018,Dedicated Schools Budget Dedicated Schools Budget,Upton Cross Primary School t/a Learning in Harmony,PAYMENT TO OTHER ESTABLISHMENTS - GENERAL,885.60,0,Supplier
06/04/2018,Dedicated Schools Budget Dedicated Schools Budget,Upton Cross Primary School t/a Learning in Harmony,PAYMENT TO OTHER ESTABLISHMENTS - GENERAL,885.60,0,Supplier
06/04/2018,Strategic Commissioning CYPS,Redacted - Personal Data,SPECIAL GUARDIANSHIP,332.15,0,Foster Carers
06/04/2018,Strategic Commissioning CYPS,Redacted - Personal Data,SPECIAL GUARDIANSHIP,332.15,0,Foster Carers
06/04/2018,Strategic Commissioning Enforcement and Safety,WSP UK Ltd,"PURCHASE - EQUIPMENT, FURNITURE AND MATERIALS","63,229.89",0,Commercial Supplier
06/04/2018,Strategic Commissioning Enforcement and Safety,WSP UK Ltd,"PURCHASE - EQUIPMENT, FURNITURE AND MATERIALS","263,621.26",0,Commercial Supplier
06/04/2018,Strategic Commissioning CYPS,Xchange Property Services Ltd,SUPPORTED OTHER ACCOMMODATION - PRIVATE CONTRACTORS PAYMENT,"1,640.00",0,Commercial Supplier
06/04/2018,Strategic Commissioning CYPS,Xchange Property Services Ltd,SUPPORTED OTHER ACCOMMODATION - PRIVATE CONTRACTORS PAYMENT,"1,640.00",0,Commercial Supplier
06/04/2018,Strategic Commissioning CYPS,Xchange Property Services Ltd,SUPPORTED OTHER ACCOMMODATION - PRIVATE CONTRACTORS PAYMENT,"1,640.00",0,Commercial Supplier
06/04/2018,Strategic Commissioning CYPS,Xchange Property Services Ltd,SUPPORTED OTHER ACCOMMODATION - PRIVATE CONTRACTORS PAYMENT,"1,640.00",0,Commercial Supplier
06/04/2018,Strategic Commissioning CYPS,adam HTT LTd T/A Adam,ADDITIONAL PLACEMENTS - THIRD PARTY,"19,414.95",0,Supplier
09/04/2018,Strategic Commissioning CYPS,Redacted - Personal Data,VEHICLE HIRE,308.00,0,Individuals
09/04/2018,oneSource - Non Shared Asset Management,Allen-Martin Conservation Ltd,ICT MAINTENANCE AND SUPPORT,300.00,0,Supplier
09/04/2018,Strategic Commissioning CYPS,Redacted - Personal Data,VEHICLE HIRE,630.00,0,Non Commercial Supplier
09/04/2018,Strategic Commissioning CYPS,Archant Regional Ltd,EVENTS,"2,500.00",0,Non Commercial Supplier
09/04/2018,Strategic Commissioning Adults,Ask Care Ltd,HOME CARE - PRIVATE CONTRACTORS PAYMENT,700.00,0,Supplier
09/04/2018,Strategic Commissioning CYPS,Redacted - Personal Data,ADOPTION ALLOWANCE - PRIVATE CONTRACTORS PAYMENT,286.80,0,Foster Carers
09/04/2018,Strategic Commissioning CYPS,Redacted - Personal Data,ADOPTION ALLOWANCE - PRIVATE CONTRACTORS PAYMENT,286.80,0,Foster Carers
09/04/2018,Strategic Commissioning CYPS,Barnardo's,RESIDENTIAL PLACEMENTS - PRIVATE CONTRACTORS PAYMENT,"2,675.96",0,Commercial Supplier
09/04/2018,Strategic Commissioning Adults,Bloom Procurement Services Ltd,CONSULTANCY FEES,"9,397.74",0,Commercial Supplier
09/04/2018,oneSource oS ICT Services,Bloom Procurement Services Ltd,CONSULTANCY FEES,"9,598.00",0,Commercial Supplier
09/04/2018,oneSource oS ICT Services,Bloom Procurement Services Ltd,CONSULTANCY FEES,"4,037.50",0,Commercial Supplier
09/04/2018,oneSource oS Finance,Bloom Procurement Services Ltd,CONSULTANCY FEES,"10,526.32",0,Commercial Supplier
09/04/2018,Strategic Commissioning CYPS,Redacted - Personal Data,VEHICLE HIRE,274.50,0,Foster Carers
09/04/2018,RMS RMS,CDH Building Services Ltd,MISCELLANEOUS EXPENSES,905.62,0,CIS
09/04/2018,RMS RMS,CDH Building Services Ltd,MISCELLANEOUS EXPENSES,262.78,0,CIS
09/04/2018,Strategic Commissioning Adults,Careworld London Ltd,RESPITE CARE - PRIVATE CONTRACTORS PAYMENT,"1,235.10",0,Commercial Supplier
09/04/2018,Strategic Commissioning Adults,Careworld London Ltd,HOME CARE - PRIVATE CONTRACTORS PAYMENT,"76,607.25",0,Commercial Supplier
09/04/2018,Strategic Commissioning Adults,Careworld London Ltd,DAYCARE - PRIVATE CONTRACTORS PAYMENT,"6,572.25",0,Commercial Supplier
09/04/2018,Strategic Commissioning CYPS,Redacted - Personal Data,VEHICLE HIRE,338.00,0,Individuals
09/04/2018,oneSource oS ICT Services,Cisilion Ltd,ICT MAINTENANCE AND SUPPORT,"103,097.39",0,Commercial Supplier
09/04/2018,RMS RMS,City East Recruitment Ltd,BUILDING ALTERATIONS AND MATERIALS,"3,880.00",0,Supplier
09/04/2018,RMS RMS,City East Recruitment Ltd,"PURCHASE - EQUIPMENT, FURNITURE AND MATERIALS","7,100.00",0,Supplier
09/04/2018,RMS RMS,City East Recruitment Ltd,BUILDING ALTERATIONS AND MATERIALS,"1,800.00",0,Supplier
09/04/2018,RMS RMS,City East Recruitment Ltd,"PURCHASE - EQUIPMENT, FURNITURE AND MATERIALS","8,875.00",0,Supplier
09/04/2018,RMS RMS,City East Recruitment Ltd,BUILDING ALTERATIONS AND MATERIALS,"2,680.00",0,Supplier
09/04/2018,RMS RMS,City East Recruitment Ltd,BUILDING ALTERATIONS AND MATERIALS,"2,570.00",0,Supplier
09/04/2018,RMS RMS,City East Recruitment Ltd,BUILDING ALTERATIONS AND MATERIALS,"3,320.00",0,Supplier
09/04/2018,RMS RMS,City East Recruitment Ltd,BUILDING ALTERATIONS AND MATERIALS,"2,580.00",0,Supplier
09/04/2018,oneSource - Non Shared Asset Management,Claremore Mechanical Services Limited,BUILDING ALTERATIONS AND MATERIALS,717.88,0,CIS
09/04/2018,oneSource - Non Shared Asset Management,Claremore Mechanical Services Limited,BUILDING ALTERATIONS AND MATERIALS,631.36,0,CIS
09/04/2018,oneSource - Non Shared Asset Management,Claremore Mechanical Services Limited,BUILDING ALTERATIONS AND MATERIALS,511.14,0,CIS
09/04/2018,oneSource - Non Shared Asset Management,Claremore Mechanical Services Limited,BUILDING ALTERATIONS AND MATERIALS,668.44,0,CIS
09/04/2018,oneSource - Non Shared Asset Management,Claremore Mechanical Services Limited,BUILDING ALTERATIONS AND MATERIALS,511.14,0,CIS
09/04/2018,oneSource - Non Shared Asset Management,Claremore Mechanical Services Limited,BUILDING ALTERATIONS AND MATERIALS,552.71,0,CIS
09/04/2018,oneSource - Non Shared Asset Management,Claremore Mechanical Services Limited,BUILDING ALTERATIONS AND MATERIALS,767.32,0,CIS
09/04/2018,oneSource - Non Shared Asset Management,Claremore Mechanical Services Limited,BUILDING ALTERATIONS AND MATERIALS,511.14,0,CIS
09/04/2018,oneSource - Non Shared Asset Management,Claremore Mechanical Services Limited,BUILDING ALTERATIONS AND MATERIALS,511.14,0,CIS
09/04/2018,oneSource - Non Shared Asset Management,Claremore Mechanical Services Limited,BUILDING ALTERATIONS AND MATERIALS,744.29,0,CIS
09/04/2018,oneSource - Non Shared Asset Management,Claremore Mechanical Services Limited,BUILDING ALTERATIONS AND MATERIALS,469.57,0,CIS
09/04/2018,oneSource - Non Shared Asset Management,Claremore Mechanical Services Limited,BUILDING ALTERATIONS AND MATERIALS,631.36,0,CIS
09/04/2018,oneSource - Non Shared Asset Management,Claremore Mechanical Services Limited,BUILDING ALTERATIONS AND MATERIALS,594.28,0,CIS
09/04/2018,oneSource - Non Shared Asset Management,Claremore Mechanical Services Limited,BUILDING ALTERATIONS AND MATERIALS,552.71,0,CIS
09/04/2018,oneSource - Non Shared Asset Management,Claremore Mechanical Services Limited,BUILDING ALTERATIONS AND MATERIALS,390.92,0,CIS
09/04/2018,oneSource - Non Shared Asset Management,Claremore Mechanical Services Limited,BUILDING ALTERATIONS AND MATERIALS,511.14,0,CIS
09/04/2018,oneSource - Non Shared Asset Management,Claremore Mechanical Services Limited,BUILDING ALTERATIONS AND MATERIALS,390.92,0,CIS
09/04/2018,oneSource - Non Shared Asset Management,Claremore Mechanical Services Limited,BUILDING ALTERATIONS AND MATERIALS,390.92,0,CIS
09/04/2018,oneSource - Non Shared Asset Management,Claremore Mechanical Services Limited,BUILDING ALTERATIONS AND MATERIALS,"1,169.02",0,CIS
09/04/2018,oneSource - Non Shared Asset Management,Claremore Mechanical Services Limited,BUILDING ALTERATIONS AND MATERIALS,600.46,0,CIS
09/04/2018,oneSource - Non Shared Asset Management,Claremore Mechanical Services Limited,BUILDING ALTERATIONS AND MATERIALS,631.36,0,CIS
09/04/2018,oneSource - Non Shared Asset Management,Claremore Mechanical Services Limited,BUILDING ALTERATIONS AND MATERIALS,594.28,0,CIS
09/04/2018,oneSource - Non Shared Asset Management,Claremore Mechanical Services Limited,BUILDING ALTERATIONS AND MATERIALS,631.36,0,CIS
09/04/2018,oneSource - Non Shared Asset Management,Claremore Mechanical Services Limited,BUILDING ALTERATIONS AND MATERIALS,594.28,0,CIS
09/04/2018,oneSource - Non Shared Asset Management,Claremore Mechanical Services Limited,BUILDING ALTERATIONS AND MATERIALS,390.92,0,CIS
09/04/2018,Strategic Commissioning CYPS,Redacted - Personal Data,VEHICLE HIRE,270.00,0,Individuals
09/04/2018,Strategic Commissioning CYPS,David Beresford,AGENCY STAFF,735.76,0,Non Commercial Supplier
09/04/2018,Strategic Commissioning CYPS,Day2Day Fire & Security Ltd,SECURITY SERVICES (EXCLUDING PREMISES),"1,019.00",0,Commercial Supplier
09/04/2018,Strategic Commissioning Adults,Redacted - Personal Data,COMPENSATION,904.60,0,Commercial Supplier
09/04/2018,RMS RMS,Drain Aid Ltd,MISCELLANEOUS EXPENSES,850.00,0,Commercial Supplier
09/04/2018,Housing Revenue Account HRA,EDF Energy,ELECTRICITY,"1,202.71",0,Commercial Supplier
09/04/2018,Housing Revenue Account HRA,EDF Energy,ELECTRICITY,"1,553.68",0,Commercial Supplier
09/04/2018,Strategic Commissioning Community and Environment,East London Waste Authority,WASTE DISPOSAL COSTS,"202,512.30",0,Commercial Supplier
09/04/2018,Strategic Commissioning Community and Environment,East London Waste Authority,WASTE DISPOSAL COSTS,"202,512.30",0,Commercial Supplier
09/04/2018,Strategic Commissioning CYPS,Redacted - Personal Data,VEHICLE HIRE,374.00,0,Individuals
09/04/2018,Strategic Commissioning CYPS,Redacted - Personal Data,VEHICLE HIRE,270.00,0,Individuals
09/04/2018,Strategic Commissioning CYPS,Redacted - Personal Data,VEHICLE HIRE,567.00,0,Individuals
09/04/2018,RMS RMS,GB Macks Skips,BUILDING ALTERATIONS AND MATERIALS,510.00,0,Commercial Supplier
09/04/2018,RMS RMS,GB Macks Skips,REFUSE COLLECTION,"7,200.00",0,Commercial Supplier
09/04/2018,RMS RMS,GB Macks Skips,REFUSE COLLECTION,"3,272.40",0,Commercial Supplier
09/04/2018,RMS RMS,Gerda Security Products Ltd,BUILDING ALTERATIONS AND MATERIALS,392.24,0,Commercial Supplier
09/04/2018,RMS RMS,Gerda Security Products Ltd,BUILDING ALTERATIONS AND MATERIALS,378.24,0,Commercial Supplier
09/04/2018,RMS RMS,Gerda Security Products Ltd,BUILDING ALTERATIONS AND MATERIALS,346.47,0,Commercial Supplier
09/04/2018,Strategic Commissioning CYPS,Ghazal Haqani,AGENCY STAFF,426.45,0,Individuals
09/04/2018,RMS RMS,Golden Plant Hire Ltd,MISCELLANEOUS EXPENSES,"3,245.00",0,CIS
09/04/2018,RMS RMS,Golden Plant Hire Ltd,MISCELLANEOUS EXPENSES,"1,472.00",0,CIS
09/04/2018,Business and Growth NCCS,Greenham Trading Ltd,CLEANING MATERIALS,876.12,0,Commercial Supplier
09/04/2018,Business and Growth NCCS,Greenham Trading Ltd,CLEANING MATERIALS,"1,643.64",0,Commercial Supplier
09/04/2018,Business and Growth NCCS,Greenham Trading Ltd,CLEANING MATERIALS,500.76,0,Commercial Supplier
09/04/2018,Business and Growth NCCS,Greenham Trading Ltd,CLEANING MATERIALS,569.86,0,Commercial Supplier
09/04/2018,Business and Growth NCCS,Greenham Trading Ltd,CLEANING MATERIALS,"1,404.94",0,Commercial Supplier
09/04/2018,Business and Growth NCCS,Greenham Trading Ltd,CLEANING MATERIALS,385.56,0,Commercial Supplier
09/04/2018,Business and Growth NCCS,Greenham Trading Ltd,CLEANING MATERIALS,648.21,0,Commercial Supplier
09/04/2018,Business and Growth NCCS,Greenham Trading Ltd,CLEANING MATERIALS,553.28,0,Commercial Supplier
09/04/2018,Business and Growth NCCS,Greenham Trading Ltd,CLEANING MATERIALS,418.85,0,Commercial Supplier
09/04/2018,Business and Growth NCCS,Greenham Trading Ltd,CLEANING MATERIALS,436.50,0,Commercial Supplier
09/04/2018,Business and Growth NCCS,Greenham Trading Ltd,CLEANING MATERIALS,415.56,0,Commercial Supplier
09/04/2018,Business and Growth NCCS,Greenham Trading Ltd,CLEANING MATERIALS,783.56,0,Commercial Supplier
09/04/2018,Business and Growth NCCS,Greenham Trading Ltd,CLEANING MATERIALS,317.26,0,Commercial Supplier
09/04/2018,Business and Growth NCCS,Greenham Trading Ltd,CLEANING MATERIALS,531.26,0,Commercial Supplier
09/04/2018,Business and Growth NCCS,Greenham Trading Ltd,CLEANING MATERIALS,349.80,0,Commercial Supplier
09/04/2018,Business and Growth NCCS,Greenham Trading Ltd,CLEANING MATERIALS,273.16,0,Commercial Supplier
09/04/2018,Business and Growth NCCS,Greenham Trading Ltd,CLEANING MATERIALS,252.26,0,Commercial Supplier
09/04/2018,oneSource - Non Shared Asset Management,Greenham Trading Ltd,CLEANING MATERIALS,"1,335.90",0,Commercial Supplier
09/04/2018,Business and Growth NCCS,Greenham Trading Ltd,CLEANING MATERIALS,675.55,0,Commercial Supplier
09/04/2018,Business and Growth NCCS,Greenham Trading Ltd,CLEANING MATERIALS,333.68,0,Commercial Supplier
09/04/2018,Business and Growth NCCS,Greenham Trading Ltd,CLEANING MATERIALS,354.14,0,Commercial Supplier
09/04/2018,Business and Growth NCCS,Greenham Trading Ltd,CLEANING MATERIALS,472.87,0,Commercial Supplier
09/04/2018,Business and Growth NCCS,Greenham Trading Ltd,CLEANING MATERIALS,305.50,0,Commercial Supplier
09/04/2018,RMS RMS,Grosvenor Contract Leasing Ltd,VEHICLE HIRE,385.00,0,Supplier
09/04/2018,RMS RMS,Grosvenor Contract Leasing Ltd,VEHICLE HIRE,"3,504.51",0,Supplier
09/04/2018,RMS RMS,Grosvenor Contract Leasing Ltd,VEHICLE HIRE,797.40,0,Supplier
09/04/2018,Customer & Strategic Services Communications,HRM International,ARTS AND LEISURE COSTS,"3,400.00",0,Commercial Supplier
09/04/2018,Strategic Commissioning CYPS,Hestia Housing And Support,RESPITE CARE - PRIVATE CONTRACTORS PAYMENT,400.00,0,Foster Carers
09/04/2018,Strategic Commissioning CYPS,Ideal Care Solutions,KINSHIP PLACEMENT - PRIVATE CONTRACTORS PAYMENT,"3,100.00",0,Commercial Supplier
09/04/2018,Strategic Commissioning CYPS,Ideal Care Solutions,KINSHIP PLACEMENT - PRIVATE CONTRACTORS PAYMENT,"3,400.00",0,Commercial Supplier
09/04/2018,Strategic Commissioning CYPS,Ideal Care Solutions,KINSHIP PLACEMENT - PRIVATE CONTRACTORS PAYMENT,"3,800.00",0,Commercial Supplier
09/04/2018,Strategic Commissioning CYPS,Ideal Care Solutions,SUPPORTED OTHER ACCOMMODATION - PRIVATE CONTRACTORS PAYMENT,"3,800.00",0,Commercial Supplier
09/04/2018,Strategic Commissioning CYPS,Ideal Care Solutions,SUPPORTED OTHER ACCOMMODATION - PRIVATE CONTRACTORS PAYMENT,"3,800.00",0,Commercial Supplier
09/04/2018,Strategic Commissioning CYPS,Ideal Care Solutions,SUPPORTED OTHER ACCOMMODATION - PRIVATE CONTRACTORS PAYMENT,"3,400.00",0,Commercial Supplier
09/04/2018,Strategic Commissioning CYPS,Juliet Owusu,AGENCY STAFF,523.65,0,Individuals
09/04/2018,Strategic Commissioning Enforcement and Safety,Kent County Council (Kcs),GAS,439.70,0,Local Authority Services
09/04/2018,oneSource - Non Shared Asset Management,L M Installations Ltd,BUILDING ALTERATIONS AND MATERIALS,550.20,0,CIS
09/04/2018,oneSource - Non Shared Asset Management,L M Installations Ltd,BUILDING ALTERATIONS AND MATERIALS,301.59,0,CIS
09/04/2018,oneSource - Non Shared Asset Management,L M Installations Ltd,BUILDING ALTERATIONS AND MATERIALS,301.59,0,CIS
09/04/2018,oneSource - Non Shared Asset Management,L M Installations Ltd,BUILDING ALTERATIONS AND MATERIALS,316.67,0,CIS
09/04/2018,oneSource - Non Shared Asset Management,L M Installations Ltd,BUILDING ALTERATIONS AND MATERIALS,"1,130.20",0,CIS
09/04/2018,oneSource - Non Shared Asset Management,L M Installations Ltd,BUILDING ALTERATIONS AND MATERIALS,414.27,0,CIS
09/04/2018,oneSource - Non Shared Asset Management,L M Installations Ltd,BUILDING ALTERATIONS AND MATERIALS,"2,360.40",0,CIS
09/04/2018,oneSource - Non Shared Asset Management,L M Installations Ltd,BUILDING ALTERATIONS AND MATERIALS,283.88,0,CIS
09/04/2018,oneSource - Non Shared Asset Management,L M Installations Ltd,BUILDING ALTERATIONS AND MATERIALS,385.15,0,CIS
09/04/2018,oneSource - Non Shared Asset Management,L M Installations Ltd,BUILDING ALTERATIONS AND MATERIALS,301.59,0,CIS
09/04/2018,oneSource - Non Shared Asset Management,L M Installations Ltd,BUILDING ALTERATIONS AND MATERIALS,462.45,0,CIS
09/04/2018,oneSource - Non Shared Asset Management,L M Installations Ltd,BUILDING ALTERATIONS AND MATERIALS,318.00,0,CIS
09/04/2018,oneSource - Non Shared Asset Management,L M Installations Ltd,BUILDING ALTERATIONS AND MATERIALS,864.80,0,CIS
09/04/2018,oneSource - Non Shared Asset Management,L M Installations Ltd,BUILDING ALTERATIONS AND MATERIALS,257.20,0,CIS
09/04/2018,oneSource - Non Shared Asset Management,L M Installations Ltd,BUILDING ALTERATIONS AND MATERIALS,"2,995.67",0,CIS
09/04/2018,oneSource - Non Shared Asset Management,L M Installations Ltd,BUILDING ALTERATIONS AND MATERIALS,260.25,0,CIS
09/04/2018,Strategic Commissioning Enforcement and Safety,L M Installations Ltd,BUILDING ALTERATIONS AND MATERIALS,"1,952.00",0,CIS
09/04/2018,Strategic Commissioning CYPS,L M Installations Ltd,BUILDING ALTERATIONS AND MATERIALS,"1,158.00",0,CIS
09/04/2018,Strategic Commissioning CYPS,L M Installations Ltd,BUILDING ALTERATIONS AND MATERIALS,456.46,0,CIS
09/04/2018,oneSource - Non Shared Asset Management,L M Installations Ltd,BUILDING ALTERATIONS AND MATERIALS,"1,188.85",0,CIS
09/04/2018,oneSource - Non Shared Asset Management,L M Installations Ltd,BUILDING ALTERATIONS AND MATERIALS,"1,380.54",0,CIS
09/04/2018,oneSource - Non Shared Asset Management,Laker Bms,BUILDING ALTERATIONS AND MATERIALS,412.33,0,CIS
09/04/2018,Strategic Commissioning CYPS,London Darbar Limited,EVENTS,"2,291.67",0,Commercial Supplier
09/04/2018,Strategic Commissioning Adults,Look Ahead Housing and Care Ltd,SUPPORTED OTHER ACCOMMODATION - PRIVATE CONTRACTORS PAYMENT,635.36,0,Commercial Supplier
09/04/2018,Strategic Commissioning Adults,Look Ahead Housing and Care Ltd,SUPPORTED OTHER ACCOMMODATION - PRIVATE CONTRACTORS PAYMENT,"1,440.00",0,Commercial Supplier
09/04/2018,Strategic Commissioning Adults,Look Ahead Housing and Care Ltd,SUPPORTED OTHER ACCOMMODATION - PRIVATE CONTRACTORS PAYMENT,981.92,0,Commercial Supplier
09/04/2018,Strategic Commissioning CYPS,Redacted - Personal Data,VEHICLE HIRE,270.00,0,Supplier
09/04/2018,Strategic Commissioning CYPS,Redacted - Personal Data,VEHICLE HIRE,507.50,0,
09/04/2018,RMS RMS,Manse Masterdor Ltd,BUILDING ALTERATIONS AND MATERIALS,624.46,0,CIS
09/04/2018,RMS RMS,Manse Masterdor Ltd,BUILDING ALTERATIONS AND MATERIALS,534.63,0,CIS
09/04/2018,Strategic Commissioning CYPS,NPower,ELECTRICITY,"2,033.37",0,Commercial Supplier
09/04/2018,Strategic Commissioning CYPS,NPower,ELECTRICITY,"1,155.47",0,Commercial Supplier
09/04/2018,Strategic Commissioning CYPS,NPower,ELECTRICITY,"3,198.80",0,Commercial Supplier
09/04/2018,Strategic Commissioning CYPS,NPower,ELECTRICITY,819.75,0,Commercial Supplier
09/04/2018,Strategic Commissioning CYPS,Redacted - Personal Data,VEHICLE HIRE,374.00,0,Individuals
09/04/2018,Strategic Commissioning CYPS,Nexus Fostering Ltd,SECTION 17 - PRIVATE CONTRACTORS PAYMENT,"4,816.00",0,Non Commercial Supplier
09/04/2018,Strategic Commissioning CYPS,Nexus Fostering Ltd,RESIDENTIAL PLACEMENTS - PRIVATE CONTRACTORS PAYMENT,645.00,0,Non Commercial Supplier
09/04/2018,Strategic Commissioning CYPS,Redacted - Personal Data,VEHICLE HIRE,440.00,0,Individuals
09/04/2018,Strategic Commissioning CYPS,Redacted - Personal Data,VEHICLE HIRE,330.00,0,Individuals
09/04/2018,Strategic Commissioning CYPS,Redacted - Personal Data,VEHICLE HIRE,264.00,0,Direct Payments
09/04/2018,Strategic Commissioning CYPS,Odgers Interim,AGENCY STAFF,"11,590.00",0,Commercial Supplier
09/04/2018,Strategic Commissioning CYPS,Odgers Interim,AGENCY STAFF,"6,100.00",0,Commercial Supplier
09/04/2018,Strategic Commissioning CYPS,Odgers Interim,AGENCY STAFF,"6,100.00",0,Commercial Supplier
09/04/2018,Strategic Commissioning CYPS,Odgers Interim,AGENCY STAFF,"7,711.00",0,Commercial Supplier
09/04/2018,Strategic Commissioning CYPS,Odgers Interim,AGENCY STAFF,"11,590.00",0,Commercial Supplier
09/04/2018,Strategic Commissioning CYPS,Odgers Interim,AGENCY STAFF,"6,710.00",0,Commercial Supplier
09/04/2018,Strategic Commissioning Adults,Odgers Interim,AGENCY STAFF,"4,875.00",0,Commercial Supplier
09/04/2018,Strategic Commissioning Adults,Odgers Interim,AGENCY STAFF,"4,975.00",0,Commercial Supplier
09/04/2018,Strategic Commissioning CYPS,Odgers Interim,AGENCY STAFF,"13,420.00",0,Commercial Supplier
09/04/2018,Strategic Commissioning Adults,Odgers Interim,AGENCY STAFF,"9,950.00",0,Commercial Supplier
09/04/2018,Housing Revenue Account HRA,Openview Security Solutions Ltd,RESPONSIVE REPAIRS - MECHANICAL AND ELECTRICAL,"7,841.41",0,Commercial Supplier
09/04/2018,Strategic Commissioning Enforcement and Safety,Openview Security Solutions Ltd,SECURITY SERVICES (EXCLUDING PREMISES),"7,587.00",0,Commercial Supplier
09/04/2018,Public Health Public Health,Penna Plc.,"ADVERTISING, PUBLICITY AND MARKETING","21,580.00",0,Supplier
09/04/2018,Public Health Public Health,Penna Plc.,"ADVERTISING, PUBLICITY AND MARKETING","17,820.00",0,Supplier
09/04/2018,Strategic Commissioning Adults,Plashet Medical Centre,PAYMENT TO HEALTH AUTHORITIES,900.00,0,Supplier
09/04/2018,RMS RMS,Public Realm Services Ltd,MISCELLANEOUS EXPENSES,396.89,0,Commercial Supplier
09/04/2018,RMS RMS,Public Realm Services Ltd,MISCELLANEOUS EXPENSES,308.83,0,Commercial Supplier
09/04/2018,RMS RMS,Public Realm Services Ltd,MISCELLANEOUS EXPENSES,268.28,0,Commercial Supplier
09/04/2018,RMS RMS,Public Realm Services Ltd,MISCELLANEOUS EXPENSES,282.90,0,Commercial Supplier
09/04/2018,RMS RMS,Public Realm Services Ltd,MISCELLANEOUS EXPENSES,659.65,0,Commercial Supplier
09/04/2018,RMS RMS,Public Realm Services Ltd,MISCELLANEOUS EXPENSES,267.28,0,Commercial Supplier
09/04/2018,RMS RMS,Public Realm Services Ltd,MISCELLANEOUS EXPENSES,267.28,0,Commercial Supplier
09/04/2018,RMS RMS,Public Realm Services Ltd,MISCELLANEOUS EXPENSES,323.73,0,Commercial Supplier
09/04/2018,RMS RMS,Public Realm Services Ltd,MISCELLANEOUS EXPENSES,368.06,0,Commercial Supplier
09/04/2018,RMS RMS,Public Realm Services Ltd,MISCELLANEOUS EXPENSES,692.26,0,Commercial Supplier
09/04/2018,RMS RMS,Public Realm Services Ltd,MISCELLANEOUS EXPENSES,305.95,0,Commercial Supplier
09/04/2018,RMS RMS,Public Realm Services Ltd,MISCELLANEOUS EXPENSES,374.38,0,Commercial Supplier
09/04/2018,RMS RMS,Public Realm Services Ltd,MISCELLANEOUS EXPENSES,278.05,0,Commercial Supplier
09/04/2018,RMS RMS,Public Realm Services Ltd,MISCELLANEOUS EXPENSES,285.34,0,Commercial Supplier
09/04/2018,RMS RMS,Public Realm Services Ltd,MISCELLANEOUS EXPENSES,282.90,0,Commercial Supplier
09/04/2018,RMS RMS,Public Realm Services Ltd,MISCELLANEOUS EXPENSES,388.52,0,Commercial Supplier
09/04/2018,RMS RMS,Public Realm Services Ltd,MISCELLANEOUS EXPENSES,355.58,0,Commercial Supplier
09/04/2018,RMS RMS,Public Realm Services Ltd,MISCELLANEOUS EXPENSES,273.65,0,Commercial Supplier
09/04/2018,RMS RMS,Public Realm Services Ltd,MISCELLANEOUS EXPENSES,363.65,0,Commercial Supplier
09/04/2018,RMS RMS,Public Realm Services Ltd,MISCELLANEOUS EXPENSES,299.98,0,Commercial Supplier
09/04/2018,RMS RMS,Public Realm Services Ltd,MISCELLANEOUS EXPENSES,250.15,0,Commercial Supplier
09/04/2018,RMS RMS,Public Realm Services Ltd,MISCELLANEOUS EXPENSES,267.28,0,Commercial Supplier
09/04/2018,RMS RMS,Public Realm Services Ltd,MISCELLANEOUS EXPENSES,318.58,0,Commercial Supplier
09/04/2018,RMS RMS,Public Realm Services Ltd,MISCELLANEOUS EXPENSES,487.04,0,Commercial Supplier
09/04/2018,RMS RMS,Public Realm Services Ltd,MISCELLANEOUS EXPENSES,327.78,0,Commercial Supplier
09/04/2018,RMS RMS,Public Realm Services Ltd,MISCELLANEOUS EXPENSES,315.64,0,Commercial Supplier
09/04/2018,RMS RMS,Public Realm Services Ltd,MISCELLANEOUS EXPENSES,753.35,0,Commercial Supplier
09/04/2018,RMS RMS,Public Realm Services Ltd,MISCELLANEOUS EXPENSES,328.78,0,Commercial Supplier
09/04/2018,RMS RMS,Public Realm Services Ltd,MISCELLANEOUS EXPENSES,267.28,0,Commercial Supplier
09/04/2018,RMS RMS,Public Realm Services Ltd,MISCELLANEOUS EXPENSES,267.28,0,Commercial Supplier
09/04/2018,RMS RMS,Public Realm Services Ltd,MISCELLANEOUS EXPENSES,267.28,0,Commercial Supplier
09/04/2018,RMS RMS,Public Realm Services Ltd,MISCELLANEOUS EXPENSES,267.28,0,Commercial Supplier
09/04/2018,RMS RMS,Public Realm Services Ltd,MISCELLANEOUS EXPENSES,273.65,0,Commercial Supplier
09/04/2018,Strategic Commissioning CYPS,Redacted - Personal Data,VEHICLE HIRE,440.00,0,Supplier
09/04/2018,Strategic Commissioning CYPS,Redacted - Personal Data,VEHICLE HIRE,579.00,0,Foster Carers
09/04/2018,Dedicated Schools Budget Dedicated Schools Budget,Reeson Education,AGENCY STAFF,"1,000.00",0,Commercial Supplier
09/04/2018,Strategic Commissioning CYPS,Redacted - Personal Data,VEHICLE HIRE,264.00,0,Direct Payments
09/04/2018,oneSource oS Finance,Restore Plc.,STORAGE AND ARCHIVING,"1,962.20",0,Supplier
09/04/2018,Strategic Commissioning CYPS,Right Choice Services Ltd,SUPPORTED OTHER ACCOMMODATION - PRIVATE CONTRACTORS PAYMENT,"2,600.00",0,Foster Carers
09/04/2018,Strategic Commissioning CYPS,Rukhsana Khan,AGENCY STAFF,262.00,0,Commercial Supplier
09/04/2018,Strategic Commissioning CYPS,Redacted - Personal Data,VEHICLE HIRE,"3,942.60",0,Individuals
09/04/2018,Strategic Commissioning CYPS,Redacted - Personal Data,ADOPTION ALLOWANCE - PRIVATE CONTRACTORS PAYMENT,288.18,0,Foster Carers
09/04/2018,Strategic Commissioning CYPS,Redacted - Personal Data,ADOPTION ALLOWANCE - PRIVATE CONTRACTORS PAYMENT,288.18,0,Foster Carers
09/04/2018,RMS RMS,S K Signs & Labels Ltd,BUILDING ALTERATIONS AND MATERIALS,378.30,0,Supplier
09/04/2018,Strategic Commissioning CYPS,Redacted - Personal Data,VEHICLE HIRE,300.00,0,Individuals
09/04/2018,Strategic Commissioning Adults,Satash Community Care Projects Limited,DAYCARE - PRIVATE CONTRACTORS PAYMENT,585.92,0,Supplier
09/04/2018,Strategic Commissioning Enforcement and Safety,Serjeant Security Ltd,SECURITY OF PREMISES,"3,646.80",0,Supplier
09/04/2018,Strategic Commissioning Enforcement and Safety,Serjeant Security Ltd,SECURITY OF PREMISES,"2,905.03",0,Supplier
09/04/2018,Strategic Commissioning Enforcement and Safety,Serjeant Security Ltd,SECURITY OF PREMISES,"5,163.06",0,Supplier
09/04/2018,Strategic Commissioning Enforcement and Safety,Serjeant Security Ltd,SECURITY OF PREMISES,324.16,0,Supplier
09/04/2018,Strategic Commissioning Enforcement and Safety,Serjeant Security Ltd,SECURITY OF PREMISES,"10,705.92",0,Supplier
09/04/2018,Strategic Commissioning Enforcement and Safety,Serjeant Security Ltd,SECURITY OF PREMISES,"2,905.03",0,Supplier
09/04/2018,Strategic Commissioning Enforcement and Safety,Serjeant Security Ltd,SECURITY OF PREMISES,"7,020.09",0,Supplier
09/04/2018,Strategic Commissioning Enforcement and Safety,Serjeant Security Ltd,SECURITY OF PREMISES,"5,185.68",0,Supplier
09/04/2018,Strategic Commissioning Enforcement and Safety,Serjeant Security Ltd,SECURITY OF PREMISES,"6,735.27",0,Supplier
09/04/2018,Strategic Commissioning Enforcement and Safety,Serjeant Security Ltd,SECURITY OF PREMISES,"2,228.90",0,Supplier
09/04/2018,Strategic Commissioning Enforcement and Safety,Serjeant Security Ltd,SECURITY OF PREMISES,"10,705.92",0,Supplier
09/04/2018,Strategic Commissioning CYPS,Redacted - Personal Data,VEHICLE HIRE,400.00,0,Individuals
09/04/2018,Strategic Commissioning CYPS,Sqc Consultancy,CONSULTANCY FEES,600.00,0,Supplier
09/04/2018,RMS RMS,Staples Business Accounts,VEHICLE HIRE,262.24,0,Supplier
09/04/2018,Strategic Commissioning CYPS,Tempest Recruitment Ltd,AGENCY STAFF,"2,625.00",0,Commercial Supplier
09/04/2018,Strategic Commissioning Adults,The Courtney Hotel London Ltd,RENTS PAYABLE,840.00,0,Non Commercial Supplier
09/04/2018,Strategic Commissioning Adults,The Courtney Hotel London Ltd,RENTS PAYABLE,822.50,0,Non Commercial Supplier
09/04/2018,Strategic Commissioning Adults,The Courtney Hotel London Ltd,RENTS PAYABLE,892.50,0,Non Commercial Supplier
09/04/2018,Strategic Commissioning Adults,The Courtney Hotel London Ltd,RENTS PAYABLE,"1,505.00",0,Non Commercial Supplier
09/04/2018,Strategic Commissioning Adults,The Courtney Hotel London Ltd,RENTS PAYABLE,840.00,0,Non Commercial Supplier
09/04/2018,Strategic Commissioning Adults,The Courtney Hotel London Ltd,RENTS PAYABLE,735.00,0,Non Commercial Supplier
09/04/2018,oneSource - Non Shared Human Resources,The In-House Training Company Limited,STAFF DEVELOPMENT AND TRAINING,"1,395.80",0,Commercial Supplier
09/04/2018,Strategic Commissioning Community and Environment,Triple Point Lease Partners,PROFESSIONAL SERVICES - GENERAL,"108,661.24",0,Commercial Supplier
09/04/2018,Strategic Commissioning Adults,Tunstall Healthcare Uk Ltd,HEALTH AND SAFETY WORKS,"6,044.49",0,Supplier
09/04/2018,RMS RMS,Viking Direct,STATIONERY,292.99,0,Commercial Supplier
09/04/2018,Strategic Commissioning CYPS,W Hardy Ltd,BUILDING ALTERATIONS AND MATERIALS,418.00,0,CIS
09/04/2018,oneSource - Non Shared Asset Management,W Hardy Ltd,BUILDING ALTERATIONS AND MATERIALS,459.00,0,CIS
09/04/2018,Strategic Commissioning CYPS,Yvette Walker,AGENCY STAFF,453.15,0,Commercial Supplier
09/04/2018,Strategic Commissioning CYPS,Redacted - Personal Data,VEHICLE HIRE,380.00,0,Individuals
09/04/2018,Strategic Commissioning CYPS,Redacted - Personal Data,VEHICLE HIRE,270.00,0,Individuals
09/04/2018,Strategic Commissioning CYPS,Zfa Limited,NO RECOURSE TO PUBLIC FUNDS - PRIVATE CONTRACTORS PAYMENT,380.00,0,Supplier
09/04/2018,Strategic Commissioning CYPS,Zfa Limited,NO RECOURSE TO PUBLIC FUNDS - PRIVATE CONTRACTORS PAYMENT,"1,064.00",0,Supplier
09/04/2018,Strategic Commissioning CYPS,Zfa Limited,NO RECOURSE TO PUBLIC FUNDS - PRIVATE CONTRACTORS PAYMENT,840.00,0,Supplier
09/04/2018,Strategic Commissioning CYPS,Zfa Limited,NO RECOURSE TO PUBLIC FUNDS - PRIVATE CONTRACTORS PAYMENT,840.00,0,Supplier
09/04/2018,Strategic Commissioning CYPS,Zfa Limited,NO RECOURSE TO PUBLIC FUNDS - PRIVATE CONTRACTORS PAYMENT,896.00,0,Supplier
09/04/2018,Strategic Commissioning CYPS,Zfa Limited,SECTION 17 - PRIVATE CONTRACTORS PAYMENT,784.00,0,Supplier
10/04/2018,Strategic Commissioning CYPS,Adecco Uk Limited,AGENCY STAFF,"71,170.65",0,Commercial Supplier
10/04/2018,Strategic Commissioning Adults,Adecco Uk Limited,SALARIES,574.20,0,Commercial Supplier
10/04/2018,Strategic Commissioning Adults,Adecco Uk Limited,AGENCY STAFF,"99,106.95",0,Commercial Supplier
10/04/2018,Regeneration and Planning Regeneration,Adecco Uk Limited,AGENCY STAFF,"3,300.16",0,Commercial Supplier
10/04/2018,RMS RMS,Adecco Uk Limited,JOINT AUTHORITIES PAYMENTS,441.09,0,Commercial Supplier
10/04/2018,RMS RMS,Adecco Uk Limited,AGENCY STAFF,"2,619.26",0,Commercial Supplier
10/04/2018,Housing Revenue Account HRA,Adecco Uk Limited,STAFF OTHER EXPENSES,"2,065.92",0,Commercial Supplier
10/04/2018,Housing Revenue Account HRA,Adecco Uk Limited,AGENCY STAFF,"12,870.81",0,Commercial Supplier
10/04/2018,Financial Sustainability Financial Sustainability,Adecco Uk Limited,SALARIES,"2,279.36",0,Commercial Supplier
10/04/2018,oneSource oS ICT Services,Adecco Uk Limited,AGENCY STAFF,"17,040.51",0,Commercial Supplier
10/04/2018,Dedicated Schools Budget Dedicated Schools Budget,Adecco Uk Limited,AGENCY STAFF,793.15,0,Commercial Supplier
10/04/2018,Business and Growth Business and Growth,Adecco Uk Limited,FEES AND CHARGES OTHER - NON VATABLE,"3,687.36",0,Commercial Supplier
10/04/2018,Customer & Strategic Services Customer Transactions,Adecco Uk Limited,AGENCY STAFF,"23,933.42",0,Commercial Supplier
10/04/2018,oneSource oS Legal & Governance,Adecco Uk Limited,AGENCY STAFF,"2,112.36",0,Commercial Supplier
10/04/2018,Customer & Strategic Services Communications,Adecco Uk Limited,AGENCY STAFF,"1,084.86",0,Commercial Supplier
10/04/2018,Chief Operating Officer Chief Operating Officer,Adecco Uk Limited,AGENCY STAFF,"6,801.52",0,Commercial Supplier
10/04/2018,Business and Growth NCCS,Adecco Uk Limited,AGENCY STAFF,"32,852.34",0,Commercial Supplier
10/04/2018,Financial Sustainability Financial Sustainability,Adecco Uk Limited,AGENCY STAFF,"1,981.20",0,Commercial Supplier
10/04/2018,Strategic Commissioning Community and Environment,Adecco Uk Limited,AGENCY STAFF,"18,569.18",0,Commercial Supplier
10/04/2018,oneSource oS Finance,Adecco Uk Limited,AGENCY STAFF,"28,190.26",0,Commercial Supplier
10/04/2018,oneSource oS Asset Management Services,Adecco Uk Limited,AGENCY STAFF,"9,274.76",0,Commercial Supplier
10/04/2018,oneSource - Non Shared ICT Services,Adecco Uk Limited,SALARIES,948.55,0,Commercial Supplier
10/04/2018,oneSource oS Exchequer & Transactional Services,Adecco Uk Limited,AGENCY STAFF,"4,133.10",0,Commercial Supplier
10/04/2018,oneSource - Non Shared Asset Management,Adecco Uk Limited,AGENCY STAFF,"2,565.02",0,Commercial Supplier
10/04/2018,Strategic Commissioning Enforcement and Safety,Adecco Uk Limited,SALARIES,"1,343.68",0,Commercial Supplier
10/04/2018,Strategic Commissioning Enforcement and Safety,Adecco Uk Limited,EMPLOYER LIABILITY INSURANCE,705.78,0,Commercial Supplier
10/04/2018,oneSource oS Business Services,Adecco Uk Limited,AGENCY STAFF,"8,696.40",0,Commercial Supplier
10/04/2018,Strategic Commissioning Enforcement and Safety,Adecco Uk Limited,AGENCY STAFF,"1,106.88",0,Commercial Supplier
10/04/2018,Dedicated Schools Budget Dedicated Schools Budget,Altmore Infants School,INDEPENDENT UNITS WITHIN THE COUNCIL,"293,163.00",0,Supplier
10/04/2018,Customer & Strategic Services Communications,Aspenlink Ltd,"ADVERTISING, PUBLICITY AND MARKETING","9,787.09",0,Commercial Supplier
10/04/2018,Dedicated Schools Budget Dedicated Schools Budget,Autism Partnership Uk Ltd,PROFESSIONAL SERVICES - GENERAL,"1,167.50",0,Commercial Supplier
10/04/2018,Dedicated Schools Budget Dedicated Schools Budget,Avenue Primary School,INDEPENDENT UNITS WITHIN THE COUNCIL,"394,634.00",0,Supplier
10/04/2018,Customer & Strategic Services Customer Engagement,Axiell Ltd,PROFESSIONAL SERVICES - GENERAL,"5,069.90",0,Commercial Supplier
10/04/2018,Regeneration and Planning Economic Regeneration,B T Business Communications,ICT - SERCOP CHARGE,291.00,0,Supplier
10/04/2018,Strategic Commissioning CYPS,Bettertogether Limited,EQUIPMENT & ADAPTATION - PRIVATE CONTRACTORS PAYMENT,"1,832.00",0,Non Commercial Supplier
10/04/2018,Strategic Commissioning CYPS,Bettertogether Limited,EQUIPMENT & ADAPTATION - PRIVATE CONTRACTORS PAYMENT,"2,856.00",0,Non Commercial Supplier
10/04/2018,Strategic Commissioning CYPS,Bettertogether Limited,EQUIPMENT & ADAPTATION - PRIVATE CONTRACTORS PAYMENT,"1,832.00",0,Non Commercial Supplier
10/04/2018,oneSource oS ICT Services,Black Cat Couriers Ltd,POSTAGE AND COURIER SERVICES,305.00,0,Commercial Supplier
10/04/2018,oneSource oS ICT Services,Black Cat Couriers Ltd,POSTAGE AND COURIER SERVICES,305.00,0,Commercial Supplier
10/04/2018,oneSource - Non Shared Asset Management,Bloom Procurement Services Ltd,CONSULTANCY FEES,"1,900.00",0,Commercial Supplier
10/04/2018,Regeneration and Planning Regeneration,Bloom Procurement Services Ltd,CONSULTANCY FEES,"7,700.00",0,Commercial Supplier
10/04/2018,Dedicated Schools Budget Dedicated Schools Budget,Brampton Primary School,INDEPENDENT UNITS WITHIN THE COUNCIL,"433,093.00",0,Local Authority Services
10/04/2018,Strategic Commissioning Adults,Broadreach House,PAYMENT TO HEALTH AUTHORITIES,"2,669.99",0,Commercial Supplier
10/04/2018,Dedicated Schools Budget Dedicated Schools Budget,Calverton Primary School,INDEPENDENT UNITS WITHIN THE COUNCIL,"233,278.00",0,Supplier
10/04/2018,Strategic Commissioning Adults,Care Support,PAYMENT TO HEALTH AUTHORITIES,"3,477.60",0,Commercial Supplier
10/04/2018,Dedicated Schools Budget Dedicated Schools Budget,Carpenters Primary,INDEPENDENT UNITS WITHIN THE COUNCIL,"229,871.00",0,Supplier
10/04/2018,Customer & Strategic Services Public Policy and Research,Centre for Strategy & Communication,STAFF DEVELOPMENT AND TRAINING,"1,300.00",0,Commercial Supplier
10/04/2018,Strategic Commissioning CYPS,Chichester College,STAFF DEVELOPMENT AND TRAINING,"4,493.00",0,Commercial Supplier
10/04/2018,Strategic Commissioning CYPS,Clayhall Executive Cars Ltd,EQUIPMENT & ADAPTATION - PRIVATE CONTRACTORS PAYMENT,325.00,0,Commercial Supplier
10/04/2018,Strategic Commissioning CYPS,Cliffords Estates,SECTION 17 - PRIVATE CONTRACTORS PAYMENT,"2,400.00",0,Commercial Supplier
10/04/2018,Dedicated Schools Budget Dedicated Schools Budget,Colegrave Primary School,INDEPENDENT UNITS WITHIN THE COUNCIL,"312,851.00",0,Supplier
10/04/2018,Dedicated Schools Budget Dedicated Schools Budget,Cumberland School,INDEPENDENT UNITS WITHIN THE COUNCIL,"1,392,520.00",0,Local Authority Services
10/04/2018,Strategic Commissioning Adults,David G Hall,CONSULTANCY FEES,510.00,0,Commercial Supplier
10/04/2018,Dedicated Schools Budget Dedicated Schools Budget,Dersingham Primary School,INDEPENDENT UNITS WITHIN THE COUNCIL,"325,665.00",0,Supplier
10/04/2018,Strategic Commissioning Adults,Disability Association of Barking & Dagenham ( DABD),PROFESSIONAL SERVICES - GENERAL,796.50,0,Commercial Supplier
10/04/2018,Housing Revenue Account HRA,EDF Energy,ELECTRICITY,430.14,0,Commercial Supplier
10/04/2018,Strategic Commissioning Adults,East End Medical Centre,PAYMENT TO HEALTH AUTHORITIES,"1,296.00",0,Commercial Supplier
10/04/2018,Strategic Commissioning Adults,East End Medical Centre,PAYMENT TO HEALTH AUTHORITIES,"4,957.78",0,Commercial Supplier
10/04/2018,Dedicated Schools Budget Dedicated Schools Budget,Eastlea Community,INDEPENDENT UNITS WITHIN THE COUNCIL,"722,100.00",0,Supplier
10/04/2018,Dedicated Schools Budget Dedicated Schools Budget,Edith Kerrison Nursery School,INDEPENDENT UNITS WITHIN THE COUNCIL,"47,622.00",0,Supplier
10/04/2018,Strategic Commissioning CYPS,Redacted - Personal Data,NO RECOURSE TO PUBLIC FUNDS - PRIVATE CONTRACTORS PAYMENT,938.00,0,Supplier
10/04/2018,Strategic Commissioning CYPS,Redacted - Personal Data,NO RECOURSE TO PUBLIC FUNDS - PRIVATE CONTRACTORS PAYMENT,938.00,0,Supplier
10/04/2018,Strategic Commissioning CYPS,Redacted - Personal Data,NO RECOURSE TO PUBLIC FUNDS - PRIVATE CONTRACTORS PAYMENT,938.00,0,Supplier
10/04/2018,Strategic Commissioning CYPS,Redacted - Personal Data,NO RECOURSE TO PUBLIC FUNDS - PRIVATE CONTRACTORS PAYMENT,938.00,0,Supplier
10/04/2018,Strategic Commissioning CYPS,Redacted - Personal Data,NO RECOURSE TO PUBLIC FUNDS - PRIVATE CONTRACTORS PAYMENT,938.00,0,Supplier
10/04/2018,Strategic Commissioning CYPS,Redacted - Personal Data,NO RECOURSE TO PUBLIC FUNDS - PRIVATE CONTRACTORS PAYMENT,952.00,0,Supplier
10/04/2018,Strategic Commissioning CYPS,Redacted - Personal Data,NO RECOURSE TO PUBLIC FUNDS - PRIVATE CONTRACTORS PAYMENT,938.00,0,Supplier
10/04/2018,Strategic Commissioning CYPS,Redacted - Personal Data,NO RECOURSE TO PUBLIC FUNDS - PRIVATE CONTRACTORS PAYMENT,938.00,0,Supplier
10/04/2018,Strategic Commissioning CYPS,Redacted - Personal Data,NO RECOURSE TO PUBLIC FUNDS - PRIVATE CONTRACTORS PAYMENT,952.00,0,Supplier
10/04/2018,Strategic Commissioning CYPS,Redacted - Personal Data,NO RECOURSE TO PUBLIC FUNDS - PRIVATE CONTRACTORS PAYMENT,938.00,0,Supplier
10/04/2018,Strategic Commissioning CYPS,Redacted - Personal Data,NO RECOURSE TO PUBLIC FUNDS - PRIVATE CONTRACTORS PAYMENT,952.00,0,Supplier
10/04/2018,Strategic Commissioning CYPS,Redacted - Personal Data,NO RECOURSE TO PUBLIC FUNDS - PRIVATE CONTRACTORS PAYMENT,938.00,0,Supplier
10/04/2018,Strategic Commissioning CYPS,Redacted - Personal Data,NO RECOURSE TO PUBLIC FUNDS - PRIVATE CONTRACTORS PAYMENT,938.00,0,Supplier
10/04/2018,Strategic Commissioning CYPS,Redacted - Personal Data,NO RECOURSE TO PUBLIC FUNDS - PRIVATE CONTRACTORS PAYMENT,938.00,0,Supplier
10/04/2018,Strategic Commissioning CYPS,Redacted - Personal Data,NO RECOURSE TO PUBLIC FUNDS - PRIVATE CONTRACTORS PAYMENT,938.00,0,Supplier
10/04/2018,Strategic Commissioning CYPS,Redacted - Personal Data,NO RECOURSE TO PUBLIC FUNDS - PRIVATE CONTRACTORS PAYMENT,938.00,0,Supplier
10/04/2018,Strategic Commissioning CYPS,Redacted - Personal Data,NO RECOURSE TO PUBLIC FUNDS - PRIVATE CONTRACTORS PAYMENT,938.00,0,Supplier
10/04/2018,Strategic Commissioning CYPS,Redacted - Personal Data,NO RECOURSE TO PUBLIC FUNDS - PRIVATE CONTRACTORS PAYMENT,938.00,0,Supplier
10/04/2018,Strategic Commissioning CYPS,Redacted - Personal Data,NO RECOURSE TO PUBLIC FUNDS - PRIVATE CONTRACTORS PAYMENT,938.00,0,Supplier
10/04/2018,Strategic Commissioning CYPS,Redacted - Personal Data,NO RECOURSE TO PUBLIC FUNDS - PRIVATE CONTRACTORS PAYMENT,938.00,0,Supplier
10/04/2018,Strategic Commissioning CYPS,Redacted - Personal Data,NO RECOURSE TO PUBLIC FUNDS - PRIVATE CONTRACTORS PAYMENT,938.00,0,Supplier
10/04/2018,Strategic Commissioning CYPS,Redacted - Personal Data,NO RECOURSE TO PUBLIC FUNDS - PRIVATE CONTRACTORS PAYMENT,938.00,0,Supplier
10/04/2018,Dedicated Schools Budget Dedicated Schools Budget,Ellen Wilkinson Primary School,INDEPENDENT UNITS WITHIN THE COUNCIL,"223,441.00",0,Supplier
10/04/2018,Strategic Commissioning Adults,Equinox Care,PAYMENT TO HEALTH AUTHORITIES,"2,500.00",0,Commercial Supplier
10/04/2018,Dedicated Schools Budget Dedicated Schools Budget,Essex Primary School,INDEPENDENT UNITS WITHIN THE COUNCIL,"379,444.00",0,Non Commercial Supplier
10/04/2018,Strategic Commissioning CYPS,Finefair Consultancy Ltd,CONSULTANCY FEES,"27,744.72",0,Supplier
10/04/2018,Strategic Commissioning CYPS,Finefair Consultancy Ltd,CONSULTANCY FEES,"27,744.72",0,Commercial Supplier
10/04/2018,Strategic Commissioning CYPS,Footsteps Support Ltd,RESIDENTIAL PLACEMENTS - PRIVATE CONTRACTORS PAYMENT,"3,702.16",0,Commercial Supplier
10/04/2018,Strategic Commissioning CYPS,Footsteps Support Ltd,RESIDENTIAL PLACEMENTS - PRIVATE CONTRACTORS PAYMENT,"8,512.00",0,Commercial Supplier
10/04/2018,Strategic Commissioning CYPS,Footsteps Support Ltd,RESIDENTIAL PLACEMENTS - PRIVATE CONTRACTORS PAYMENT,"16,492.00",0,Commercial Supplier
10/04/2018,oneSource oS Exchequer & Transactional Services,GB Group Plc,ICT SOFTWARE,"3,999.00",0,Commercial Supplier
10/04/2018,oneSource oS Exchequer & Transactional Services,GB Group Plc,ICT SOFTWARE,"2,830.48",0,Commercial Supplier
10/04/2018,Strategic Commissioning Enforcement and Safety,Redacted - Personal Data,PCN INCOME,345.00,0,Individuals
10/04/2018,Dedicated Schools Budget Dedicated Schools Budget,Godwin Junior School,INDEPENDENT UNITS WITHIN THE COUNCIL,"169,984.00",0,Supplier
10/04/2018,Dedicated Schools Budget Dedicated Schools Budget,Grange Primary School,INDEPENDENT UNITS WITHIN THE COUNCIL,"142,116.00",0,Non Commercial Supplier
10/04/2018,Customer & Strategic Services Communications,Greatbatch Ltd,"ADVERTISING, PUBLICITY AND MARKETING","7,574.42",0,Commercial Supplier
10/04/2018,Strategic Commissioning CYPS,Greatbatch Ltd,"ADVERTISING, PUBLICITY AND MARKETING","1,287.00",0,Commercial Supplier
10/04/2018,Strategic Commissioning CYPS,Greatbatch Ltd,"ADVERTISING, PUBLICITY AND MARKETING","1,265.00",0,Commercial Supplier
10/04/2018,Business and Growth NCCS,Greenham Trading Ltd,CLEANING MATERIALS,393.00,0,Commercial Supplier
10/04/2018,Business and Growth NCCS,Greenham Trading Ltd,CLEANING MATERIALS,354.26,0,Commercial Supplier
10/04/2018,Business and Growth NCCS,Greenham Trading Ltd,CLEANING MATERIALS,252.78,0,Commercial Supplier
10/04/2018,Business and Growth NCCS,Greenham Trading Ltd,CLEANING MATERIALS,272.76,0,Commercial Supplier
10/04/2018,Business and Growth NCCS,Greenham Trading Ltd,CLEANING MATERIALS,407.53,0,Commercial Supplier
10/04/2018,Business and Growth NCCS,Greenham Trading Ltd,CLEANING MATERIALS,"1,135.62",0,Commercial Supplier
10/04/2018,Business and Growth NCCS,Greenham Trading Ltd,CLEANING MATERIALS,653.00,0,Commercial Supplier
10/04/2018,Business and Growth NCCS,Greenham Trading Ltd,CLEANING MATERIALS,753.27,0,Commercial Supplier
10/04/2018,Business and Growth NCCS,Greenham Trading Ltd,CLEANING MATERIALS,653.00,0,Commercial Supplier
10/04/2018,Business and Growth NCCS,Greenham Trading Ltd,CLEANING MATERIALS,366.02,0,Commercial Supplier
10/04/2018,Business and Growth NCCS,Greenham Trading Ltd,CLEANING MATERIALS,379.11,0,Commercial Supplier
10/04/2018,Business and Growth NCCS,Greenham Trading Ltd,CLEANING MATERIALS,297.01,0,Commercial Supplier
10/04/2018,Business and Growth NCCS,Greenham Trading Ltd,CLEANING MATERIALS,"1,581.38",0,Commercial Supplier
10/04/2018,Business and Growth NCCS,Greenham Trading Ltd,CLEANING MATERIALS,273.62,0,Commercial Supplier
10/04/2018,Business and Growth NCCS,Greenham Trading Ltd,CLEANING MATERIALS,758.73,0,Commercial Supplier
10/04/2018,Business and Growth NCCS,Greenham Trading Ltd,CLEANING MATERIALS,285.68,0,Commercial Supplier
10/04/2018,Business and Growth NCCS,Greenham Trading Ltd,CLEANING MATERIALS,"1,178.40",0,Commercial Supplier
10/04/2018,Business and Growth NCCS,Greenham Trading Ltd,CLEANING MATERIALS,550.19,0,Commercial Supplier
10/04/2018,Business and Growth NCCS,Greenham Trading Ltd,CLEANING MATERIALS,258.88,0,Commercial Supplier
10/04/2018,Business and Growth NCCS,Greenham Trading Ltd,CLEANING MATERIALS,286.99,0,Commercial Supplier
10/04/2018,Business and Growth NCCS,Greenham Trading Ltd,CLEANING MATERIALS,"1,074.58",0,Commercial Supplier
10/04/2018,Business and Growth NCCS,Greenham Trading Ltd,CLEANING MATERIALS,418.60,0,Commercial Supplier
10/04/2018,Housing Revenue Account HRA,Grosvenor Contract Leasing Ltd,DIRECT TRANSPORT,510.89,0,Supplier
10/04/2018,Strategic Commissioning Adults,Help In Newham Ltd,HOME CARE - PRIVATE CONTRACTORS PAYMENT,"4,104.00",0,Supplier
10/04/2018,Strategic Commissioning Adults,Help In Newham Ltd,DAYCARE - PRIVATE CONTRACTORS PAYMENT,"2,295.00",0,Supplier
10/04/2018,Customer & Strategic Services Communications,Joanne Clement,LEGAL FEES,714.67,0,Commercial Supplier
10/04/2018,Strategic Commissioning CYPS,Jon Stroud Ltd,PAYMENTS TO VOLUNTARY SECTOR,"1,483.22",0,Supplier
10/04/2018,Strategic Commissioning CYPS,Jon Stroud Ltd,PAYMENTS TO VOLUNTARY SECTOR,"5,468.24",0,Supplier
10/04/2018,oneSource oS Finance,KPMG LLP,PROFESSIONAL SERVICES - GENERAL,"1,250.00",0,Commercial Supplier
10/04/2018,oneSource oS Finance,KPMG LLP,PROFESSIONAL SERVICES - GENERAL,"26,971.00",0,Commercial Supplier
10/04/2018,Dedicated Schools Budget Dedicated Schools Budget,Kay Rowe Nursery School,INDEPENDENT UNITS WITHIN THE COUNCIL,"48,290.00",0,Supplier
10/04/2018,Dedicated Schools Budget Dedicated Schools Budget,Keir Hardie Primary School,INDEPENDENT UNITS WITHIN THE COUNCIL,"252,825.00",0,Supplier
10/04/2018,Housing Revenue Account HRA,Kent County Council (Kcs),GAS,908.26,0,Local Authority Services
10/04/2018,Housing Revenue Account HRA,Kent County Council (Kcs),ELECTRICITY,"1,108.38",0,Local Authority Services
10/04/2018,Housing Revenue Account HRA,Kent County Council (Kcs),ELECTRICITY,"1,298.24",0,Local Authority Services
10/04/2018,Housing Revenue Account HRA,Kent County Council (Kcs),ELECTRICITY,"1,399.52",0,Local Authority Services
10/04/2018,Housing Revenue Account HRA,Kent County Council (Kcs),ELECTRICITY,"1,671.78",0,Local Authority Services
10/04/2018,Housing Revenue Account HRA,Kent County Council (Kcs),ELECTRICITY,"1,375.77",0,Local Authority Services
10/04/2018,Housing Revenue Account HRA,Kent County Council (Kcs),ELECTRICITY,"1,397.42",0,Local Authority Services
10/04/2018,Housing Revenue Account HRA,Kent County Council (Kcs),ELECTRICITY,"1,039.33",0,Local Authority Services
10/04/2018,Housing Revenue Account HRA,Kent County Council (Kcs),ELECTRICITY,772.70,0,Local Authority Services
10/04/2018,Housing Revenue Account HRA,Kent County Council (Kcs),ELECTRICITY,672.84,0,Local Authority Services
10/04/2018,Housing Revenue Account HRA,Kent County Council (Kcs),ELECTRICITY,506.83,0,Local Authority Services
10/04/2018,Housing Revenue Account HRA,Kent County Council (Kcs),ELECTRICITY,839.52,0,Local Authority Services
10/04/2018,Housing Revenue Account HRA,Kent County Council (Kcs),ELECTRICITY,992.38,0,Local Authority Services
10/04/2018,Housing Revenue Account HRA,Kent County Council (Kcs),ELECTRICITY,678.88,0,Local Authority Services
10/04/2018,Strategic Commissioning Community and Environment,Kent County Council (Kcs),ELECTRICITY,"165,106.01",0,Local Authority Services
10/04/2018,Housing Revenue Account HRA,Kent County Council (Kcs),ELECTRICITY,"1,245.64",0,Local Authority Services
10/04/2018,Housing Revenue Account HRA,Kent County Council (Kcs),ELECTRICITY,"1,845.44",0,Local Authority Services
10/04/2018,Housing Revenue Account HRA,Kent County Council (Kcs),ELECTRICITY,708.82,0,Local Authority Services
10/04/2018,Housing Revenue Account HRA,Kent County Council (Kcs),GAS,840.11,0,Local Authority Services
10/04/2018,Strategic Commissioning Community and Environment,Kent County Council (Kcs),ELECTRICITY,"143,386.55",0,Local Authority Services
10/04/2018,Strategic Commissioning Community and Environment,Kent County Council (Kcs),ELECTRICITY,"135,648.52",0,Local Authority Services
10/04/2018,Housing Revenue Account HRA,Kent County Council (Kcs),ELECTRICITY,"2,244.37",0,Local Authority Services
10/04/2018,Housing Revenue Account HRA,Kent County Council (Kcs),ELECTRICITY,965.74,0,Local Authority Services
10/04/2018,Dedicated Schools Budget Dedicated Schools Budget,Kingsford Community School,INDEPENDENT UNITS WITHIN THE COUNCIL,"1,173,094.00",0,Non Commercial Supplier
10/04/2018,oneSource - Non Shared Asset Management,L M Installations Ltd,BUILDING ALTERATIONS AND MATERIALS,"1,104.85",0,CIS
10/04/2018,Dedicated Schools Budget Dedicated Schools Budget,LBN Oliver Thomas School,INDEPENDENT UNITS WITHIN THE COUNCIL,"40,462.00",0,Supplier
10/04/2018,Dedicated Schools Budget Dedicated Schools Budget,Lathom Primary,INDEPENDENT UNITS WITHIN THE COUNCIL,"242,679.00",0,Supplier
10/04/2018,Dedicated Schools Budget Dedicated Schools Budget,Lister Community School,INDEPENDENT UNITS WITHIN THE COUNCIL,"875,469.00",0,Local Authority Services
10/04/2018,Dedicated Schools Budget Dedicated Schools Budget,Little Ilford School,INDEPENDENT UNITS WITHIN THE COUNCIL,"851,418.00",0,Supplier
10/04/2018,Strategic Commissioning Community and Environment,London Hire Ltd,SUBSISTENCE,"2,691.92",0,Commercial Supplier
10/04/2018,Strategic Commissioning Community and Environment,London Hire Ltd,SUBSISTENCE,859.88,0,Commercial Supplier
10/04/2018,Strategic Commissioning Community and Environment,London Hire Ltd,SUBSISTENCE,479.92,0,Commercial Supplier
10/04/2018,RMS RMS,London Hire Ltd,VEHICLE HIRE,"6,174.00",0,Commercial Supplier
10/04/2018,Dedicated Schools Budget Dedicated Schools Budget,Manor Primary School,INDEPENDENT UNITS WITHIN THE COUNCIL,"186,914.00",0,Supplier
10/04/2018,Housing Revenue Account HRA,Manpower Direct Ltd,SECURITY OF PREMISES,"43,731.83",0,Commercial Supplier
10/04/2018,Housing Revenue Account HRA,Manpower Direct Ltd,SECURITY OF PREMISES,"54,102.48",0,Commercial Supplier
10/04/2018,Housing Revenue Account HRA,Manpower Direct Ltd,SECURITY OF PREMISES,"33,972.48",0,Commercial Supplier
10/04/2018,Housing Revenue Account HRA,Manpower Direct Ltd,SECURITY OF PREMISES,"56,738.76",0,Commercial Supplier
10/04/2018,Housing Revenue Account HRA,Manpower Direct Ltd,SECURITY OF PREMISES,"43,722.00",0,Commercial Supplier
10/04/2018,Dedicated Schools Budget Dedicated Schools Budget,Maryland Primary,INDEPENDENT UNITS WITHIN THE COUNCIL,"233,660.00",0,Supplier
10/04/2018,Strategic Commissioning Adults,Mind in Tower Hamlets And Newham,PRIVATE CONTRACTORS PAYMENT - OTHER,"12,479.50",0,Commercial Supplier
10/04/2018,Strategic Commissioning CYPS,Miss Ijeoma Omambala,LEGAL FEES,612.50,0,Commercial Supplier
10/04/2018,Strategic Commissioning Community and Environment,NPower,ELECTRICITY,285.49,0,Commercial Supplier
10/04/2018,Strategic Commissioning Community and Environment,NPower,ELECTRICITY,371.91,0,Commercial Supplier
10/04/2018,Strategic Commissioning Community and Environment,NPower,ELECTRICITY,"2,222.65",0,Commercial Supplier
10/04/2018,Strategic Commissioning Community and Environment,NPower,ELECTRICITY,426.18,0,Commercial Supplier
10/04/2018,Customer & Strategic Services Customer Transactions,NPower,GAS,255.06,0,Commercial Supplier
10/04/2018,Strategic Commissioning Community and Environment,NPower,ELECTRICITY,901.32,0,Commercial Supplier
10/04/2018,Strategic Commissioning Community and Environment,NPower,ELECTRICITY,276.88,0,Commercial Supplier
10/04/2018,Strategic Commissioning Community and Environment,NPower,ELECTRICITY,"1,356.93",0,Commercial Supplier
10/04/2018,Strategic Commissioning Community and Environment,NPower,ELECTRICITY,322.64,0,Commercial Supplier
10/04/2018,Strategic Commissioning Community and Environment,NPower,ELECTRICITY,994.92,0,Commercial Supplier
10/04/2018,Strategic Commissioning Community and Environment,NPower,ELECTRICITY,"2,424.12",0,Commercial Supplier
10/04/2018,Strategic Commissioning Community and Environment,NPower,ELECTRICITY,"4,188.33",0,Commercial Supplier
10/04/2018,Strategic Commissioning Community and Environment,NPower,ELECTRICITY,532.94,0,Commercial Supplier
10/04/2018,Strategic Commissioning Community and Environment,NPower,ELECTRICITY,725.10,0,Commercial Supplier
10/04/2018,Strategic Commissioning Community and Environment,NPower,ELECTRICITY,262.19,0,Commercial Supplier
10/04/2018,Strategic Commissioning Community and Environment,NPower,ELECTRICITY,268.93,0,Commercial Supplier
10/04/2018,Strategic Commissioning Community and Environment,NPower,ELECTRICITY,269.24,0,Commercial Supplier
10/04/2018,Strategic Commissioning Community and Environment,NPower,ELECTRICITY,430.06,0,Commercial Supplier
10/04/2018,Strategic Commissioning Community and Environment,NPower,ELECTRICITY,"2,956.20",0,Commercial Supplier
10/04/2018,Strategic Commissioning Community and Environment,NPower,ELECTRICITY,609.50,0,Commercial Supplier
10/04/2018,Strategic Commissioning Community and Environment,NPower,ELECTRICITY,"1,359.11",0,Commercial Supplier
10/04/2018,Strategic Commissioning Community and Environment,NPower,ELECTRICITY,924.16,0,Commercial Supplier
10/04/2018,Strategic Commissioning Community and Environment,NPower,ELECTRICITY,"1,316.43",0,Commercial Supplier
10/04/2018,Dedicated Schools Budget Dedicated Schools Budget,New Directions,INDEPENDENT UNITS WITHIN THE COUNCIL,"37,591.00",0,Commercial Supplier
10/04/2018,Dedicated Schools Budget Dedicated Schools Budget,New Directions,INDEPENDENT UNITS WITHIN THE COUNCIL,"37,591.00",0,Commercial Supplier
10/04/2018,Strategic Commissioning Community and Environment,Newham & UEL Swimming Club (NUELSC),ARTS AND LEISURE COSTS,"8,000.00",0,Commercial Supplier
10/04/2018,oneSource - Non Shared Asset Management,Newham Learning Partnership (Project Co) Limited,"MAINTENANCE - EQUIPMENT, FURNITURE AND MATERIALS","294,303.70",0,Supplier
10/04/2018,oneSource - Non Shared Asset Management,Newham Learning Partnership (Project Co) Limited,"MAINTENANCE - EQUIPMENT, FURNITURE AND MATERIALS","365,897.95",0,Supplier
10/04/2018,Dedicated Schools Budget Dedicated Schools Budget,North Beckton Primary School,INDEPENDENT UNITS WITHIN THE COUNCIL,"266,227.00",0,Non Commercial Supplier
10/04/2018,Strategic Commissioning Community and Environment,Northgate Vehicle Hire Ltd,VEHICLE HIRE,397.80,0,Non Commercial Supplier
10/04/2018,Strategic Commissioning Community and Environment,Northgate Vehicle Hire Ltd,VEHICLE HIRE,615.55,0,Non Commercial Supplier
10/04/2018,Strategic Commissioning Community and Environment,Northgate Vehicle Hire Ltd,VEHICLE HIRE,397.80,0,Non Commercial Supplier
10/04/2018,Strategic Commissioning Community and Environment,Northgate Vehicle Hire Ltd,VEHICLE HIRE,397.80,0,Non Commercial Supplier
10/04/2018,Strategic Commissioning Community and Environment,Northgate Vehicle Hire Ltd,VEHICLE HIRE,328.25,0,Non Commercial Supplier
10/04/2018,Strategic Commissioning Community and Environment,Northgate Vehicle Hire Ltd,VEHICLE HIRE,328.25,0,Non Commercial Supplier
10/04/2018,Strategic Commissioning Community and Environment,Northgate Vehicle Hire Ltd,VEHICLE HIRE,397.80,0,Non Commercial Supplier
10/04/2018,Strategic Commissioning Community and Environment,Northgate Vehicle Hire Ltd,VEHICLE HIRE,397.80,0,Non Commercial Supplier
10/04/2018,Strategic Commissioning Community and Environment,Northgate Vehicle Hire Ltd,VEHICLE HIRE,397.80,0,Non Commercial Supplier
10/04/2018,Strategic Commissioning Community and Environment,Northgate Vehicle Hire Ltd,VEHICLE HIRE,397.80,0,Non Commercial Supplier
10/04/2018,Strategic Commissioning Community and Environment,Northgate Vehicle Hire Ltd,VEHICLE HIRE,345.02,0,Non Commercial Supplier
10/04/2018,Strategic Commissioning Community and Environment,Northgate Vehicle Hire Ltd,VEHICLE HIRE,273.21,0,Non Commercial Supplier
10/04/2018,Strategic Commissioning Community and Environment,Northgate Vehicle Hire Ltd,VEHICLE HIRE,273.37,0,Non Commercial Supplier
10/04/2018,Strategic Commissioning Community and Environment,Northgate Vehicle Hire Ltd,VEHICLE HIRE,345.02,0,Non Commercial Supplier
10/04/2018,Strategic Commissioning Community and Environment,Northgate Vehicle Hire Ltd,VEHICLE HIRE,397.80,0,Non Commercial Supplier
10/04/2018,Strategic Commissioning Adults,OCN Contract Services,"PURCHASE - EQUIPMENT, FURNITURE AND MATERIALS",496.00,0,Commercial Supplier
10/04/2018,Dedicated Schools Budget Dedicated Schools Budget,Odessa Infants,INDEPENDENT UNITS WITHIN THE COUNCIL,"125,921.00",0,Supplier
10/04/2018,Dedicated Schools Budget Dedicated Schools Budget,Park Primary School,INDEPENDENT UNITS WITHIN THE COUNCIL,"262,701.00",0,Supplier
10/04/2018,Strategic Commissioning Adults,Perfect Community Care Ltd,DAYCARE - PRIVATE CONTRACTORS PAYMENT,280.00,0,Commercial Supplier
10/04/2018,Strategic Commissioning Adults,Perfect Community Care Ltd,DAYCARE - PRIVATE CONTRACTORS PAYMENT,280.00,0,Commercial Supplier
10/04/2018,Dedicated Schools Budget Dedicated Schools Budget,Plaistow Primary School,INDEPENDENT UNITS WITHIN THE COUNCIL,"211,520.00",0,Commercial Supplier
10/04/2018,Dedicated Schools Budget Dedicated Schools Budget,Plashet School,INDEPENDENT UNITS WITHIN THE COUNCIL,"863,658.00",0,Supplier
10/04/2018,Dedicated Schools Budget Dedicated Schools Budget,Rebecca Cheetham Nursery,INDEPENDENT UNITS WITHIN THE COUNCIL,"89,921.00",0,Supplier
10/04/2018,Strategic Commissioning CYPS,Redspot Healthcare Services Ltd,AGENCY STAFF,591.00,0,Commercial Supplier
10/04/2018,Strategic Commissioning CYPS,Redspot Healthcare Services Ltd,AGENCY STAFF,"1,218.75",0,Commercial Supplier
10/04/2018,Strategic Commissioning CYPS,Redspot Healthcare Services Ltd,AGENCY STAFF,886.50,0,Commercial Supplier
10/04/2018,Strategic Commissioning CYPS,Redspot Healthcare Services Ltd,AGENCY STAFF,591.00,0,Commercial Supplier
10/04/2018,Dedicated Schools Budget Dedicated Schools Budget,Rokeby School,INDEPENDENT UNITS WITHIN THE COUNCIL,"751,713.00",0,Supplier
10/04/2018,Dedicated Schools Budget Dedicated Schools Budget,Roman Road Primary School,INDEPENDENT UNITS WITHIN THE COUNCIL,"135,264.00",0,Supplier
10/04/2018,Dedicated Schools Budget Dedicated Schools Budget,Ronald Openshaw Nursery,INDEPENDENT UNITS WITHIN THE COUNCIL,"70,402.00",0,Supplier
10/04/2018,Dedicated Schools Budget Dedicated Schools Budget,Salisbury Primary School,INDEPENDENT UNITS WITHIN THE COUNCIL,"291,956.00",0,Supplier
10/04/2018,Dedicated Schools Budget Dedicated Schools Budget,Sandringham Primary School,INDEPENDENT UNITS WITHIN THE COUNCIL,"415,746.00",0,Supplier
10/04/2018,Dedicated Schools Budget Dedicated Schools Budget,Sandringham Primary School,INDEPENDENT UNITS WITHIN THE COUNCIL,"415,746.00",0,Supplier
10/04/2018,Dedicated Schools Budget Dedicated Schools Budget,Sarah Bonnell School,INDEPENDENT UNITS WITHIN THE COUNCIL,"901,062.00",0,Supplier
10/04/2018,Dedicated Schools Budget Dedicated Schools Budget,Sheringham Nursery School,INDEPENDENT UNITS WITHIN THE COUNCIL,"89,117.00",0,Supplier
10/04/2018,oneSource - Non Shared Asset Management,Shred-it Ltd,FACILITIES MANAGEMENT,600.00,0,Supplier
10/04/2018,Dedicated Schools Budget Dedicated Schools Budget,Sir John Heron Primary School,INDEPENDENT UNITS WITHIN THE COUNCIL,"244,556.00",0,Supplier
10/04/2018,Dedicated Schools Budget Dedicated Schools Budget,Southern Rd Primary School,INDEPENDENT UNITS WITHIN THE COUNCIL,"328,516.00",0,Supplier
10/04/2018,Dedicated Schools Budget Dedicated Schools Budget,St Angelas Ursuline School,INDEPENDENT UNITS WITHIN THE COUNCIL,"764,749.00",0,Supplier
10/04/2018,Dedicated Schools Budget Dedicated Schools Budget,St Anthonys R.C Junior,INDEPENDENT UNITS WITHIN THE COUNCIL,"192,555.00",0,Supplier
10/04/2018,Dedicated Schools Budget Dedicated Schools Budget,St Bonaventures Rc School,INDEPENDENT UNITS WITHIN THE COUNCIL,"711,407.00",0,Supplier
10/04/2018,Dedicated Schools Budget Dedicated Schools Budget,St Edward's Rc Primary School,INDEPENDENT UNITS WITHIN THE COUNCIL,"182,209.00",0,Supplier
10/04/2018,Dedicated Schools Budget Dedicated Schools Budget,St Francis RC Primary School,INDEPENDENT UNITS WITHIN THE COUNCIL,"215,307.00",0,Supplier
10/04/2018,Dedicated Schools Budget Dedicated Schools Budget,St James' C Of E Junior School,INDEPENDENT UNITS WITHIN THE COUNCIL,"117,345.00",0,Supplier
10/04/2018,Dedicated Schools Budget Dedicated Schools Budget,St Lukes C Of E Primary School,INDEPENDENT UNITS WITHIN THE COUNCIL,"132,695.00",0,Supplier
10/04/2018,Dedicated Schools Budget Dedicated Schools Budget,St Michael's Rc Primary School,INDEPENDENT UNITS WITHIN THE COUNCIL,"107,255.00",0,Supplier
10/04/2018,Dedicated Schools Budget Dedicated Schools Budget,St Stephens Nursery School,INDEPENDENT UNITS WITHIN THE COUNCIL,"67,140.00",0,Supplier
10/04/2018,Dedicated Schools Budget Dedicated Schools Budget,St Stephens Primary,INDEPENDENT UNITS WITHIN THE COUNCIL,"242,491.00",0,Supplier
10/04/2018,Dedicated Schools Budget Dedicated Schools Budget,St Winefride's Rc Primary Sch,INDEPENDENT UNITS WITHIN THE COUNCIL,"137,360.00",0,Supplier
10/04/2018,Dedicated Schools Budget Dedicated Schools Budget,Star Primary School,INDEPENDENT UNITS WITHIN THE COUNCIL,"397,427.00",0,Supplier
10/04/2018,Strategic Commissioning Externalised Business Units,Steer73 Ltd,CONSULTANCY FEES,"6,250.00",0,Non Commercial Supplier
10/04/2018,Strategic Commissioning Community and Environment,Straight Manufacturing Ltd,WASTE DISPOSAL COSTS,314.48,0,Commercial Supplier
10/04/2018,Dedicated Schools Budget Dedicated Schools Budget,The Tunmarsh Pru School,INDEPENDENT UNITS WITHIN THE COUNCIL,"62,208.00",0,Supplier
10/04/2018,Strategic Commissioning Community and Environment,Uk Power Networks (Ops) Ltd,BUILDING ALTERATIONS AND MATERIALS,482.00,0,CIS
10/04/2018,Strategic Commissioning Community and Environment,Uk Power Networks (Ops) Ltd,BUILDING ALTERATIONS AND MATERIALS,482.00,0,CIS
10/04/2018,Strategic Commissioning Community and Environment,Uk Power Networks (Ops) Ltd,BUILDING ALTERATIONS AND MATERIALS,482.00,0,CIS
10/04/2018,Strategic Commissioning Community and Environment,Uk Power Networks (Ops) Ltd,BUILDING ALTERATIONS AND MATERIALS,"1,704.00",0,CIS
10/04/2018,Strategic Commissioning Community and Environment,Uk Power Networks (Ops) Ltd,BUILDING ALTERATIONS AND MATERIALS,"1,704.00",0,CIS
10/04/2018,Strategic Commissioning Community and Environment,Uk Power Networks (Ops) Ltd,BUILDING ALTERATIONS AND MATERIALS,"1,704.00",0,CIS
10/04/2018,Strategic Commissioning Community and Environment,Uk Power Networks (Ops) Ltd,BUILDING ALTERATIONS AND MATERIALS,482.00,0,CIS
10/04/2018,Strategic Commissioning Community and Environment,Uk Power Networks (Ops) Ltd,BUILDING ALTERATIONS AND MATERIALS,482.00,0,CIS
10/04/2018,Strategic Commissioning Community and Environment,Uk Power Networks (Ops) Ltd,BUILDING ALTERATIONS AND MATERIALS,"1,704.00",0,CIS
10/04/2018,Strategic Commissioning Community and Environment,Uk Power Networks (Ops) Ltd,BUILDING ALTERATIONS AND MATERIALS,482.00,0,CIS
10/04/2018,Strategic Commissioning Community and Environment,Uk Power Networks (Ops) Ltd,BUILDING ALTERATIONS AND MATERIALS,301.00,0,CIS
10/04/2018,Dedicated Schools Budget Dedicated Schools Budget,West Ham C Of E Primary School,INDEPENDENT UNITS WITHIN THE COUNCIL,"134,479.00",0,Supplier
10/04/2018,Strategic Commissioning Adults,Weston Ltd,PAYMENT TO HEALTH AUTHORITIES,"5,167.58",0,Supplier
10/04/2018,Dedicated Schools Budget Dedicated Schools Budget,William Davies Primary School,INDEPENDENT UNITS WITHIN THE COUNCIL,"103,605.00",0,Supplier
10/04/2018,Housing Revenue Account HRA,Willow Pumps Limited,RESPONSIVE REPAIRS - MECHANICAL AND ELECTRICAL,260.00,0,Commercial Supplier
10/04/2018,Housing Revenue Account HRA,Willow Pumps Limited,RESPONSIVE REPAIRS - MECHANICAL AND ELECTRICAL,260.00,0,Commercial Supplier
10/04/2018,Dedicated Schools Budget Dedicated Schools Budget,Winsor Primary School,INDEPENDENT UNITS WITHIN THE COUNCIL,"321,462.00",0,Local Authority Services
10/04/2018,Dedicated Schools Budget Dedicated Schools Budget,Woodgrange Infants School,INDEPENDENT UNITS WITHIN THE COUNCIL,"167,173.00",0,Supplier
10/04/2018,Strategic Commissioning CYPS,Wrixon Care Services,CONTACT COSTS (PLACEMENTS),"1,038.10",0,Commercial Supplier
10/04/2018,Strategic Commissioning CYPS,Wrixon Care Services,CONTACT COSTS (PLACEMENTS),387.50,0,Commercial Supplier
10/04/2018,Strategic Commissioning CYPS,Wrixon Care Services,CONTACT COSTS (PLACEMENTS),"2,209.50",0,Commercial Supplier
10/04/2018,Strategic Commissioning CYPS,Wrixon Care Services,CONTACT COSTS (PLACEMENTS),722.00,0,Commercial Supplier
10/04/2018,Strategic Commissioning CYPS,Wrixon Care Services,CONTACT COSTS (PLACEMENTS),"1,574.89",0,Commercial Supplier
10/04/2018,Strategic Commissioning CYPS,Zfa Limited,NO RECOURSE TO PUBLIC FUNDS - PRIVATE CONTRACTORS PAYMENT,280.00,0,Supplier
10/04/2018,Strategic Commissioning CYPS,Zfa Limited,NO RECOURSE TO PUBLIC FUNDS - PRIVATE CONTRACTORS PAYMENT,"1,380.00",0,Supplier
10/04/2018,Strategic Commissioning CYPS,Zfa Limited,NO RECOURSE TO PUBLIC FUNDS - PRIVATE CONTRACTORS PAYMENT,896.00,0,Supplier
10/04/2018,Strategic Commissioning CYPS,Zfa Limited,SECTION 17 - PRIVATE CONTRACTORS PAYMENT,896.00,0,Supplier
10/04/2018,Strategic Commissioning CYPS,Zfa Limited,SECTION 17 - PRIVATE CONTRACTORS PAYMENT,700.00,0,Supplier
10/04/2018,Strategic Commissioning CYPS,Zfa Limited,SECTION 17 - PRIVATE CONTRACTORS PAYMENT,544.00,0,Supplier
10/04/2018,Strategic Commissioning CYPS,Zfa Limited,SECTION 17 - PRIVATE CONTRACTORS PAYMENT,980.00,0,Supplier
10/04/2018,Strategic Commissioning CYPS,adam HTT LTd T/A Adam,ICT HARDWARE,"15,000.00",0,Supplier
11/04/2018,Strategic Commissioning Adults,A Kassim,PAYMENT TO HEALTH AUTHORITIES,306.90,0,Supplier
11/04/2018,Strategic Commissioning Adults,A Kassim,PAYMENT TO HEALTH AUTHORITIES,306.90,0,Supplier
11/04/2018,Strategic Commissioning Adults,A Kassim,PAYMENT TO HEALTH AUTHORITIES,456.90,0,Supplier
11/04/2018,Strategic Commissioning Community and Environment,Active Newham,ARTS AND LEISURE COSTS,"372,128.50",0,Supplier
11/04/2018,Dedicated Schools Budget Dedicated Schools Budget,Redacted - Personal Data,DIRECT PAYMENTS,"36,111.00",0,Commercial Supplier
11/04/2018,Customer & Strategic Services Customer Engagement,Alison Touzout,ARTS AND LEISURE COSTS,420.00,0,Non Commercial Supplier
11/04/2018,Customer & Strategic Services Communications,Andrew Baker,"PURCHASE - EQUIPMENT, FURNITURE AND MATERIALS",275.00,0,Supplier
11/04/2018,Strategic Commissioning CYPS,Avanti Gas Ltd,LIQUID FUEL,"2,419.44",0,Commercial Supplier
11/04/2018,Strategic Commissioning Community and Environment,Banner Group Ltd,STATIONERY,486.72,0,Commercial Supplier
11/04/2018,Strategic Commissioning Adults,Barts Health NHS Trust,PAYMENT TO HEALTH AUTHORITIES,"12,500.00",0,NHS Bodies
11/04/2018,Strategic Commissioning Adults,Barts Health NHS Trust,PAYMENT TO HEALTH AUTHORITIES,"194,279.92",0,NHS Bodies
11/04/2018,Strategic Commissioning Adults,Barts Health NHS Trust,PAYMENT TO HEALTH AUTHORITIES,"12,500.00",0,NHS Bodies
11/04/2018,Strategic Commissioning Adults,Barts Health NHS Trust,PAYMENT TO HEALTH AUTHORITIES,"194,279.92",0,NHS Bodies
11/04/2018,Business and Growth Business and Growth,Bevan Brittan,CONSULTANCY FEES,553.00,0,Legal Services
11/04/2018,Business and Growth Business and Growth,Bevan Brittan,CONSULTANCY FEES,"1,191.00",0,Legal Services
11/04/2018,Business and Growth Business and Growth,Bevan Brittan,CONSULTANCY FEES,878.84,0,Legal Services
11/04/2018,Business and Growth Business and Growth,Bevan Brittan,CONSULTANCY FEES,"1,714.00",0,Legal Services
11/04/2018,Business and Growth Business and Growth,Bevan Brittan,CONSULTANCY FEES,"5,370.20",0,Legal Services
11/04/2018,Business and Growth Business and Growth,Bevan Brittan,CONSULTANCY FEES,"1,217.00",0,Legal Services
11/04/2018,Business and Growth Business and Growth,Bevan Brittan,CONSULTANCY FEES,553.00,0,Legal Services
11/04/2018,Business and Growth Business and Growth,Bevan Brittan,CONSULTANCY FEES,"1,191.00",0,Legal Services
11/04/2018,Business and Growth Business and Growth,Bevan Brittan,CONSULTANCY FEES,878.84,0,Legal Services
11/04/2018,Business and Growth Business and Growth,Bevan Brittan,CONSULTANCY FEES,"1,714.00",0,Legal Services
11/04/2018,Business and Growth Business and Growth,Bevan Brittan,CONSULTANCY FEES,"5,370.20",0,Legal Services
11/04/2018,Business and Growth Business and Growth,Bevan Brittan,CONSULTANCY FEES,"1,217.00",0,Legal Services
11/04/2018,oneSource - Non Shared Asset Management,Bloom Procurement Services Ltd,CONSULTANCY FEES,"5,040.00",0,Commercial Supplier
11/04/2018,oneSource - Non Shared Asset Management,Bloom Procurement Services Ltd,CONSULTANCY FEES,"3,610.53",0,Commercial Supplier
11/04/2018,Strategic Commissioning CYPS,Britannia Village Primary School t/a Britannia Academy,CATERING SERVICES,"11,637.20",0,Commercial Supplier
11/04/2018,Strategic Commissioning Adults,Bystone Ltd,PAYMENT TO OTHER LOCAL AUTHORITIES,"1,077.84",0,Commercial Supplier
11/04/2018,oneSource oS ICT Services,CCS Media Limited,ICT HARDWARE,"3,141.20",0,Commercial Supplier
11/04/2018,oneSource oS Finance,CIPFA,PROFESSIONAL SERVICES - GENERAL,295.00,0,Commercial Supplier
11/04/2018,Strategic Commissioning CYPS,Care 2 Share 1,LEGAL FEES,"1,714.28",0,Supplier
11/04/2018,Strategic Commissioning CYPS,Care 2 Share 1,LEGAL FEES,"6,680.00",0,Supplier
11/04/2018,Strategic Commissioning Community and Environment,Cavendish Media Ltd,"ADVERTISING, PUBLICITY AND MARKETING","3,657.06",0,Supplier
11/04/2018,Strategic Commissioning CYPS,Cleves Primary School t/a Boleyn Trust,CATERING SERVICES,"8,652.70",0,Commercial Supplier
11/04/2018,oneSource - Non Shared LBN Transactional Services,Computershare Voucher Services,PROFESSIONAL SERVICES - GENERAL,"15,415.06",0,Commercial Supplier
11/04/2018,Strategic Commissioning CYPS,Drew Primary School t/a Learning in Harmony Trust,CATERING SERVICES,"8,521.10",0,Commercial Supplier
11/04/2018,Dedicated Schools Budget Dedicated Schools Budget,Redacted - Personal Data,DIRECT PAYMENTS,"183,141.00",0,Non Commercial Supplier
11/04/2018,oneSource - Non Shared Asset Management,Griffin Elevators Ltd,BUILDING ALTERATIONS AND MATERIALS,"1,100.00",0,CIS
11/04/2018,oneSource - Non Shared Asset Management,Griffin Elevators Ltd,BUILDING ALTERATIONS AND MATERIALS,"3,489.60",0,CIS
11/04/2018,Strategic Commissioning CYPS,Hartley Primary School t/a Learning in Harmony,CATERING SERVICES,"2,864.65",0,Commercial Supplier
11/04/2018,Strategic Commissioning Community and Environment,Henry Gordon,LEGAL FEES,750.00,0,Legal Services
11/04/2018,Strategic Commissioning Community and Environment,Henry Gordon,LEGAL FEES,750.00,0,Legal Services
11/04/2018,Strategic Commissioning Community and Environment,Henry Gordon,LEGAL FEES,400.00,0,Legal Services
11/04/2018,Strategic Commissioning Community and Environment,Henry Gordon,LEGAL FEES,"1,575.00",0,Legal Services
11/04/2018,Strategic Commissioning Adults,Homerton University Hospital NHS Foundation Trust,PAYMENT TO HEALTH AUTHORITIES,"13,330.00",0,NHS Bodies
11/04/2018,Dedicated Schools Budget Dedicated Schools Budget,Jigsaw Occupational Therapy Ltd,OCCUPATIONAL HEALTH,"1,025.60",0,Commercial Supplier
11/04/2018,Dedicated Schools Budget Dedicated Schools Budget,Jigsaw Occupational Therapy Ltd,OCCUPATIONAL HEALTH,"1,387.60",0,Commercial Supplier
11/04/2018,Dedicated Schools Budget Dedicated Schools Budget,Jigsaw Occupational Therapy Ltd,OCCUPATIONAL HEALTH,881.60,0,Commercial Supplier
11/04/2018,Dedicated Schools Budget Dedicated Schools Budget,Jigsaw Occupational Therapy Ltd,OCCUPATIONAL HEALTH,843.60,0,Commercial Supplier
11/04/2018,Strategic Commissioning Community and Environment,Joanna Staples,LEGAL FEES,750.00,0,Supplier
11/04/2018,Strategic Commissioning CYPS,John F Kennedy School,CATERING SERVICES,679.15,0,Non Commercial Supplier
11/04/2018,Strategic Commissioning CYPS,John F Kennedy School,CATERING SERVICES,679.15,0,Non Commercial Supplier
11/04/2018,Strategic Commissioning CYPS,Kaizen Primary School t/a EKO Trust,CATERING SERVICES,"9,388.75",0,Commercial Supplier
11/04/2018,Strategic Commissioning CYPS,Kensington Primary School t/a Tapscott Learning Trust,CATERING SERVICES,"12,697.05",0,Commercial Supplier
11/04/2018,oneSource - Non Shared Asset Management,L M Installations Ltd,BUILDING ALTERATIONS AND MATERIALS,277.80,0,CIS
11/04/2018,oneSource - Non Shared Asset Management,L M Installations Ltd,BUILDING ALTERATIONS AND MATERIALS,304.20,0,CIS
11/04/2018,oneSource - Non Shared Asset Management,L M Installations Ltd,BUILDING ALTERATIONS AND MATERIALS,318.00,0,CIS
11/04/2018,oneSource - Non Shared Asset Management,L M Installations Ltd,BUILDING ALTERATIONS AND MATERIALS,277.80,0,CIS
11/04/2018,oneSource - Non Shared Asset Management,L M Installations Ltd,BUILDING ALTERATIONS AND MATERIALS,277.80,0,CIS
11/04/2018,oneSource - Non Shared Asset Management,L M Installations Ltd,BUILDING ALTERATIONS AND MATERIALS,277.80,0,CIS
11/04/2018,Strategic Commissioning Community and Environment,LEDNET,MEMBERSHIP AND SUBSCRIPTIONS,"2,500.00",0,Commercial Supplier
11/04/2018,Strategic Commissioning Community and Environment,LEDNET,MEMBERSHIP AND SUBSCRIPTIONS,"2,500.00",0,Commercial Supplier
11/04/2018,oneSource - Non Shared LBN Transactional Services,Local Pensions Partnership Ltd,MISCELLANEOUS EXPENSES,"3,591.22",0,Commercial Supplier
11/04/2018,oneSource - Non Shared LBN Transactional Services,Local Pensions Partnership Ltd,MISCELLANEOUS EXPENSES,594.00,0,Commercial Supplier
11/04/2018,Strategic Commissioning CYPS,Maldon District Council,COUNCIL TAX,"2,037.55",0,Supplier
11/04/2018,Strategic Commissioning CYPS,Maldon District Council,COUNCIL TAX,"19,320.00",0,Supplier
11/04/2018,Strategic Commissioning CYPS,Maldon District Council,COUNCIL TAX,"4,920.00",0,Supplier
11/04/2018,Housing Revenue Account HRA,Manpower Direct Ltd,SECURITY OF PREMISES,"14,627.04",0,Commercial Supplier
11/04/2018,Housing Revenue Account HRA,Manpower Direct Ltd,SECURITY OF PREMISES,"79,269.12",0,Commercial Supplier
11/04/2018,Housing Revenue Account HRA,Manpower Direct Ltd,SECURITY OF PREMISES,"58,584.96",0,Commercial Supplier
11/04/2018,Housing Revenue Account HRA,Manpower Direct Ltd,SECURITY OF PREMISES,"45,296.64",0,Commercial Supplier
11/04/2018,Housing Revenue Account HRA,Manpower Direct Ltd,SECURITY OF PREMISES,"79,269.12",0,Commercial Supplier
11/04/2018,Housing Revenue Account HRA,Manpower Direct Ltd,SECURITY OF PREMISES,"58,584.96",0,Commercial Supplier
11/04/2018,Housing Revenue Account HRA,Manpower Direct Ltd,SECURITY OF PREMISES,"33,477.12",0,Commercial Supplier
11/04/2018,Housing Revenue Account HRA,Manpower Direct Ltd,SECURITY OF PREMISES,"79,269.12",0,Commercial Supplier
11/04/2018,Strategic Commissioning CYPS,Marielle Lemasle,AGENCY STAFF,395.81,0,Individuals
11/04/2018,Strategic Commissioning Adults,Micol Ascoli,PRIVATE CONTRACTORS PAYMENT - OTHER,300.00,0,Supplier
11/04/2018,Strategic Commissioning Community and Environment,Miss Rebecca Turner,LEGAL FEES,650.00,0,Commercial Supplier
11/04/2018,Strategic Commissioning CYPS,Monega Primary School t/a Boleyn Academy Trust,CATERING SERVICES,"14,962.20",0,Non Commercial Supplier
11/04/2018,Strategic Commissioning CYPS,Mrs Forida Gulshon,AGENCY STAFF,402.00,0,Individuals
11/04/2018,Strategic Commissioning Adults,NHS Supply Chain,SPECIALIST EQUIPMENT FOR SERVICE PROVISION,"7,929.72",0,NHS Bodies
11/04/2018,Strategic Commissioning Adults,NHS Supply Chain,SPECIALIST EQUIPMENT FOR SERVICE PROVISION,363.13,0,NHS Bodies
11/04/2018,Strategic Commissioning CYPS,NPower,BUILDING ALTERATIONS AND MATERIALS,327.17,0,Commercial Supplier
11/04/2018,oneSource - Non Shared Asset Management,NPower,ELECTRICITY,"4,736.34",0,Commercial Supplier
11/04/2018,oneSource - Non Shared Asset Management,NPower,ELECTRICITY,286.77,0,Commercial Supplier
11/04/2018,oneSource - Non Shared Asset Management,NPower,ELECTRICITY,"1,256.97",0,Commercial Supplier
11/04/2018,oneSource - Non Shared Asset Management,NPower,ELECTRICITY,452.88,0,Commercial Supplier
11/04/2018,oneSource - Non Shared Asset Management,NPower,ELECTRICITY,298.74,0,Commercial Supplier
11/04/2018,oneSource - Non Shared Asset Management,NPower,ELECTRICITY,"1,504.45",0,Commercial Supplier
11/04/2018,oneSource - Non Shared Asset Management,NPower,ELECTRICITY,903.05,0,Commercial Supplier
11/04/2018,oneSource - Non Shared Asset Management,NPower,ELECTRICITY,252.51,0,Commercial Supplier
11/04/2018,oneSource - Non Shared Asset Management,NPower,ELECTRICITY,834.22,0,Commercial Supplier
11/04/2018,oneSource - Non Shared Asset Management,NPower,ELECTRICITY,930.07,0,Commercial Supplier
11/04/2018,oneSource - Non Shared Asset Management,NPower,ELECTRICITY,301.88,0,Commercial Supplier
11/04/2018,oneSource - Non Shared Asset Management,NPower,ELECTRICITY,554.25,0,Commercial Supplier
11/04/2018,oneSource - Non Shared Asset Management,NPower,ELECTRICITY,486.17,0,Commercial Supplier
11/04/2018,oneSource - Non Shared Asset Management,NPower,ELECTRICITY,411.61,0,Commercial Supplier
11/04/2018,oneSource - Non Shared Asset Management,NPower,ELECTRICITY,"1,738.18",0,Commercial Supplier
11/04/2018,oneSource - Non Shared Asset Management,NPower,ELECTRICITY,278.81,0,Commercial Supplier
11/04/2018,Dedicated Schools Budget Dedicated Schools Budget,Redacted - Personal Data,DIRECT PAYMENTS,"90,065.00",0,Commercial Supplier
11/04/2018,Strategic Commissioning Community and Environment,Newham & UEL Swimming Club (NUELSC),ARTS AND LEISURE COSTS,"2,000.00",0,Commercial Supplier
11/04/2018,Strategic Commissioning CYPS,Newhaven 16 Plus Ltd,SUPPORTED OTHER ACCOMMODATION - PRIVATE CONTRACTORS PAYMENT,"1,400.00",0,Supplier
11/04/2018,Strategic Commissioning CYPS,Newhaven 16 Plus Ltd,SUPPORTED OTHER ACCOMMODATION - PRIVATE CONTRACTORS PAYMENT,"1,450.00",0,Supplier
11/04/2018,Strategic Commissioning Community and Environment,Nicholas Ham,LEGAL FEES,500.00,0,Legal Services
11/04/2018,Strategic Commissioning Community and Environment,Nicholas Ham,LEGAL FEES,"1,050.00",0,Legal Services
11/04/2018,Strategic Commissioning Community and Environment,Nicholas Ham,LEGAL FEES,"1,850.00",0,Legal Services
11/04/2018,Strategic Commissioning Community and Environment,Nicholas Ham,LEGAL FEES,300.00,0,Legal Services
11/04/2018,Strategic Commissioning CYPS,Our Lady Of Grace Catholic Academy Trust,CATERING SERVICES,"5,368.20",0,Supplier
11/04/2018,Strategic Commissioning CYPS,Plaistow Primary School,CATERING SERVICES,"10,821.02",0,Commercial Supplier
11/04/2018,Dedicated Schools Budget Dedicated Schools Budget,Redacted - Personal Data,DIRECT PAYMENTS,"45,783.00",0,Commercial Supplier
11/04/2018,Dedicated Schools Budget Dedicated Schools Budget,Redacted - Personal Data,DIRECT PAYMENTS,"52,888.00",0,Commercial Supplier
11/04/2018,Strategic Commissioning CYPS,Ravenscroft Primary School t/a Boleyn Academy,CATERING SERVICES,"10,069.75",0,Commercial Supplier
11/04/2018,Dedicated Schools Budget Dedicated Schools Budget,Redacted - Personal Data,DIRECT PAYMENTS,"73,481.00",0,Commercial Supplier
11/04/2018,oneSource oS Strategic & Operational HR,Reed Business Information Ltd,PROFESSIONAL SERVICES - GENERAL,"17,255.00",0,Commercial Supplier
11/04/2018,Strategic Commissioning CYPS,Rosetta Primary School t/a Boleyn Academy Trust,CATERING SERVICES,"12,986.10",0,Non Commercial Supplier
11/04/2018,Strategic Commissioning Adults,Rsp Rail Travel Account Atos Origin It Service Ltd,PUBLIC TRANSPORT FOR CLIENTS,281.25,0,Supplier
11/04/2018,Strategic Commissioning Adults,Rsp Rail Travel Account Atos Origin It Service Ltd,PUBLIC TRANSPORT FOR CLIENTS,490.80,0,Supplier
11/04/2018,Strategic Commissioning Adults,Rsp Rail Travel Account Atos Origin It Service Ltd,PUBLIC TRANSPORT FOR CLIENTS,795.30,0,Supplier
11/04/2018,Strategic Commissioning Adults,Rsp Rail Travel Account Atos Origin It Service Ltd,PUBLIC TRANSPORT FOR CLIENTS,424.55,0,Supplier
11/04/2018,Strategic Commissioning Adults,Rsp Rail Travel Account Atos Origin It Service Ltd,PUBLIC TRANSPORT FOR CLIENTS,535.60,0,Supplier
11/04/2018,Strategic Commissioning Community and Environment,Ryan Thompson,LEGAL FEES,750.00,0,Supplier
11/04/2018,Strategic Commissioning Community and Environment,Ryan Thompson,LEGAL FEES,600.00,0,Supplier
11/04/2018,Strategic Commissioning Community and Environment,Ryan Thompson,LEGAL FEES,"2,250.00",0,Supplier
11/04/2018,Strategic Commissioning CYPS,Selwyn Primary School t/a Leading Learning Trust,CATERING SERVICES,"8,074.60",0,Commercial Supplier
11/04/2018,Dedicated Schools Budget Dedicated Schools Budget,Redacted - Personal Data,DIRECT PAYMENTS,"77,934.00",0,Commercial Supplier
11/04/2018,Dedicated Schools Budget Dedicated Schools Budget,Redacted - Personal Data,DIRECT PAYMENTS,"58,674.00",0,Commercial Supplier
11/04/2018,Strategic Commissioning Adults,Shuttleworth (UK) Ltd,RENTS PAYABLE,"5,449.00",0,Commercial Supplier
11/04/2018,Strategic Commissioning Adults,Smart Hotels Ltd,RENTS PAYABLE,900.00,0,Commercial Supplier
11/04/2018,Strategic Commissioning Adults,Smart Hotels Ltd,RENTS PAYABLE,900.00,0,Commercial Supplier
11/04/2018,Strategic Commissioning CYPS,St Helens t/a Our Lady of Grace Academy,CATERING SERVICES,"10,692.70",0,Individuals
11/04/2018,Dedicated Schools Budget Dedicated Schools Budget,Redacted - Personal Data,DIRECT PAYMENTS,"80,778.00",0,Individuals
11/04/2018,Dedicated Schools Budget Dedicated Schools Budget,Redacted - Personal Data,DIRECT PAYMENTS,"38,544.00",0,
11/04/2018,Strategic Commissioning CYPS,St Michael's Rc Primary School,CATERING SERVICES,"5,027.80",0,Supplier
11/04/2018,Regeneration and Planning Economic Regeneration,Stratford City Shopping Centre (No.1) Gp Ltd,RENTS PAYABLE,"52,357.81",0,Commercial Supplier
11/04/2018,Strategic Commissioning Adults,T Cribb & Sons,BEREAVEMENT SERVICES EQUIPMENT,411.00,0,Supplier
11/04/2018,Customer & Strategic Services Communications,Text Help Ltd,PROFESSIONAL SERVICES - GENERAL,"2,605.00",0,Supplier
11/04/2018,Strategic Commissioning Externalised Business Units,The British Assesment Bureau,TRANSLATORS AND INTERPRETERS,"1,499.00",0,Commercial Supplier
11/04/2018,Dedicated Schools Budget Dedicated Schools Budget,Redacted - Personal Data,DIRECT PAYMENTS,"62,696.00",0,Commercial Supplier
11/04/2018,Dedicated Schools Budget Dedicated Schools Budget,Redacted - Personal Data,DIRECT PAYMENTS,"108,958.00",0,Supplier
11/04/2018,Dedicated Schools Budget Dedicated Schools Budget,Redacted - Personal Data,DIRECT PAYMENTS,"108,958.00",0,Supplier
11/04/2018,Dedicated Schools Budget Dedicated Schools Budget,Redacted - Personal Data,DIRECT PAYMENTS,"60,080.00",0,Non Commercial Supplier
11/04/2018,Strategic Commissioning Community and Environment,Zarif Khan,LEGAL FEES,400.00,0,Supplier
11/04/2018,Strategic Commissioning Community and Environment,Zarif Khan,LEGAL FEES,"3,250.00",0,Supplier
12/04/2018,Strategic Commissioning Adults,About Me Care and Support Ltd,DAYCARE - PRIVATE CONTRACTORS PAYMENT,935.04,0,Commercial Supplier
12/04/2018,Strategic Commissioning Adults,About Me Care and Support Ltd,DAYCARE - PRIVATE CONTRACTORS PAYMENT,935.04,0,Commercial Supplier
12/04/2018,Dedicated Schools Budget Dedicated Schools Budget,Redacted - Personal Data,DIRECT PAYMENTS,"56,734.00",0,Commercial Supplier
12/04/2018,Strategic Commissioning Adults,Alters Recruitment Ltd,DAYCARE - PRIVATE CONTRACTORS PAYMENT,"5,049.91",0,Supplier
12/04/2018,Strategic Commissioning Adults,Alters Recruitment Ltd,HOME CARE - PRIVATE CONTRACTORS PAYMENT,"31,856.55",0,Supplier
12/04/2018,Strategic Commissioning Adults,Alters Recruitment Ltd,RESPITE CARE - PRIVATE CONTRACTORS PAYMENT,"2,428.80",0,Supplier
12/04/2018,Customer & Strategic Services Complaints and Members Enquiries,Redacted - Personal Data,MISCELLANEOUS EXPENSES,300.00,0,Individuals
12/04/2018,Strategic Commissioning Enforcement and Safety,Anas Auditor,NON STAFF PERMITS & DISCS INCOME,295.00,0,Commercial Supplier
12/04/2018,Housing Revenue Account HRA,Aticus Law,LEGAL FEES,"4,000.00",0,Individuals
12/04/2018,Strategic Commissioning Adults,Bettertogether Limited,ADULT PLACEMENT SCHEME - PRIVATE CONTRACTORS PAYMENT,"2,856.00",0,Non Commercial Supplier
12/04/2018,Strategic Commissioning Adults,Bettertogether Limited,ADULT PLACEMENT SCHEME - PRIVATE CONTRACTORS PAYMENT,"1,832.00",0,Non Commercial Supplier
12/04/2018,Strategic Commissioning Adults,Bettertogether Limited,ADULT PLACEMENT SCHEME - PRIVATE CONTRACTORS PAYMENT,"1,612.00",0,Non Commercial Supplier
12/04/2018,Strategic Commissioning Adults,Bettertogether Limited,ADULT PLACEMENT SCHEME - PRIVATE CONTRACTORS PAYMENT,"1,612.00",0,Non Commercial Supplier
12/04/2018,Strategic Commissioning Adults,Bettertogether Limited,ADULT PLACEMENT SCHEME - PRIVATE CONTRACTORS PAYMENT,"2,056.00",0,Non Commercial Supplier
12/04/2018,Strategic Commissioning Adults,Bettertogether Limited,ADULT PLACEMENT SCHEME - PRIVATE CONTRACTORS PAYMENT,"1,612.00",0,Non Commercial Supplier
12/04/2018,Strategic Commissioning Adults,Bettertogether Limited,ADULT PLACEMENT SCHEME - PRIVATE CONTRACTORS PAYMENT,"2,056.00",0,Non Commercial Supplier
12/04/2018,Strategic Commissioning Adults,Bettertogether Limited,ADULT PLACEMENT SCHEME - PRIVATE CONTRACTORS PAYMENT,"2,056.00",0,Non Commercial Supplier
12/04/2018,Strategic Commissioning Adults,Bettertogether Limited,ADULT PLACEMENT SCHEME - PRIVATE CONTRACTORS PAYMENT,"1,832.00",0,Non Commercial Supplier
12/04/2018,Strategic Commissioning Adults,Bettertogether Limited,ADULT PLACEMENT SCHEME - PRIVATE CONTRACTORS PAYMENT,"1,915.16",0,Non Commercial Supplier
12/04/2018,Strategic Commissioning Adults,Bettertogether Limited,ADULT PLACEMENT SCHEME - PRIVATE CONTRACTORS PAYMENT,"2,056.00",0,Non Commercial Supplier
12/04/2018,Strategic Commissioning Adults,Bettertogether Limited,ADULT PLACEMENT SCHEME - PRIVATE CONTRACTORS PAYMENT,"2,856.00",0,Non Commercial Supplier
12/04/2018,Strategic Commissioning Adults,Bettertogether Limited,ADULT PLACEMENT SCHEME - PRIVATE CONTRACTORS PAYMENT,"1,612.00",0,Non Commercial Supplier
12/04/2018,Strategic Commissioning Adults,Bettertogether Limited,ADULT PLACEMENT SCHEME - PRIVATE CONTRACTORS PAYMENT,"1,612.00",0,Non Commercial Supplier
12/04/2018,Strategic Commissioning Adults,Bettertogether Limited,ADULT PLACEMENT SCHEME - PRIVATE CONTRACTORS PAYMENT,"2,656.00",0,Non Commercial Supplier
12/04/2018,Strategic Commissioning Adults,Bettertogether Limited,ADULT PLACEMENT SCHEME - PRIVATE CONTRACTORS PAYMENT,"2,056.00",0,Non Commercial Supplier
12/04/2018,Strategic Commissioning Adults,Bettertogether Limited,ADULT PLACEMENT SCHEME - PRIVATE CONTRACTORS PAYMENT,"2,336.00",0,Non Commercial Supplier
12/04/2018,Strategic Commissioning Adults,Bettertogether Limited,ADULT PLACEMENT SCHEME - PRIVATE CONTRACTORS PAYMENT,"1,832.00",0,Non Commercial Supplier
12/04/2018,Strategic Commissioning Adults,Bettertogether Limited,ADULT PLACEMENT SCHEME - PRIVATE CONTRACTORS PAYMENT,"1,832.00",0,Non Commercial Supplier
12/04/2018,Strategic Commissioning Adults,Bettertogether Limited,ADULT PLACEMENT SCHEME - PRIVATE CONTRACTORS PAYMENT,"2,736.00",0,Non Commercial Supplier
12/04/2018,Strategic Commissioning Adults,Bettertogether Limited,ADULT PLACEMENT SCHEME - PRIVATE CONTRACTORS PAYMENT,"2,056.00",0,Non Commercial Supplier
12/04/2018,Strategic Commissioning Adults,Bettertogether Limited,ADULT PLACEMENT SCHEME - PRIVATE CONTRACTORS PAYMENT,"2,056.00",0,Non Commercial Supplier
12/04/2018,Strategic Commissioning Adults,Bettertogether Limited,ADULT PLACEMENT SCHEME - PRIVATE CONTRACTORS PAYMENT,"2,056.00",0,Non Commercial Supplier
12/04/2018,Strategic Commissioning Adults,Bettertogether Limited,ADULT PLACEMENT SCHEME - PRIVATE CONTRACTORS PAYMENT,"2,132.00",0,Non Commercial Supplier
12/04/2018,Strategic Commissioning Adults,Bettertogether Limited,ADULT PLACEMENT SCHEME - PRIVATE CONTRACTORS PAYMENT,"2,136.00",0,Non Commercial Supplier
12/04/2018,Strategic Commissioning Adults,Bettertogether Limited,ADULT PLACEMENT SCHEME - PRIVATE CONTRACTORS PAYMENT,"2,856.00",0,Non Commercial Supplier
12/04/2018,Strategic Commissioning Adults,Bettertogether Limited,ADULT PLACEMENT SCHEME - PRIVATE CONTRACTORS PAYMENT,"1,832.00",0,Non Commercial Supplier
12/04/2018,Strategic Commissioning Adults,Bettertogether Limited,ADULT PLACEMENT SCHEME - PRIVATE CONTRACTORS PAYMENT,"2,056.00",0,Non Commercial Supplier
12/04/2018,Strategic Commissioning CYPS,Bettertogether Limited,EQUIPMENT & ADAPTATION - PRIVATE CONTRACTORS PAYMENT,"1,832.00",0,Non Commercial Supplier
12/04/2018,Strategic Commissioning CYPS,Bettertogether Limited,SUPPORTED OTHER ACCOMMODATION - PRIVATE CONTRACTORS PAYMENT,"1,612.00",0,Non Commercial Supplier
12/04/2018,Strategic Commissioning Adults,Bettertogether Limited,ADULT PLACEMENT SCHEME - PRIVATE CONTRACTORS PAYMENT,"2,355.16",0,Non Commercial Supplier
12/04/2018,Strategic Commissioning Adults,Bettertogether Limited,ADULT PLACEMENT SCHEME - PRIVATE CONTRACTORS PAYMENT,"1,832.00",0,Non Commercial Supplier
12/04/2018,Strategic Commissioning Adults,Bettertogether Limited,ADULT PLACEMENT SCHEME - PRIVATE CONTRACTORS PAYMENT,"2,536.00",0,Non Commercial Supplier
12/04/2018,Strategic Commissioning Adults,Bettertogether Limited,ADULT PLACEMENT SCHEME - PRIVATE CONTRACTORS PAYMENT,"2,176.80",0,Non Commercial Supplier
12/04/2018,Strategic Commissioning Adults,Bettertogether Limited,ADULT PLACEMENT SCHEME - PRIVATE CONTRACTORS PAYMENT,"1,392.00",0,Non Commercial Supplier
12/04/2018,Strategic Commissioning Adults,Bettertogether Limited,ADULT PLACEMENT SCHEME - PRIVATE CONTRACTORS PAYMENT,"2,056.00",0,Non Commercial Supplier
12/04/2018,Strategic Commissioning Adults,Bettertogether Limited,ADULT PLACEMENT SCHEME - PRIVATE CONTRACTORS PAYMENT,"1,832.00",0,Non Commercial Supplier
12/04/2018,Strategic Commissioning Adults,Bettertogether Limited,ADULT PLACEMENT SCHEME - PRIVATE CONTRACTORS PAYMENT,"2,032.00",0,Non Commercial Supplier
12/04/2018,Strategic Commissioning CYPS,Bettertogether Limited,EQUIPMENT & ADAPTATION - PRIVATE CONTRACTORS PAYMENT,"1,832.00",0,Non Commercial Supplier
12/04/2018,Strategic Commissioning Adults,Bettertogether Limited,ADULT PLACEMENT SCHEME - PRIVATE CONTRACTORS PAYMENT,"3,056.00",0,Non Commercial Supplier
12/04/2018,Strategic Commissioning Adults,Bio Luminuex Health Care Ltd,HOME CARE - PRIVATE CONTRACTORS PAYMENT,700.00,0,Supplier
12/04/2018,Strategic Commissioning Adults,Bio Luminuex Health Care Ltd,HOME CARE - PRIVATE CONTRACTORS PAYMENT,700.00,0,Supplier
12/04/2018,Strategic Commissioning Adults,Bluebird Care (Newham),DAYCARE - PRIVATE CONTRACTORS PAYMENT,"1,325.00",0,Supplier
12/04/2018,Strategic Commissioning Adults,Bluebird Care (Newham),HOME CARE - PRIVATE CONTRACTORS PAYMENT,"1,484.02",0,Supplier
12/04/2018,Strategic Commissioning Adults,Bluebird Care (Newham),HOME CARE - PRIVATE CONTRACTORS PAYMENT,521.83,0,Supplier
12/04/2018,Strategic Commissioning Adults,Bluebird Care (Newham),HOME CARE - PRIVATE CONTRACTORS PAYMENT,278.32,0,Supplier
12/04/2018,Strategic Commissioning Adults,Bluebird Care (Newham),DAYCARE - PRIVATE CONTRACTORS PAYMENT,278.30,0,Supplier
12/04/2018,Strategic Commissioning Adults,Bluebird Care (Newham),HOME CARE - PRIVATE CONTRACTORS PAYMENT,"1,855.15",0,Supplier
12/04/2018,Dedicated Schools Budget Dedicated Schools Budget,Redacted - Personal Data,DIRECT PAYMENTS,"59,006.00",0,Commercial Supplier
12/04/2018,Strategic Commissioning CYPS,Castle Care Homes,RESIDENTIAL PLACEMENTS - PRIVATE CONTRACTORS PAYMENT,"13,486.60",0,Commercial Supplier
12/04/2018,Dedicated Schools Budget Dedicated Schools Budget,Redacted - Personal Data,DIRECT PAYMENTS,"76,743.00",0,Commercial Supplier
12/04/2018,Strategic Commissioning CYPS,Clayhall Executive Cars Ltd,CONTACT COSTS (PLACEMENTS),342.00,0,Commercial Supplier
12/04/2018,Strategic Commissioning CYPS,Clayhall Executive Cars Ltd,NO RECOURSE TO PUBLIC FUNDS - PRIVATE CONTRACTORS PAYMENT,263.00,0,Commercial Supplier
12/04/2018,Housing Revenue Account HRA,Clear Law Solicitors,LEGAL FEES,650.00,0,Commercial Supplier
12/04/2018,Housing Revenue Account HRA,Clear Law Solicitors,LEGAL FEES,"3,600.00",0,Commercial Supplier
12/04/2018,Dedicated Schools Budget Dedicated Schools Budget,Redacted - Personal Data,DIRECT PAYMENTS,"86,433.00",0,Commercial Supplier
12/04/2018,Dedicated Schools Budget Dedicated Schools Budget,Redacted - Personal Data,SCHOOLS - TRANSFER PAYMENT,"1,170.00",0,Supplier
12/04/2018,Dedicated Schools Budget Dedicated Schools Budget,Redacted - Personal Data,DIRECT PAYMENTS,"122,683.00",0,Commercial Supplier
12/04/2018,Housing Revenue Account HRA,Daisy Communications Ltd,LAND LINE TELEPHONE COSTS,438.77,0,Commercial Supplier
12/04/2018,Strategic Commissioning CYPS,Redacted - Personal Data,CLIENT EXPENSES - THIRD PARTY,"1,914.76",0,Foster Carers
12/04/2018,Strategic Commissioning CYPS,David G Hall,LEGAL FEES,"1,820.00",0,Commercial Supplier
12/04/2018,Dedicated Schools Budget Dedicated Schools Budget,Redacted - Personal Data,DIRECT PAYMENTS,"65,216.00",0,Commercial Supplier
12/04/2018,Dedicated Schools Budget Dedicated Schools Budget,Redacted - Personal Data,DIRECT PAYMENTS,"61,207.00",0,Non Commercial Supplier
12/04/2018,Dedicated Schools Budget Dedicated Schools Budget,Early Start Education Ltd,PAYMENT TO OTHER ESTABLISHMENTS - GENERAL,"6,240.00",0,Individuals
12/04/2018,Dedicated Schools Budget Dedicated Schools Budget,Redacted - Personal Data,SCHOOLS - TRANSFER PAYMENT,"10,920.00",0,Individuals
12/04/2018,Strategic Commissioning CYPS,East London Nhs Foundation Tst,PAYMENT TO HEALTH AUTHORITIES,"9,796.00",0,Supplier
12/04/2018,Strategic Commissioning CYPS,East London Nhs Foundation Tst,PAYMENT TO HEALTH AUTHORITIES,"2,436.00",0,Supplier
12/04/2018,Strategic Commissioning CYPS,East London Nhs Foundation Tst,PAYMENT TO HEALTH AUTHORITIES,"2,029.00",0,Supplier
12/04/2018,Strategic Commissioning CYPS,East London Nhs Foundation Tst,PAYMENT TO HEALTH AUTHORITIES,"1,624.00",0,Supplier
12/04/2018,Strategic Commissioning Adults,East Thames Group,SUPPORTED OTHER ACCOMMODATION - PRIVATE CONTRACTORS PAYMENT,"1,384.00",0,Supplier
12/04/2018,Strategic Commissioning Adults,East Thames Group,SUPPORTED OTHER ACCOMMODATION - PRIVATE CONTRACTORS PAYMENT,"1,411.56",0,Supplier
12/04/2018,Strategic Commissioning Adults,East Thames Group,SUPPORTED OTHER ACCOMMODATION - PRIVATE CONTRACTORS PAYMENT,317.20,0,Supplier
12/04/2018,Strategic Commissioning Adults,East Thames Group,DAYCARE - PRIVATE CONTRACTORS PAYMENT,444.08,0,Supplier
12/04/2018,Strategic Commissioning Adults,Eastway Care Ltd,DAYCARE - PRIVATE CONTRACTORS PAYMENT,"24,954.80",0,Commercial Supplier
12/04/2018,Strategic Commissioning Adults,Eastway Care Ltd,DAYCARE - PRIVATE CONTRACTORS PAYMENT,"13,363.28",0,Commercial Supplier
12/04/2018,Strategic Commissioning Adults,Ellingham Employment Services,DAYCARE - PRIVATE CONTRACTORS PAYMENT,"1,000.00",0,Supplier
12/04/2018,Strategic Commissioning Adults,Ellingham Employment Services,DAYCARE - PRIVATE CONTRACTORS PAYMENT,"1,602.56",0,Supplier
12/04/2018,Strategic Commissioning Adults,Ellingham Employment Services,DAYCARE - PRIVATE CONTRACTORS PAYMENT,434.24,0,Supplier
12/04/2018,Strategic Commissioning Adults,Ellingham Employment Services,DAYCARE - PRIVATE CONTRACTORS PAYMENT,408.00,0,Supplier
12/04/2018,Strategic Commissioning Adults,Ellingham Employment Services,DAYCARE - PRIVATE CONTRACTORS PAYMENT,480.00,0,Supplier
12/04/2018,Strategic Commissioning Adults,Ellingham Employment Services,DAYCARE - PRIVATE CONTRACTORS PAYMENT,480.00,0,Supplier
12/04/2018,Strategic Commissioning CYPS,Elliot Leigh TLC Ltd,CLIENT SUPPORT - THIRD PARTY,"1,000.00",0,Commercial Supplier
12/04/2018,Strategic Commissioning CYPS,Elliot Leigh TLC Ltd,CLIENT SUPPORT - THIRD PARTY,"1,000.00",0,Commercial Supplier
12/04/2018,Strategic Commissioning CYPS,Elliot Leigh TLC Ltd,CLIENT SUPPORT - THIRD PARTY,"1,140.00",0,Commercial Supplier
12/04/2018,Strategic Commissioning CYPS,Elliot Leigh TLC Ltd,CLIENT SUPPORT - THIRD PARTY,"1,000.00",0,Commercial Supplier
12/04/2018,Strategic Commissioning CYPS,Elliot Leigh TLC Ltd,IN HOUSE FOSTER CARE PLACEMENTS - PRIVATE CONTRACTORS PAYMENT,"1,000.00",0,Commercial Supplier
12/04/2018,Strategic Commissioning CYPS,Elliot Leigh TLC Ltd,CLIENT SUPPORT - THIRD PARTY,320.00,0,Commercial Supplier
12/04/2018,Strategic Commissioning CYPS,Elliot Leigh TLC Ltd,CLIENT SUPPORT - THIRD PARTY,840.00,0,Commercial Supplier
12/04/2018,Strategic Commissioning CYPS,Elliot Leigh TLC Ltd,CLIENT SUPPORT - THIRD PARTY,840.00,0,Commercial Supplier
12/04/2018,Strategic Commissioning CYPS,Elliot Leigh TLC Ltd,IN HOUSE FOSTER CARE PLACEMENTS - PRIVATE CONTRACTORS PAYMENT,"1,440.00",0,Commercial Supplier
12/04/2018,Strategic Commissioning CYPS,Elliot Leigh TLC Ltd,IN HOUSE FOSTER CARE PLACEMENTS - PRIVATE CONTRACTORS PAYMENT,"1,000.00",0,Commercial Supplier
12/04/2018,Strategic Commissioning CYPS,Elliot Leigh TLC Ltd,IN HOUSE FOSTER CARE PLACEMENTS - PRIVATE CONTRACTORS PAYMENT,840.00,0,Commercial Supplier
12/04/2018,Strategic Commissioning CYPS,Elliot Leigh TLC Ltd,SUPPORTED OTHER ACCOMMODATION - PRIVATE CONTRACTORS PAYMENT,320.00,0,Commercial Supplier
12/04/2018,Strategic Commissioning CYPS,Elliot Leigh TLC Ltd,CLIENT SUPPORT - THIRD PARTY,"1,000.00",0,Commercial Supplier
12/04/2018,Strategic Commissioning Adults,GB Adaptions Ltd,PRIVATE CONTRACTORS PAYMENT - OTHER,"1,228.00",0,Supplier
12/04/2018,Dedicated Schools Budget Dedicated Schools Budget,Redacted - Personal Data,DIRECT PAYMENTS,"33,788.00",0,Commercial Supplier
12/04/2018,Dedicated Schools Budget Dedicated Schools Budget,Redacted - Personal Data,DIRECT PAYMENTS,"50,488.00",0,Commercial Supplier
12/04/2018,Dedicated Schools Budget Dedicated Schools Budget,Redacted - Personal Data,DIRECT PAYMENTS,"138,889.00",0,Commercial Supplier
12/04/2018,Strategic Commissioning CYPS,Redacted - Personal Data,LOOKED AFTER COST OTHER,500.00,0,Individuals
12/04/2018,Strategic Commissioning Adults,Help In Newham Ltd,HOME CARE - PRIVATE CONTRACTORS PAYMENT,"1,890.00",0,Supplier
12/04/2018,Strategic Commissioning Adults,Help In Newham Ltd,DAYCARE - PRIVATE CONTRACTORS PAYMENT,945.00,0,Supplier
12/04/2018,Strategic Commissioning Adults,Help In Newham Ltd,HOME CARE - PRIVATE CONTRACTORS PAYMENT,720.00,0,Supplier
12/04/2018,Strategic Commissioning CYPS,John F Kennedy School,CATERING SERVICES,439.45,0,Non Commercial Supplier
12/04/2018,Strategic Commissioning CYPS,John F Kennedy School,CATERING SERVICES,439.45,0,Non Commercial Supplier
12/04/2018,Strategic Commissioning CYPS,Jon Stroud Ltd,PAYMENTS TO VOLUNTARY SECTOR,"2,737.56",0,Supplier
12/04/2018,Strategic Commissioning CYPS,Jon Stroud Ltd,PAYMENTS TO VOLUNTARY SECTOR,"2,675.32",0,Supplier
12/04/2018,Strategic Commissioning CYPS,Redacted - Personal Data,CLIENT EXPENSES - THIRD PARTY,500.00,0,Foster Carers
12/04/2018,Strategic Commissioning CYPS,Redacted - Personal Data,CLIENT EXPENSES - THIRD PARTY,"2,000.00",0,Foster Carers
12/04/2018,Strategic Commissioning CYPS,Redacted - Personal Data,NO RECOURSE TO PUBLIC FUNDS - PRIVATE CONTRACTORS PAYMENT,961.00,0,Supplier
12/04/2018,Strategic Commissioning CYPS,Redacted - Personal Data,NO RECOURSE TO PUBLIC FUNDS - PRIVATE CONTRACTORS PAYMENT,868.00,0,Supplier
12/04/2018,Dedicated Schools Budget Dedicated Schools Budget,Redacted - Personal Data,DIRECT PAYMENTS,"64,980.00",0,Commercial Supplier
12/04/2018,Strategic Commissioning CYPS,Kaizen Primary School t/a EKO Trust,CATERING SERVICES,"7,557.62",0,Commercial Supplier
12/04/2018,Strategic Commissioning CYPS,Katherine Nuza Ltd,PAYMENTS TO VOLUNTARY SECTOR,"6,203.49",0,Supplier
12/04/2018,Dedicated Schools Budget Dedicated Schools Budget,Redacted - Personal Data,DIRECT PAYMENTS,"71,820.00",0,Commercial Supplier
12/04/2018,oneSource - Non Shared Asset Management,Kent County Council (Kcs),GAS,803.54,0,Local Authority Services
12/04/2018,oneSource - Non Shared Asset Management,Kent County Council (Kcs),GAS,473.15,0,Local Authority Services
12/04/2018,oneSource - Non Shared Asset Management,Kent County Council (Kcs),GAS,485.12,0,Local Authority Services
12/04/2018,Strategic Commissioning Community and Environment,Kent County Council (Kcs),ELECTRICITY,253.14,0,Local Authority Services
12/04/2018,Strategic Commissioning CYPS,Redacted - Personal Data,IN HOUSE FOSTER CARE PLACEMENTS - PRIVATE CONTRACTORS PAYMENT,"1,195.40",0,Foster Carers
12/04/2018,Strategic Commissioning CYPS,Langdon Academy,CATERING SERVICES,"8,349.55",0,Non Commercial Supplier
12/04/2018,Strategic Commissioning CYPS,Langdon Academy,PAYMENT TO HEALTH AUTHORITIES,"6,991.25",0,Non Commercial Supplier
12/04/2018,Strategic Commissioning CYPS,Redacted - Personal Data,IN HOUSE FOSTER CARE PLACEMENTS - PRIVATE CONTRACTORS PAYMENT,"1,866.15",0,Supplier
12/04/2018,Dedicated Schools Budget Dedicated Schools Budget,Redacted - Personal Data,SCHOOLS - TRANSFER PAYMENT,"2,340.00",0,Commercial Supplier
12/04/2018,Dedicated Schools Budget Dedicated Schools Budget,Magic Years Nursery Ltd,PAYMENT TO OTHER ESTABLISHMENTS - GENERAL,"3,900.00",0,Commercial Supplier
12/04/2018,Strategic Commissioning CYPS,Redacted - Personal Data,IN HOUSE FOSTER CARE PLACEMENTS - PRIVATE CONTRACTORS PAYMENT,322.00,0,Individuals
12/04/2018,Strategic Commissioning CYPS,Redacted - Personal Data,IN HOUSE FOSTER CARE PLACEMENTS - PRIVATE CONTRACTORS PAYMENT,322.00,0,Individuals
12/04/2018,Strategic Commissioning CYPS,Michael Bonsu Gyambi,CLIENT EXPENSES - THIRD PARTY,"2,000.00",0,Individuals
12/04/2018,Strategic Commissioning Adults,Redacted - Personal Data,RENT ALLOWANCES,507.87,0,Individuals
12/04/2018,Dedicated Schools Budget Dedicated Schools Budget,Redacted - Personal Data,DIRECT PAYMENTS,"74,214.00",0,Non Commercial Supplier
12/04/2018,Housing Revenue Account HRA,Redacted - Personal Data,COMPENSATION,500.00,0,Individuals
12/04/2018,Strategic Commissioning Enforcement and Safety,Redacted - Personal Data,PCN INCOME,295.00,0,Individuals
12/04/2018,Housing Revenue Account HRA,NPower,ELECTRICITY,"159,664.42",0,Commercial Supplier
12/04/2018,Dedicated Schools Budget Dedicated Schools Budget,Redacted - Personal Data,DIRECT PAYMENTS,"62,447.00",0,Non Commercial Supplier
12/04/2018,Strategic Commissioning CYPS,Our Lady Of Grace Catholic Academy Trust,CATERING SERVICES,"4,158.40",0,Supplier
12/04/2018,Strategic Commissioning CYPS,Our Lady Of Grace Catholic Academy Trust,CATERING SERVICES,"3,408.60",0,Supplier
12/04/2018,Strategic Commissioning CYPS,Redacted - Personal Data,LOOKED AFTER COST OTHER,350.00,0,Foster Carers
12/04/2018,Strategic Commissioning CYPS,Portway Primary School t/a Leading Learning Trust,CATERING SERVICES,"8,492.90",0,Commercial Supplier
12/04/2018,Strategic Commissioning CYPS,Purple Pebbles,SUPPORTED OTHER ACCOMMODATION - PRIVATE CONTRACTORS PAYMENT,300.00,0,Commercial Supplier
12/04/2018,Strategic Commissioning CYPS,Redacted - Personal Data,IN HOUSE FOSTER CARE PLACEMENTS - PRIVATE CONTRACTORS PAYMENT,"1,107.14",0,Commercial Supplier
12/04/2018,Strategic Commissioning CYPS,Redacted - Personal Data,IN HOUSE FOSTER CARE PLACEMENTS - PRIVATE CONTRACTORS PAYMENT,"1,021.95",0,Commercial Supplier
12/04/2018,Strategic Commissioning CYPS,Redacted - Personal Data,IN HOUSE FOSTER CARE PLACEMENTS - PRIVATE CONTRACTORS PAYMENT,"1,520.00",0,Foster Carers
12/04/2018,Strategic Commissioning CYPS,Selwyn Primary School t/a Leading Learning Trust,CATERING SERVICES,"6,258.05",0,Commercial Supplier
12/04/2018,Dedicated Schools Budget Dedicated Schools Budget,St Edmunds Playgroup,PAYMENT TO OTHER ESTABLISHMENTS - GENERAL,"2,340.00",0,Supplier
12/04/2018,Dedicated Schools Budget Dedicated Schools Budget,Redacted - Personal Data,SCHOOLS - TRANSFER PAYMENT,"18,330.00",0,Supplier
12/04/2018,oneSource - Non Shared Asset Management,St Lukes C Of E Primary School,"MAINTENANCE - EQUIPMENT, FURNITURE AND MATERIALS",471.42,0,Supplier
12/04/2018,Strategic Commissioning CYPS,Redacted - Personal Data,IN HOUSE FOSTER CARE PLACEMENTS - PRIVATE CONTRACTORS PAYMENT,"2,587.14",0,Foster Carers
12/04/2018,Strategic Commissioning CYPS,Surecare Residential Ltd,RESIDENTIAL PLACEMENTS - PRIVATE CONTRACTORS PAYMENT,"12,799.92",0,Non Commercial Supplier
12/04/2018,Strategic Commissioning CYPS,Redacted - Personal Data,IN HOUSE FOSTER CARE PLACEMENTS - PRIVATE CONTRACTORS PAYMENT,350.00,0,Foster Carers
12/04/2018,Strategic Commissioning CYPS,Redacted - Personal Data,IN HOUSE FOSTER CARE PLACEMENTS - PRIVATE CONTRACTORS PAYMENT,350.00,0,Foster Carers
12/04/2018,Strategic Commissioning CYPS,Synergy Fostering,RESIDENTIAL PLACEMENTS - PRIVATE CONTRACTORS PAYMENT,"3,150.00",0,Non Commercial Supplier
12/04/2018,Dedicated Schools Budget Dedicated Schools Budget,Redacted - Personal Data,SCHOOLS - TRANSFER PAYMENT,"4,680.00",0,Supplier
12/04/2018,Dedicated Schools Budget Dedicated Schools Budget,The Alphabet Hse Nursery School,PAYMENT TO OTHER ESTABLISHMENTS - GENERAL,"7,800.00",0,Supplier
12/04/2018,Dedicated Schools Budget Dedicated Schools Budget,The Enchanted Castle Day Nursery Ltd,PAYMENT TO OTHER ESTABLISHMENTS - GENERAL,"11,700.00",0,Supplier
12/04/2018,Dedicated Schools Budget Dedicated Schools Budget,The Enchanted Castle Day Nursery Ltd,PAYMENTS TO VOLUNTARY SECTOR,"9,048.00",0,Supplier
12/04/2018,Dedicated Schools Budget Dedicated Schools Budget,Redacted - Personal Data,SCHOOLS - TRANSFER PAYMENT,"9,750.00",0,Supplier
12/04/2018,Strategic Commissioning CYPS,Transforming Lives Company,SUPPORTED OTHER ACCOMMODATION - PRIVATE CONTRACTORS PAYMENT,"2,400.00",0,Commercial Supplier
12/04/2018,Strategic Commissioning CYPS,Turning Point Care Ltd,RESIDENTIAL PLACEMENTS - PRIVATE CONTRACTORS PAYMENT,"11,920.00",0,Non Commercial Supplier
12/04/2018,Strategic Commissioning CYPS,Windows for Children,RESIDENTIAL PLACEMENTS - PRIVATE CONTRACTORS PAYMENT,"13,525.40",0,Commercial Supplier
12/04/2018,Strategic Commissioning Community and Environment,Womble Bond Dickinson (UK) LLP,R & M MINOR WORKS,"1,803.00",0,Commercial Supplier
12/04/2018,Strategic Commissioning CYPS,Woodland Property Management Ltd,SECTION 17 - PRIVATE CONTRACTORS PAYMENT,"1,330.00",0,Commercial Supplier
12/04/2018,Strategic Commissioning CYPS,Woodland Property Management Ltd,SECTION 17 - PRIVATE CONTRACTORS PAYMENT,"1,330.00",0,Commercial Supplier
12/04/2018,Strategic Commissioning CYPS,Woodland Property Management Ltd,SECTION 17 - PRIVATE CONTRACTORS PAYMENT,"1,330.00",0,Commercial Supplier
12/04/2018,Strategic Commissioning CYPS,Woodland Property Management Ltd,SECTION 17 - PRIVATE CONTRACTORS PAYMENT,"1,330.00",0,Commercial Supplier
12/04/2018,Strategic Commissioning CYPS,Woodland Property Management Ltd,SECTION 17 - PRIVATE CONTRACTORS PAYMENT,665.00,0,Commercial Supplier
12/04/2018,Strategic Commissioning CYPS,Wrixon Care Services,EQUIPMENT & ADAPTATION - PRIVATE CONTRACTORS PAYMENT,"1,538.50",0,Commercial Supplier
12/04/2018,Strategic Commissioning Adults,Zeta Homes,RENT ALLOWANCES,412.41,0,Commercial Supplier
13/04/2018,Strategic Commissioning Community and Environment,1St Choice Maintenance Ltd,HIGHWAY SERVICES,685.99,0,Supplier
13/04/2018,Corporate Budgets Central Budgets,AHR Architects Ltd,OPEN SPACES WORKS,"8,600.00",0,Commercial Supplier
13/04/2018,Strategic Commissioning CYPS,Addey & Stanhope School,GRANTS AND CONTRIBUTIONS,704.00,0,Local Authority Services
13/04/2018,Strategic Commissioning Adults,Ajith Azad,PAYMENT TO HEALTH AUTHORITIES,"2,448.00",0,Supplier
13/04/2018,Strategic Commissioning Adults,Ajith Azad,PAYMENT TO HEALTH AUTHORITIES,"2,412.00",0,Supplier
13/04/2018,Strategic Commissioning Community and Environment,AllTyres Trading Ltd,HIGHWAY SERVICES,792.04,0,Commercial Supplier
